Workbook

Sheet Instructions (hidden)
A1: How to Create the Order By Size File
A2: 1 | B2: Save a copy of the master file. Format is YYYY.MM.DD US Order By Size.xlsm. The Date should be the same date as the master file.
A3: 2 | B3: Go to the calcs tab and set Active Tool Being Used to 2. This is the number in the red highlighted cell.
A4: 3 | B4: Hide all tabs that are colored green
A5: 4 | B5: Hide all tabs that are colored gray
A6: 5 | B6: The packing list tab will stay visible
A7: 6 | B7: One at a time, apply protection to the turquoise colored tabs. Verify options are checked like this image.
A8: 7 | B8: Apply protection to the packing list tab.
A9: 8 | B9: Hide the instructions tab
A10: 9 | B10: Apply protection to the entire Workbook
A11: 10 | B11: Save the file.
A15: How to Create the Room Layout File
A16: 1 | B16: Save a copy of the master file. Format is YYYY.MM.DD US Room Layout.xlsm. The Date should be the same date as the master file.
A17: 2 | B17: Go to the calcs tab and set Active Tool Being Used to 1. This is the number in the red highlighted cell.
A18: 3 | B18: Hide all tabs that are colored turquoise
A19: 4 | B19: Hide all tabs that are colored gray
A20: 5 | B20: The packing list tab will stay visible
A21: 6 | B21: One at a time, apply protection to the green colored tabs. Verify options are checked like this image.
A22: 7 | B22: Apply protection to the packing list tab.
A23: 8 | B23: Hide the instructions tab
A24: 9 | B24: Apply protection to the entire Workbook
A25: 10 | B25: Save the file.

Sheet Revision History (hidden)
A1: Date | B1: File Name Date | C1: Description | D1: OBS File | E1: RLO File
A2: 2019-01-08 | B2: 2019.01.08 | C2: Fixing a print selection area on the bulk order parts list | D2: X | E2: X
A3: 2019-02-11 | B3: 2019.02.11 | C3: Fixed the B dimension for 5' benches. This needs to be an additional 6" when there is a 5' Bench.
A4: 2019-02-11 | B4: 2019.02.11 | C4: Updated part numbers that were in 10102-xxxxx format to the latest 7xxxxx format
A5: 2019-02-11 | B5: 2019.02.11 | C5: Upated price of Bond Three Sealant from $12 to $13
A6: 2019-02-12 | B6: 2019.02.12 | C6: Changed reference for B dimension to number of 5' benches, Calcs Cell F71
A7: 2019-04-08 | B7: 2019.04.08 | C7: Fixed BOM calculation error for individual parts for trellis mount, thumb screw & 1" screws. It didn't account for the 5' bench. Also added calculation descriptions for most of the remaing parts.
A8: 2019-07-22 | B8: 2019.07.22 | C8: Added capability for 2', 3' & 4' end sections to the bench to provide for added capability.
A9: 2019-10-16 | B9: 2019.10.14 | C9: Removed reference to Box Kits. Updated calculations on the order BOM tabs. Added new part numbers. Changed slightly the amount of spare screws due to BOM calculation changes
A10: 2019-10-29 | B10: 2019.10.29 | C10: Added End Cap PN, fixed calculations. Added 5' summary to Room Layout PO
A11: 2020-04-15 | B11: 2020.04.15 | C11: 1. Corrected the middle tray count for OBS 65'6" length from 12 to 11. 2. Added logic to calcs C41 to prevent values below 24. 3. Removed logic from calcs C54 that was left over from full length bench calcs. This caused area to zero out on short benches. 4. Room Layout B7 Reduced room width to 6' min (changed data validation requirements) 5. Unlocked specific description cells on Room Layout Tab. 6. Trellis mount PN updated to MS3783 (this is the rev B of the part). 7. Added screw kits, outlined SKU for each kit. 8. Updated bulk kit SKU numbers & resale prices.
A12: 2022-03-28 | C12: Updated pricing (Josh C.)
A13: 2022-09-07 | B13: 2022.09.07 | C13: Updating images and verbiage, updated layout and print margins, added Gutter Tray Area comparison, updated so room name goes to top of charts
A14: 2022-09-20 | B14: 2022.09.20 | C14: 1. Height "H" callout images being incorrect 2. Printable pages 3. Room dims on "Room Layout Summary" tab 4. Benching Area callouts for Slide Bench on "Room Layout Summary" tab 5. Benching and Planting Area callouts for Gutter Tray on "Room Layout Summary" tab 6. Gutter tray % of potential airflow callout only when Gutter tray is selected on "Room Layout Summary" tab (marketing, please let me know if verbiage needs updated) 7. "Room name" input from first page can be reflected on each layout chart/graph 8. Room dimension inputs to the nearest decimal inch 9. Minimum and Maximum Center Aisles calculated and pushed to multiple tabs 10. Updating Botanicare logo so it's got correct aspect ratio 11. Removing "IFS" function and replacing with nested "IF" so this is backwards compatible with older versions of excel 12. Making values shrink to size in cell in "Room Layout Summary" tab.

Sheet Changes (hidden)
C1: Changes on the other sheets are highlighted in pink
A3: Sheet - field | B3: Cell | C3: Formula
A4: Calcs | B4: O4 | C4: =VLOOKUP(C53,'LU Table'!D4:F79,3)
A5: Bench Design Parameters | C5: Add columns for tri-lock sizes, add if statements to calcs below that, or at the top dimensions so I don't have to change too many things
A6: LU Table | C6: arches # to actual, not n-1
A8: Calcs - Seams/Arches | C8: Lookup table had n-1 arches, but +1 arch added in later calc, adjusted table to correct number and removed +1. Seams calc'd as (arches-1), but I'm thinking that is incorrect because arches already lower by 1
A9: Calcs - Anti-tip calc was blank for 5' | C9: Updated to include anti-tip for 5' changed in Calcs and Order BOM
A10: Calcs | C10: Added Gutter Tray specific dimensions/ values
A11: Calcs | C11: Updated width calcs
A12: Calcs | C12: Updated Math to calc tray numbers
A13: Order BOMs | C13: Updated kits math
A14: Calcs | C14: Updated Plot calculation
A15: Calcs | C15: Updated New-Math to make bench part number
A16: New Order BOMs | C16: Added Gutter tray PNs
A17: Order BOMs | C17: Added Gutter tray line items
A18: Purchase Order/Purchase Order(RL) | C18: Updated line items to include Gutter trays
A19: Calcs | C19: Updated Order by Size logic
A20: Calcs/Order BOMs | C20: Added Tri-lock calculations
A21: Room Layout/Calcs | C21: Added dropdown for 3 bench options, updated all logic in Calcs to
A22: Calcs | C22: Add new plot columns for Gutter tray to be able to show different color
A23: Room Layout/Bench Pictures | C23: Added summary of bench selection and added pictures in "Bench Pictures" tab to dynamic display what is chosen
A25: TODO
A26: New Order BOMs | C26: Add prices
A29: NOT CHANGED
A30: Order BOM's | C30: Most SKU/ part logic not updated, quickly added gutter tray placeholder then left alone
A31: Bulk Part Order
A35: Changes 2022/3/22 | C35: Updated Room Layout to remove # of instructions
C36: Created "Order Summary" which fully summarizes room/bench dimensions and includes bench graphics in a printable format
C37: Modified "Room Layout Summary" to include bench LxWxH and quantity, in printable format
C38: Add duplicate tabs for Order Summary and Room Layout Summary that remove gutter references in graphs
C39: Changed Room Layout to not include Gutter trays in dropdown This is done by going to Formulas Tab> Name Manager > Modify range of BenchType, can easily be adjusted to include Gutters again

Sheet Order By Size (hidden)
E2: Order By Size
B8: Bench Selections
B9: Width | C9: Length | D9: Height | E9: Qty | F9: Notes
B10: 4' | E10: 2
B11: 4'
B12: 4'
B13: 4'
B14: 4'
B15: 4'
B16: 4'
B17: 4'
B18: 4'
B19: 4'
B21: 5'
B22: 5'
B23: 5'
B24: 5'
B25: 5'
B26: 5'
B27: 5'
B28: 5'
B29: 5'
B30: 5'
B32: Number of Instructions | E32: 1

Sheet Room Layout (Inputs)
B2: Track Bench Room Layout Calculator
A4: Room Size
A5: Room Name | B5: Update in "Room Layout" Tab | F5: For the best user experience, Botanicare recommends a max bench length of 60.5' - exceeding this length requires customer acknowledgement.
A6: Room Length | B6: 40 | C6: Feet | D6: 0 | E6: Inches
A7: Room Width | B7: 40 | C7: Feet | D7: 0 | E7: Inches
A8: Rotate Room Layout 90 Degrees
A9: Number of Identical Rooms | B9: 1
A10: Worksheet Name For Room Side | B10: Specific Description for Room Side
A11: Drain Side
A12: Front Side
A13: Left Side
A14: Right Side
A15: Bench, Aisle & Wall Spacing
A16: Bench Dist to Left Wall at End of Track | B16: 0 | C16: Inches
A17: Bench Dist to Right Wall at End of Track | B17: 0 | C17: Inches
A18: Handle Location
A19: Bench Distance to Drain Wall | B19: 0 | C19: Inches
A20: Bench Distance to Front Wall | B20: 0 | C20: Inches
A21: Target Min Aisle Between Benches | C21: Inches
A22: Bench Configuration Selections
A23: Bench Type Desired
A24: Bench Height | C24: Inches | D24: =IF(Calcs!P4=1,"SELECT HEIGHT","") -> SELECT HEIGHT
A25: Bench Widths Desired
A26: Maximum 5' Bench Qty (Override) | B26: 3 | E26: Mixed only - adjust to maximize bench area
A27: Select width of left bench | D27: =IF(Calcs!C111=1,"Please select the width of bench on the left side of the room.","") -> Please select the width of bench on the left side of the room.
A28: Select width of right bench | D28: =IF(Calcs!C112=1,"Please select the width of bench on the right side of the room.","") -> Please select the width of bench on the right side of the room.
A29: Details of the Actual Room & Bench Configuration
B30: 4' Wide | C30: 5' Wide | D30: Total
A31: Bench Width Types | B31: =Calcs!E63 -> 9 | C31: =Calcs!F63 -> 0 | D31: =Calcs!G63 -> 9
A32: Planting Area | B32: =Calcs!E66 -> 1309.0785 | C32: =Calcs!F66 -> 0 | D32: =Calcs!G66 -> 1309.0785 | E32: Sq Feet
A33: Bench Area | B33: =(Calcs!E63*(Calcs!C53*Calcs!C9))/144 -> 1496.0625 | C33: =(Calcs!F63*(Calcs!C53*Calcs!D9))/144 -> 0 | D33: =B33+C33 -> 1496.0625 | E33: Sq Feet
A34: Bench Lengths for Room | D34: =Calcs!C54 -> 39.5 | E34: Feet
B35: Minimum | D35: Maximum
A36: Left Side Actual Aisle Widths | B36: =Calcs!C106 -> 0 | C36: Inches | D36: =Calcs!C107 -> 25.5 | E36: Inches
A37: Right Side Actual Aisle Widths | B37: =Calcs!C108 -> 0 | C37: Inches | D37: =Calcs!C109 -> 25.5 | E37: Inches
A38: Room Center Aisle Widths | B38: 0 | C38: Inches | D38: =Calcs!C100 -> 25.5 | E38: Inches
A39: Drain Side Aisle Actual Width | B39: =B19 -> 0 | C39: Inches
A40: Front Side Aisle Actual Width | B40: =Calcs!C57 -> 3 | C40: Inches
A42: Summary
A44: Room
A45: Length | B45: =Calcs!$C$35/12 -> 40 | D45: Feet
A46: Width | B46: =Calcs!$C$36/12 -> 40 | D46: Feet
A47: Bench
A48: Type | C48: =INDEX(Calcs!$J$38:$J$40,Calcs!$C$41) -> Track Bench w/ OG
A49: Bench Length | B49: =D34 -> 39.5 | D49: Feet
A50: # of 4' Wide | B50: =Calcs!$E$63 -> 9 | D50: Benches
A51: # of 5' Wide | B51: =Calcs!$F$63 -> 0 | D51: Benches
A52: Total Benches | B52: =Calcs!$G$63 -> 9 | D52: Benches
A53: Height (H) | B53: =INDEX(Calcs!$I$31:$I$34,Calcs!$P$4,1) -> -- | D53: Inches
A54: Max Center Aisle - W(A) | B54: =D38 -> 25.5 | D54: Inches
A55: =IF(Calcs!$C$60=3,"Width1 (W1)","Width (W)") -> Width (W) | B55: =IF(Calcs!$C$41=1, IF(Calcs!$C$60=2, Calcs!$D$9,Calcs!$C$9), IF(Calcs!$C$60=2, Calcs!$F$9,Calcs!$E$9)) -> 50.5 | D55: Inches
A56: =IF(A55="Width1 (W1)","Width2 (W2)","") ->  | B56: =IF(A55="Width1 (W1)",Calcs!D9,"") ->  | D56: =IF(A55="Width1 (W1)","Inches","") -> 
A57: Trays
A58: Planting Area | B58: =Calcs!$G$66 -> 1309.0785 | D58: Sq Feet
A59: # of 4' rows | B59: =IF(Calcs!$C$41=1,Calcs!$E$63,0) -> 9 | D59: Rows
A60: # of 5' rows | B60: =IF(Calcs!$C$41=1,Calcs!$F$63,0) -> 0 | D60: Rows
A61: # of Gutter rows | B61: =IF(Calcs!$C$41=2,Calcs!$E$63*3 + Calcs!$F$63*4, 0) -> 0 | D61: Rows
A62: Total rows | B62: =SUM(B59:C61) -> 9 | D62: Rows

Sheet Calcs (hidden)
A1: Activate Tool Being Used | C1: 1 | F1: Front End Short Tray Lookup | K1: Math to calculate quantities to drive PO & BOM
A2: Room Layout | B2: 1 | F2: Fractional | G2: Length [in] | M2: Length
A3: Order by Size | B3: 2 | F3: 0 | G3: 0 | K3: Chart Row | L3: Active | M3: Length (ft) | N3: Index# | O3: Arch# | P3: Height | Q3: Bench QTY | R3: # of Rooms | S3: # of 12 Arches | U3: # of 20 Arches | W3: # of 30 Arches | Y3: Drain | Z3: Middle | AA3: 5' End | AB3: 4' End | AC3: 3' End | AD3: 2' End | AE3: +Anti-tip | AF3: Seams | AG3: Trilock
F4: 0.4 | G4: 24 | I4: 4 Foot Wide | J4: Room Layout | K4: 0 | L4: =IF($C$1=1,1,0) -> 1 | M4: =C54 -> 39.5 | O4: =VLOOKUP(C54,'LU Table'!D4:F79,3) -> 9 | P4: 1 | Q4: =IF(OR(L4=0,P4=1),0,E63) -> 0 | R4: ='Room Layout (Inputs)'!B9 -> 1 | S4: =IF($P4=2,1,0) -> 0 | T4: =($O4)*$Q4*S4*R4 -> 0 | U4: =IF($P4=3,1,0) -> 0 | V4: =($O4)*$Q4*U4*R4 -> 0 | W4: =IF($P4=4,1,0) -> 0 | X4: =($O4)*$Q4*W4*R4 -> 0 | Y4: =Q4*R4 -> 0 | Z4: =C48*Q4*R4 -> 0 | AA4: =C49*Q4*R4 -> 0 | AB4: =C52*Q4*R4 -> 0 | AC4: =C51*Q4*R4 -> 0 | AD4: =C50*Q4*R4 -> 0 | AE4: =VLOOKUP(C54,'LU Table'!D4:L79,9)*Q4*R4 -> 0 | AF4: =(O4-2)*Q4*R4 -> 0 | AG4: =IF(OR($C$41=2,$C$41=3), O4*Q4*R4, 0) -> 0
F5: 0.6 | G5: 36 | J5: Order by Size | K5: 1 | L5: =IF($C$1=1,0,1) -> 0 | M5: =VLOOKUP(N5,LookUp,2) -> 10.5 | N5: 5 | O5: =VLOOKUP(N5,'LU Table'!$C$3:$F$79,4) -> 3 | P5: 3 | Q5: =IF(OR(N5=1,P5=1,L5=0),0,'Order By Size'!E10) -> 0 | R5: NA | S5: =IF($P5=2,1,0) -> 0 | T5: =($O5)*$Q5*S5 -> 0 | U5: =IF($P5=3,1,0) -> 1 | V5: =($O5)*$Q5*U5 -> 0 | W5: =IF($P5=4,1,0) -> 0 | X5: =($O5)*$Q5*W5 -> 0 | Y5: =Q5 -> 0 | Z5: =VLOOKUP(N5,LookUp,5)*Q5 -> 0 | AA5: =VLOOKUP(N5,LookUp,6)*Q5 -> 0 | AB5: =VLOOKUP(N5,LookUp,7)*Q5 -> 0 | AC5: =VLOOKUP(N5,LookUp,8)*Q5 -> 0 | AD5: =VLOOKUP(N5,LookUp,9)*Q5 -> 0 | AE5: =VLOOKUP(N5,LookUp,10)*Q5 -> 0 | AF5: =(O5-2)*Q5 -> 0 | AG5: =IF(OR($C$41=2,$C$41=3), VLOOKUP(N5,LookUp_Gutter,14)*Q5, 0) -> 0
A6: Bench Design Parameters | F6: 0.8 | G6: 48 | J6: Order by Size | K6: 2 | L6: 0 | M6: -- | N6: 1 | O6: =VLOOKUP(N6,'LU Table'!$C$3:$F$79,4) -> 0 | P6: 1 | Q6: =IF(OR(N6=1,P6=1,L6=0),0,'Order By Size'!E11) -> 0 | R6: NA | S6: 0 | T6: =($O6)*$Q6*S6 -> 0 | U6: 0 | V6: =($O6)*$Q6*U6 -> 0 | W6: 0 | X6: =($O6)*$Q6*W6 -> 0 | Y6: =Q6 -> 0 | Z6: 0 | AA6: 0 | AB6: 0 | AC6: 0 | AD6: 0 | AE6: 0 | AF6: =(O6-2)*Q6 -> 0 | AG6: =IF(OR($C$41=2,$C$41=3), VLOOKUP(N6,LookUp_Gutter,14)*Q6, 0) -> 0
C7: OG Tray | E7: Gutter Tray | J7: Order by Size | K7: 3 | L7: 0 | M7: -- | N7: 1 | O7: =VLOOKUP(N7,'LU Table'!$C$3:$F$79,4) -> 0 | P7: 1 | Q7: =IF(OR(N7=1,P7=1,L7=0),0,'Order By Size'!E12) -> 0 | R7: NA | S7: 0 | T7: 0 | U7: 0 | V7: 0 | W7: 0 | X7: 0 | Y7: 0 | Z7: 0 | AA7: 0 | AB7: 0 | AC7: 0 | AD7: 0 | AE7: =VLOOKUP(N7,LookUp,10)*Q7 -> 0 | AF7: 0 | AG7: 0
C8: 4' | D8: 5' | E8: 4' | F8: 5' | J8: Order by Size | K8: 4 | L8: 0 | M8: -- | N8: 1 | O8: =VLOOKUP(N8,'LU Table'!$C$3:$F$79,4) -> 0 | P8: 1 | Q8: =IF(OR(N8=1,P8=1,L8=0),0,'Order By Size'!E13) -> 0 | R8: NA | S8: 0 | T8: 0 | U8: 0 | V8: 0 | W8: 0 | X8: 0 | Y8: 0 | Z8: 0 | AA8: 0 | AB8: 0 | AC8: 0 | AD8: 0 | AE8: 0 | AF8: 0 | AG8: 0
A9: Bench Widths, Max Outside Dim | B9: [in] | C9: 50.5 | D9: 62.5 | E9: 50.5 | F9: 62.5 | J9: Order by Size | K9: 5 | L9: 0 | M9: -- | N9: 1 | O9: =VLOOKUP(N9,'LU Table'!$C$3:$F$79,4) -> 0 | P9: 1 | Q9: =IF(OR(N9=1,P9=1,L9=0),0,'Order By Size'!E14) -> 0 | R9: NA | S9: 0 | T9: 0 | U9: 0 | V9: 0 | W9: 0 | X9: 0 | Y9: 0 | Z9: 0 | AA9: 0 | AB9: 0 | AC9: 0 | AD9: 0 | AE9: 0 | AF9: 0 | AG9: 0
A10: Width Border, Per Side | B10: [in] | C10: 3.05 | D10: 3.05 | J10: Order by Size | K10: 6 | L10: 0 | M10: -- | N10: 1 | O10: =VLOOKUP(N10,'LU Table'!$C$3:$F$79,4) -> 0 | P10: 1 | Q10: =IF(OR(N10=1,P10=1,L10=0),0,'Order By Size'!E15) -> 0 | R10: NA | S10: 0 | T10: 0 | U10: 0 | V10: 0 | W10: 0 | X10: 0 | Y10: =Q10 -> 0 | Z10: 0 | AA10: 0 | AB10: 0 | AC10: 0 | AD10: 0 | AE10: 0 | AF10: 0 | AG10: 0
A11: Available Tray Planting Width | B11: [in] | C11: =C9-(2*C10) -> 44.4 | D11: =D9-(2*D10) -> 56.4 | E11: =9.5*3 -> 28.5 | F11: =9.5*4 -> 38 | J11: Order by Size | K11: 7 | L11: 0 | M11: -- | N11: 1 | O11: =VLOOKUP(N11,'LU Table'!$C$3:$F$79,4) -> 0 | P11: 1 | Q11: =IF(OR(N11=1,P11=1,L11=0),0,'Order By Size'!E16) -> 0 | R11: NA | S11: 0 | T11: 0 | U11: 0 | V11: 0 | W11: 0 | X11: 0 | Y11: 0 | Z11: 0 | AA11: 0 | AB11: 0 | AC11: 0 | AD11: 0 | AE11: 0 | AF11: 0 | AG11: 0
A12: Tray Slide Distance | B12: [in] | C12: 17 | E12: 17 | J12: Order by Size | K12: 8 | L12: 0 | M12: -- | N12: 1 | O12: =VLOOKUP(N12,'LU Table'!$C$3:$F$79,4) -> 0 | P12: 1 | Q12: =IF(OR(N12=1,P12=1,L12=0),0,'Order By Size'!E17) -> 0 | R12: NA | S12: 0 | T12: 0 | U12: 0 | V12: 0 | W12: 0 | X12: 0 | Y12: 0 | Z12: 0 | AA12: 0 | AB12: 0 | AC12: 0 | AD12: 0 | AE12: 0 | AF12: 0 | AG12: 0
A13: Middle Tray Length | B13: [in] | C13: 60 | E13: 60 | J13: Order by Size | K13: 9 | L13: 0 | M13: -- | N13: 1 | O13: =VLOOKUP(N13,'LU Table'!$C$3:$F$79,4) -> 0 | P13: 1 | Q13: =IF(OR(N13=1,P13=1,L13=0),0,'Order By Size'!E18) -> 0 | R13: NA | S13: 0 | T13: 0 | U13: 0 | V13: 0 | W13: 0 | X13: 0 | Y13: 0 | Z13: 0 | AA13: 0 | AB13: 0 | AC13: 0 | AD13: 0 | AE13: 0 | AF13: 0 | AG13: 0
A14: Drain End Tray Length | B14: [in] | C14: 66 | E14: 66 | J14: Order by Size | K14: 10 | L14: 0 | M14: -- | N14: 1 | O14: =VLOOKUP(N14,'LU Table'!$C$3:$F$79,4) -> 0 | P14: 1 | Q14: =IF(OR(N14=1,P14=1,L14=0),0,'Order By Size'!E19) -> 0 | R14: NA | S14: 0 | T14: 0 | U14: 0 | V14: 0 | W14: 0 | X14: 0 | Y14: 0 | Z14: 0 | AA14: 0 | AB14: 0 | AC14: 0 | AD14: 0 | AE14: 0 | AF14: 0 | AG14: 0
A15: Drain End Tray Length Border | B15: [in] | C15: 1.13 | E15: 1.5 | K15: Totals | Q15: =SUM(Q4:Q14) -> 0 | T15: =SUM(T4:T14) -> 0 | V15: =SUM(V4:V14) -> 0 | X15: =SUM(X4:X14) -> 0 | Y15: 0 | Z15: 0 | AA15: 0 | AB15: 0 | AC15: 0 | AD15: 0 | AE15: =SUM(AE4:AE14) -> 0 | AF15: 0 | AG15: 0
A16: Available Drain Tray Planting Length | B16: [in] | C16: =C14-C15 -> 64.87 | E16: =E14-E15 -> 64.5 | I16: 5 Foot Wide | J16: Room Layout | K16: 0 | L16: =IF($C$1=1,1,0) -> 1 | M16: =M4 -> 39.5 | O16: =O4 -> 9 | P16: =P4 -> 1 | Q16: =IF(OR(L16=0,P16=1),0,F63) -> 0 | R16: ='Room Layout (Inputs)'!B9 -> 1 | S16: =IF($P16=2,1,0) -> 0 | T16: =($O16)*$Q16*S16*R16 -> 0 | U16: =IF($P16=3,1,0) -> 0 | V16: =($O16)*$Q16*U16*R16 -> 0 | W16: =IF($P16=4,1,0) -> 0 | X16: =($O16)*$Q16*W16*R16 -> 0 | Y16: =Q16*R16 -> 0 | Z16: =C48*Q16*R16 -> 0 | AA16: =C49*Q16*R16 -> 0 | AB16: =C52*Q16*R16 -> 0 | AC16: =C51*Q16*R16 -> 0 | AD16: =C50*Q16*R16 -> 0 | AE16: =O16*Q16*R16*0 -> 0 | AF16: =(O16-2)*Q16*R16 -> 0 | AG16: =IF(OR($C$41=2,$C$41=3),O16*Q16*R16, 0) -> 0 | AI16: Forced 5' Anti-tip to zero
A17: Front End Full Tray Length | B17: [in] | C17: 60 | E17: 60 | J17: Order by Size | K17: 1 | L17: =IF($C$1=1,0,1) -> 0 | M17: =VLOOKUP(N17,LookUp,2) -> -- | N17: 1 | O17: =VLOOKUP(N17,'LU Table'!$C$3:$F$79,4) -> 0 | P17: 1 | Q17: =IF(OR(N17=1,P17=1,L17=0),0,'Order By Size'!E21) -> 0 | R17: NA | S17: =IF($P17=2,1,0) -> 0 | T17: =($O17)*$Q17*S17 -> 0 | U17: =IF($P17=3,1,0) -> 0 | V17: =($O17)*$Q17*U17 -> 0 | W17: =IF($P17=4,1,0) -> 0 | X17: =($O17)*$Q17*W17 -> 0 | Y17: =Q17 -> 0 | Z17: =VLOOKUP(N17,LookUp,5)*Q17 -> 0 | AA17: =VLOOKUP(N17,LookUp,6)*Q17 -> 0 | AB17: =VLOOKUP(N17,LookUp,7)*Q17 -> 0 | AC17: =VLOOKUP(N17,LookUp,8)*Q17 -> 0 | AD17: =VLOOKUP(N17,LookUp,9)*Q17 -> 0 | AE17: =O17*Q17 -> 0 | AF17: =(O17-2)*Q17 -> 0 | AG17: =IF(OR($C$41=2,$C$41=3), VLOOKUP(N17,LookUp_Gutter,14)*Q17, 0) -> 0
A18: Front End Tray Length Border | B18: [in] | C18: 1.13 | E18: 1.5 | J18: Order by Size | K18: 2 | L18: 0 | M18: -- | N18: 1 | O18: =VLOOKUP(N18,'LU Table'!$C$3:$F$79,4) -> 0 | P18: 1 | Q18: =IF(OR(N18=1,P18=1,L18=0),0,'Order By Size'!E22) -> 0 | R18: NA | S18: 0 | T18: =($O18)*$Q18*S18 -> 0 | U18: 0 | V18: =($O18)*$Q18*U18 -> 0 | W18: 0 | X18: =($O18)*$Q18*W18 -> 0 | Y18: =Q18 -> 0 | Z18: 0 | AA18: 0 | AB18: 0 | AC18: 0 | AD18: 0 | AE18: =O18*Q18 -> 0 | AF18: =(O18-2)*Q18 -> 0 | AG18: 0
A19: Available Front Tray Planting Length | B19: [in] | C19: =C17-C18 -> 58.87 | E19: =E17-E18 -> 58.5 | J19: Order by Size | K19: 3 | L19: 0 | M19: -- | N19: 1 | O19: =VLOOKUP(N19,'LU Table'!$C$3:$F$79,4) -> 0 | P19: 1 | Q19: =IF(OR(N19=1,P19=1,L19=0),0,'Order By Size'!E23) -> 0 | R19: NA | S19: 0 | T19: 0 | U19: 0 | V19: 0 | W19: 0 | X19: 0 | Y19: 0 | Z19: 0 | AA19: 0 | AB19: 0 | AC19: 0 | AD19: 0 | AE19: 0 | AF19: 0 | AG19: 0
A20: Tray Seam Length | B20: [in] | C20: 54.92 | D20: 66.92 | E20: =19.156*3 -> 57.468 | F20: =19.156*4 -> 76.624 | J20: Order by Size | K20: 4 | L20: 0 | M20: -- | N20: 1 | O20: =VLOOKUP(N20,'LU Table'!$C$3:$F$79,4) -> 0 | P20: 1 | Q20: =IF(OR(N20=1,P20=1,L20=0),0,'Order By Size'!E24) -> 0 | R20: NA | S20: 0 | T20: 0 | U20: 0 | V20: 0 | W20: 0 | X20: 0 | Y20: 0 | Z20: 0 | AA20: 0 | AB20: 0 | AC20: 0 | AD20: 0 | AE20: 0 | AF20: 0 | AG20: 0
A21: Drain Tray End to Track Edge | B21: [in] | C21: 7.5 | E21: 7.5 | J21: Order by Size | K21: 5 | L21: 0 | M21: -- | N21: 1 | O21: =VLOOKUP(N21,'LU Table'!$C$3:$F$79,4) -> 0 | P21: 1 | Q21: =IF(OR(N21=1,P21=1,L21=0),0,'Order By Size'!E25) -> 0 | R21: NA | S21: 0 | T21: 0 | U21: 0 | V21: 0 | W21: 0 | X21: 0 | Y21: 0 | Z21: 0 | AA21: 0 | AB21: 0 | AC21: 0 | AD21: 0 | AE21: 0 | AF21: 0 | AG21: 0
A22: Left Tray Edge to Foot Edge w/ Slide | B22: [in] | C22: 19.25 | D22: 25.25 | E22: 19.25 | F22: 25.25 | J22: Order by Size | K22: 6 | L22: 0 | M22: -- | N22: 1 | O22: =VLOOKUP(N22,'LU Table'!$C$3:$F$79,4) -> 0 | P22: 1 | Q22: =IF(OR(N22=1,P22=1,L22=0),0,'Order By Size'!E26) -> 0 | R22: NA | S22: 0 | T22: 0 | U22: 0 | V22: 0 | W22: 0 | X22: 0 | Y22: =Q22 -> 0 | Z22: 0 | AA22: 0 | AB22: 0 | AC22: 0 | AD22: 0 | AE22: 0 | AF22: 0 | AG22: 0
A23: Foot Edge to Edge, 4' to 4' | B23: [in] | J23: Order by Size | K23: 7 | L23: 0 | M23: -- | N23: 1 | O23: =VLOOKUP(N23,'LU Table'!$C$3:$F$79,4) -> 0 | P23: 1 | Q23: =IF(OR(N23=1,P23=1,L23=0),0,'Order By Size'!E27) -> 0 | R23: NA | S23: 0 | T23: 0 | U23: 0 | V23: 0 | W23: 0 | X23: 0 | Y23: 0 | Z23: 0 | AA23: 0 | AB23: 0 | AC23: 0 | AD23: 0 | AE23: 0 | AF23: 0 | AG23: 0
A24: Foot Edge to Edge, 4' to 5' | B24: [in] | J24: Order by Size | K24: 8 | L24: 0 | M24: -- | N24: 1 | O24: =VLOOKUP(N24,'LU Table'!$C$3:$F$79,4) -> 0 | P24: 1 | Q24: =IF(OR(N24=1,P24=1,L24=0),0,'Order By Size'!E28) -> 0 | R24: NA | S24: 0 | T24: 0 | U24: 0 | V24: 0 | W24: 0 | X24: 0 | Y24: 0 | Z24: 0 | AA24: 0 | AB24: 0 | AC24: 0 | AD24: 0 | AE24: 0 | AF24: 0 | AG24: 0
A25: Foot Edge to Edge, 5' to 5' | B25: [in] | J25: Order by Size | K25: 9 | L25: 0 | M25: -- | N25: 1 | O25: =VLOOKUP(N25,'LU Table'!$C$3:$F$79,4) -> 0 | P25: 1 | Q25: =IF(OR(N25=1,P25=1,L25=0),0,'Order By Size'!E29) -> 0 | R25: NA | S25: 0 | T25: 0 | U25: 0 | V25: 0 | W25: 0 | X25: 0 | Y25: 0 | Z25: 0 | AA25: 0 | AB25: 0 | AC25: 0 | AD25: 0 | AE25: 0 | AF25: 0 | AG25: 0
A26: Foot Edge to Edge, Long Section | B26: [in] | J26: Order by Size | K26: 10 | L26: 0 | M26: -- | N26: 1 | O26: =VLOOKUP(N26,'LU Table'!$C$3:$F$79,4) -> 0 | P26: 1 | Q26: =IF(OR(N26=1,P26=1,L26=0),0,'Order By Size'!E30) -> 0 | R26: NA | S26: 0 | T26: 0 | U26: 0 | V26: 0 | W26: 0 | X26: 0 | Y26: 0 | Z26: 0 | AA26: 0 | AB26: 0 | AC26: 0 | AD26: 0 | AE26: 0 | AF26: 0 | AG26: 0
A27: Foot Edge to Edge, 5' Section | B27: [in] | K27: Totals | Q27: =SUM(Q16:Q26) -> 0 | T27: =SUM(T16:T26) -> 0 | V27: =SUM(V16:V26) -> 0 | X27: =SUM(X16:X26) -> 0 | Y27: =SUM(Y16:Y26) -> 0 | Z27: =SUM(Z16:Z26) -> 0 | AA27: =SUM(AA16:AA26) -> 0 | AB27: =SUM(AB16:AB26) -> 0 | AC27: 0 | AD27: 0 | AE27: =SUM(AE16:AE26) -> 0 | AF27: 0 | AG27: 0
A28: Foot Edge to Edge, 4' Section | B28: [in] | I28: Track | J28: Room Layout | R28: ='Room Layout (Inputs)'!B9 -> 1
A29: Foot Edge to Edge, 3' Section | B29: [in]
A30: Foot Edge to Edge, 2' Section | B30: [in] | I30: Height | J30: Widths | K30: Bench Type | L30: Bench Abbr | M30: TriLock Abbr | Q30: # of Instructions
A31: Single side overhang | B31: [in] | C31: 3 | D31: 9 | E31: 3 | F31: 9 | I31: -- | J31: 4' Only | K31: Track Bench w/ OG | L31: TB | M31: BT | R31: From Tab | S31: Active | T31: Qty
I32: 14 | J32: 5' Only | K32: Track Bench w/ Gutter | L32: TB | M32: BTG | Q32: Room Layout | R32: 1 | S32: =IF($C$1=1,1,0) -> 1 | T32: =R32*S32 -> 1
A33: Room Size Calculations | I33: 20 | J33: 4' & 5' Mixed | Q33: Order by Size | R33: ='Order By Size'!E32 -> 1 | S33: =IF($C$1=1,0,1) -> 0 | T33: =R33*S33 -> 0
A34: Flip Room | B34: FALSE | I34: 30
A35: Room Length | B35: [in] | C35: =IF(B34=FALSE,('Room Layout (Inputs)'!B6*12)+'Room Layout (Inputs)'!D6,('Room Layout (Inputs)'!B7*12)+'Room Layout (Inputs)'!D7) -> 480 | Q35: NEW-Math to calculate quantities to drive PO
A36: Room Width | B36: [in] | C36: =IF(B34=FALSE,('Room Layout (Inputs)'!B7*12)+'Room Layout (Inputs)'!D7,('Room Layout (Inputs)'!B6*12)+'Room Layout (Inputs)'!D6) -> 480 | J36: Picture Lookup Logic | S36: Length
A37: Room Length, Usable | B37: [in] | C37: =C35-('Room Layout (Inputs)'!B20+'Room Layout (Inputs)'!B19) -> 480 | K37: 4 ft | L37: 5ft | M37: Mixed | Q37: Transfer Filter | R37: Width (ft) | S37: Length (ft) | T37: Height | U37: Bench QTY | V37: Room Multiplier | W37: Total QTY | X37: Generated SKU | Y37: Generated Description
A38: Room Width, Usable | B38: [in] | C38: =C36-('Room Layout (Inputs)'!B17+'Room Layout (Inputs)'!B16) -> 480 | J38: Track Bench w/ OG | K38: 1 | L38: 2 | M38: 3 | Q38: =IF(W38=0,0,1) ->  | R38: 4 | S38: =M4 -> 39.5 | T38: =IF(P4=2,14,IF(P4=3,20,IF(P4=4,30))) -> FALSE | U38: =IF(T38=FALSE,"",Q15) ->  | V38: =R4 -> 1 | W38: =U38*V38 ->  | X38: =IF(T38=FALSE,"",INDEX($L$31:$M$33,$C$41,1)&R38*12&"-"&S38*12&"-"&T38&INDEX($L$31:$M$33,$C$41,2)) ->  | Y38: =IF(T38=FALSE,"","TRACK BENCH: "&R38&"FTx"&S38&"FTx"&T38&"IN"&IF(C$41=1,"xTRILOCK",IF(C$41=2,"xTRILOCK, GUTTER"))) -> 
A39: Aisle Between Benches | B39: [in] | C39: =(1+C99)*6 -> 18 | D39: 0 | E39: Additional Aisle Width | J39: Track Bench w/ Gutter | K39: 4 | L39: 5 | M39: 6 | Q39: =IF(W39=0,0,MAX(Q38)+1) ->  | R39: 5 | S39: =M16 -> 39.5 | T39: =IF(P16=2,14,IF(P16=3,20,IF(P16=4,30))) -> FALSE | U39: =IF(T38=FALSE,"",Q27) ->  | V39: =R16 -> 1 | W39: =U39*V39 ->  | X39: =IF(T39=FALSE,"",INDEX($L$31:$M$33,$C$41,1)&R39*12&"-"&S39*12&"-"&T39&INDEX($L$31:$M$33,$C$41,2)) ->  | Y39: =IF(T39=FALSE,"","TRACK BENCH: "&R39&"FTx"&S39&"FTx"&T39&"IN"&IF(C$41=1,"xTRILOCK",IF(C$41=2,"xTRILOCK, GUTTER"))) -> 
A40: Bench & Tray Length Details (New with Short Ends) | Q40: =IF(S40=0,0,MAX(Q38:Q39)+1) ->  | R40: Track | S40: =C97 -> 39.5 | U40: =IF(T38=FALSE,"",C95) ->  | V40: ='Room Layout (Inputs)'!B9 -> 1 | W40: =U40*V40 ->  | X40: =IF(T38=FALSE,"",CONCATENATE("TRK-",S40*12)) ->  | Y40: =IF(T38=FALSE,"",_xlfn.CONCAT(S40," LINEAR FEET OF TRACK")) -> 
A41: Bench Type Selection | C41: 1 | D41: 1 = OG TB | E41: 2 = GT TB | J41: Reference | K41: =INDEX(K38:M40,C41,C60) -> 1
A42: Room Usable Length - Drain Tray length | B42: [in] | C42: =IF((C37-C14)<21.2,24,(C37-C14-2.8)) -> 411.2
A43: Number of Full Length Trays Remaining | B43: [#] | C43: =C42/60 -> 6.853333333 | J43: Target Minimum Aisle Width
A44: Rounded Down Whole | B44: [#] | C44: =ROUNDDOWN(C43,0) -> 6 | J44: 12
A45: Fractional Full Length Tray | C45: =ROUNDDOWN((C43-C44),1) -> 0.8 | J45: 18
A46: Fractional Tray Length | B46: [in] | C46: =VLOOKUP(C45,F3:G6,2,TRUE) -> 48 | J46: 24
A47: First 5' Tray is end/middle logic | C47: =IF(C46>0,0,1) -> 0 | D47: For use in Tray quantity calculations | J47: 30
A48: Number of Middle Trays | B48: [#] | C48: =C44-C47 -> 6 | J48: 36
A49: Number of Full End Trays | B49: [#] | C49: =C47 -> 0 | J49: 42
A50: Number of Short End Trays (24") | B50: [#] | C50: =IF(C46=24,1,0) -> 0 | J50: 48
A51: Number of Short End Trays (36") | B51: [#] | C51: =IF(C46=36,1,0) -> 0 | J51: 54
A52: Number of Short End Trays (48") | B52: [#] | C52: =IF(C46=48,1,0) -> 1
A53: Bench Length | B53: [in] | C53: =C14+(C13*C48)+(C49*C17)+C46 -> 474
A54: Bench Length | B54: [ft] | C54: =C53/12 -> 39.5
A55: Bench Length with Handle | B55: [ft] | C55: =C54+3/12 -> 39.75
A56: Tray Length, Plantable | B56: [in] | C56: =IF(C41=2,(C53-E15-E18),(C53-C15-C18)) -> 471.74
A57: Front Aisle Actual Width | B57: [in] | C57: =C37-C55*12+'Room Layout (Inputs)'!B20 -> 3
A59: Bench & Tray Width Details
C60: 1 | D60: 1=4' | E60: 2=5' | F60: 3=Mix
C61: Single | E61: Mix
C62: 4' | D62: 5' | E62: 4' | F62: 5' | G62: Total
A63: Bench/Tray Count (Room Width) | B63: [#] | C63: =ROUNDDOWN(($C$38-$C$39)/C9,0) -> 9 | D63: =ROUNDDOWN(($C$38-$C$39)/D9,0) -> 7 | E63: =IF(C60=1,C63,IF(C60=2,0,IF(C60=3,ROUNDDOWN(($C$38-(F63*D9)-C39)/C9,0),FALSE))) -> 9 | F63: =IF(C60=1,0,IF(C60=2,D63,MIN('Room Layout (Inputs)'!B26,D63))) -> 0 | G63: =E63+F63 -> 9
A64: Room Width Occupied, Actual | B64: [in] | C64: =C63*(IF(OR($C$41=1,$C$41=2),E9,C9)) -> 454.5 | D64: =D63*(IF(OR($C$41=1,$C$41=2),F9,D9)) -> 437.5 | E64: =IF(E63=0,0,E63*(IF(OR($C$41=2,$C$41=3),E9,C9))) -> 454.5 | F64: =F63*(IF(OR($C$41=1,$C$41=2),F9,D9)) -> 0 | G64: =E64+F64+D39 -> 454.5
A65: Total Plantable Width | B65: [in] | C65: =IF($C$41=2,(C63*E11),(C63*C11)) -> 399.6 | D65: =IF($C$41=2,(D63*F11),(D63*D11)) -> 394.8 | E65: =IF($C$41=2,(E63*E11),(E63*C11)) -> 399.6 | F65: =IF($C$41=2,(F63*F11),(F63*D11)) -> 0 | G65: =E65+F65 -> 399.6
A66: Total Plantable Area | B66: [ft] | C66: =$C$56*C65/144 -> 1309.0785 | D66: =$C$56*D65/144 -> 1293.353833 | E66: =$C$56*E65/144 -> 1309.0785 | F66: =$C$56*F65/144 -> 0 | G66: =E66+F66 -> 1309.0785
A67: Left Aisle, Min | B67: [in] | C67: =($C36-$C97*12)/2+C31 -> 6 | D67: =($C35-$C97*12)/2+D31 -> 12 | G67: =D67 -> 12 | I67: Plotting
A68: Left Aisle, Max | B68: [in] | C68: =C67+C39 -> 24 | D68: =D67+C39 -> 30 | G68: =D68 -> 30 | I68: Room Outline | L68: Proposed Usable Area | P68: Benches in Sequence | U68: 4' Track Benches w/ OG | Z68: 5' Track Benches w/ OG | AE68: 4' Track Benches w/ Gutter | AJ68: 5' Track Benches w/ Gutter
A69: Right Aisle, Min | B69: [in] | C69: =C67 -> 6 | D69: =D67 -> 12 | G69: 12 | I69: X | J69: Y | L69: X | M69: Y | Q69: X | R69: Y | V69: X | W69: Y | AA69: X | AB69: Y | AF69: X | AG69: Y | AK69: X | AL69: Y
A70: Right Aisle, Max | B70: [in] | C70: =C68 -> 24 | D70: =D68 -> 30 | G70: 30 | I70: 0 | J70: 0 | L70: ='Room Layout (Inputs)'!B16/12 -> 0 | M70: ='Room Layout (Inputs)'!B20/12 -> 0 | O70: Row | P70: 1 | Q70: =L78*P71 -> 0 | R70: =M80 -> 40 | T70: Row | U70: 1 | V70: =$Q70*U71 -> 0 | W70: =$R70*U71 -> 40 | Y70: Row | Z70: 1 | AA70: =$Q70*Z71 -> 0 | AB70: =$R70*Z71 -> 0 | AD70: Row | AE70: 1 | AF70: =$Q70*AE71 -> 0 | AG70: =$R70*AE71 -> 0 | AI70: Row | AJ70: 1 | AK70: =$Q70*AJ71 -> 0 | AL70: =$R70*AJ71 -> 0
A71: Tray Sealant Usage Calculations | I71: =I70 -> 0 | J71: =C35/12 -> 40 | L71: =(C38)/12+L70 -> 40 | M71: =M70 -> 0 | O71: On/Off | P71: =IF(P70>$G$63,0,1) -> 1 | Q71: =(Q70+(P74/12))*P71 -> 4.208333333 | R71: =R70 -> 40 | T71: 4' or 5' | U71: =IF($C$41=1,IF($P74<$D$9,1,0),0) -> 1 | V71: =$Q71*U71 -> 4.208333333 | W71: =$R71*U71 -> 40 | Y71: 4' or 5' | Z71: =IF($C$41=1,IF($P74<$D$9,0,1),0) -> 0 | AA71: =$Q71*Z71 -> 0 | AB71: =$R71*Z71 -> 0 | AD71: 4' or 5' | AE71: =IF($C$41=2,IF($P74<$D$9,1,0),0) -> 0 | AF71: =$Q71*AE71 -> 0 | AG71: =$R71*AE71 -> 0 | AI71: 4' or 5' | AJ71: =IF($C$41=2,IF($P74<$D$9,0,1),0) -> 0 | AK71: =$Q71*AJ71 -> 0 | AL71: =$R71*AJ71 -> 0
A72: Tube Size | B72: [ounces] | C72: 10.1 | I72: =C36/12 -> 40 | J72: =J71 -> 40 | L72: =L71 -> 40 | M72: =M71+(C37/12) -> 40 | O72: Inside Reference | Q72: =Q71 -> 4.208333333 | R72: =(R71-$C$55)*P71 -> 0.25 | V72: =$Q72*U71 -> 4.208333333 | W72: =$R72*U71 -> 0.25 | AA72: =$Q72*Z71 -> 0 | AB72: =$R72*Z71 -> 0 | AF72: =$Q72*AE71 -> 0 | AG72: =$R72*AE71 -> 0 | AK72: =$Q72*AJ71 -> 0 | AL72: =$R72*AJ71 -> 0
A73: Tube Volume | B73: [in^3] | C73: =C72*1.805 -> 18.2305 | I73: =I72 -> 40 | J73: =J70 -> 0 | L73: =L70 -> 0 | M73: =M72 -> 40 | O73: Outside Reference | Q73: =Q70 -> 0 | R73: =R72 -> 0.25 | V73: =$Q73*U71 -> 0 | W73: =$R73*U71 -> 0.25 | AA73: =$Q73*Z71 -> 0 | AB73: =$R73*Z71 -> 0 | AF73: =$Q73*AE71 -> 0 | AG73: =$R73*AE71 -> 0 | AK73: =$Q73*AJ71 -> 0 | AL73: =$R73*AJ71 -> 0
A74: Usage Efficiency | B74: [%] | C74: 0.95 | I74: =I70 -> 0 | J74: =J70 -> 0 | L74: =L70 -> 0 | M74: =M70 -> 0 | O74: 4' or 5' | P74: =IF(OR($C$41=2,$C$41=3),IF(P70>$F$63,$E$9,$F$9),IF(P70>$F$63,$C$9,$D$9)) -> 50.5 | Q74: =Q70 -> 0 | R74: =R70 -> 40 | V74: =$Q74*U71 -> 0 | W74: =$R74*U71 -> 40 | AA74: =$Q74*Z71 -> 0 | AB74: =$R74*Z71 -> 0 | AF74: =$Q74*AE71 -> 0 | AG74: =$R74*AE71 -> 0 | AK74: =$Q74*AJ71 -> 0 | AL74: =$R74*AJ71 -> 0
A75: Bead Width | B75: [in] | C75: 0.35 | D75: Decimal equivalent of a fraction
A76: Bead Height | B76: [in] | C76: 0.35 | D76: Decimal equivalent of a fraction | I76: Plot Sizing | L76: Actual Usable Area | O76: Row | P76: 2 | Q76: =(Q71+($D$39/12))*P77 -> 4.208333333 | R76: =(R71)*P77 -> 40 | T76: Row | U76: =U70+1 -> 2 | V76: =$Q76*U77 -> 4.208333333 | W76: =$R76*U77 -> 40 | Y76: Row | Z76: =Z70+1 -> 2 | AA76: =$Q76*Z77 -> 0 | AB76: =$R76*Z77 -> 0 | AD76: Row | AE76: =AE70+1 -> 2 | AF76: =$Q76*AE77 -> 0 | AG76: =$R76*AE77 -> 0 | AI76: Row | AJ76: =AJ70+1 -> 2 | AK76: =$Q76*AJ77 -> 0 | AL76: =$R76*AJ77 -> 0
A77: Bead Application Efficiency | B77: [%] | C77: 0.7 | D77: How much do they actually install vs required bead size | I77: X | J77: Y | L77: X | M77: Y | O77: On/Off | P77: =IF(P76>$G$63,0,1) -> 1 | Q77: =(Q76+(P80/12))*P77 -> 8.416666667 | R77: =R76 -> 40 | T77: 4' or 5' | U77: =IF($C$41=1,IF($P80<$D$9,1,0),0) -> 1 | V77: =$Q77*U77 -> 8.416666667 | W77: =$R77*U77 -> 40 | Y77: 4' or 5' | Z77: =IF($C$41=1,IF($P80<$D$9,0,1),0) -> 0 | AA77: =$Q77*Z77 -> 0 | AB77: =$R77*Z77 -> 0 | AD77: 4' or 5' | AE77: =IF($C$41=2,IF($P80<$D$9,1,0),0) -> 0 | AF77: =$Q77*AE77 -> 0 | AG77: =$R77*AE77 -> 0 | AI77: 4' or 5' | AJ77: =IF($C$41=2,IF($P80<$D$9,0,1),0) -> 0 | AK77: =$Q77*AJ77 -> 0 | AL77: =$R77*AJ77 -> 0
A78: Volume of a linear inch | B78: [in^3] | C78: =(C75*C76)*1*C77 -> 0.08575 | I78: 0 | J78: 0 | L78: =IF(C101=1,L70,IF(C101=2,(AVERAGE(L70:L71)-C97/2-C102/12),IF(C101=3,L71-C97-2*C102/12))) -> 0 | M78: =M80-C55 -> 0.25 | O78: Inside Reference | Q78: =Q77 -> 8.416666667 | R78: =(R77-$C$55)*P77 -> 0.25 | V78: =$Q78*U77 -> 8.416666667 | W78: =$R78*U77 -> 0.25 | AA78: =$Q78*Z77 -> 0 | AB78: =$R78*Z77 -> 0 | AF78: =$Q78*AE77 -> 0 | AG78: =$R78*AE77 -> 0 | AK78: =$Q78*AJ77 -> 0 | AL78: =$R78*AJ77 -> 0
A79: 1 Tube can seal (length) | B79: [in] | C79: =(C73/C78)*C74 -> 201.9705539 | I79: =I78 -> 0 | J79: =MAX(I70:J74)+1 -> 41 | L79: =L78+C97+C102/12 -> 40 | M79: =M78 -> 0.25 | O79: Outside Reference | Q79: =Q76 -> 4.208333333 | R79: =R78 -> 0.25 | V79: =$Q79*U77 -> 4.208333333 | W79: =$R79*U77 -> 0.25 | AA79: =$Q79*Z77 -> 0 | AB79: =$R79*Z77 -> 0 | AF79: =$Q79*AE77 -> 0 | AG79: =$R79*AE77 -> 0 | AK79: =$Q79*AJ77 -> 0 | AL79: =$R79*AJ77 -> 0
B80: [ft] | C80: =C79/12 -> 16.83087949 | I80: =MAX(I70:J74)+1 -> 41 | J80: =J79 -> 41 | L80: =L79 -> 40 | M80: =M72 -> 40 | O80: 4' or 5' | P80: =IF(OR($C$41=2,$C$41=3),IF(P76>$F$63,$E$9,$F$9),IF(P76>$F$63,$C$9,$D$9)) -> 50.5 | Q80: =Q76 -> 4.208333333 | R80: =R76 -> 40 | V80: =$Q80*U77 -> 4.208333333 | W80: =$R80*U77 -> 40 | AA80: =$Q80*Z77 -> 0 | AB80: =$R80*Z77 -> 0 | AF80: =$Q80*AE77 -> 0 | AG80: =$R80*AE77 -> 0 | AK80: =$Q80*AJ77 -> 0 | AL80: =$R80*AJ77 -> 0
A81: Total 4' Seams | B81: [#] | C81: =AF15 -> 0 | I81: =I80 -> 41 | J81: =J78 -> 0 | L81: =L78 -> 0 | M81: =M80 -> 40
B82: [ft] | C82: =(C81*IF(OR($C$41=1,$C$41=2),C20,E20))/12 -> 0 | I82: =I78 -> 0 | J82: =J78 -> 0 | L82: =L78 -> 0 | M82: =M78 -> 0.25 | O82: Row | P82: 3 | Q82: =(Q77+($D$39/12))*P83 -> 8.416666667 | R82: =(R77)*P83 -> 40 | T82: Row | U82: =U76+1 -> 3 | V82: =$Q82*U83 -> 8.416666667 | W82: =$R82*U83 -> 40 | Y82: Row | Z82: =Z76+1 -> 3 | AA82: =$Q82*Z83 -> 0 | AB82: =$R82*Z83 -> 0 | AD82: Row | AE82: =AE76+1 -> 3 | AF82: =$Q82*AE83 -> 0 | AG82: =$R82*AE83 -> 0 | AI82: Row | AJ82: =AJ76+1 -> 3 | AK82: =$Q82*AJ83 -> 0 | AL82: =$R82*AJ83 -> 0
A83: Total 5' Seams | B83: [#] | C83: =AF27 -> 0 | O83: On/Off | P83: =IF(P82>$G$63,0,1) -> 1 | Q83: =(Q82+(P86/12))*P83 -> 12.625 | R83: =R82 -> 40 | T83: 4' or 5' | U83: =IF($C$41=1,IF($P86<$D$9,1,0),0) -> 1 | V83: =$Q83*U83 -> 12.625 | W83: =$R83*U83 -> 40 | Y83: 4' or 5' | Z83: =IF($C$41=1,IF($P86<$D$9,0,1),0) -> 0 | AA83: =$Q83*Z83 -> 0 | AB83: =$R83*Z83 -> 0 | AD83: 4' or 5' | AE83: =IF($C$41=2,IF($P86<$D$9,1,0),0) -> 0 | AF83: =$Q83*AE83 -> 0 | AG83: =$R83*AE83 -> 0 | AI83: 4' or 5' | AJ83: =IF($C$41=2,IF($P86<$D$9,0,1),0) -> 0 | AK83: =$Q83*AJ83 -> 0 | AL83: =$R83*AJ83 -> 0
B84: [ft] | C84: =(C83*IF(OR($C$41=1,$C$41=2),D20,F20))/12 -> 0 | L84: Delta Check | O84: Inside Reference | Q84: =Q83 -> 12.625 | R84: =(R83-$C$55)*P83 -> 0.25 | V84: =$Q84*U83 -> 12.625 | W84: =$R84*U83 -> 0.25 | AA84: =$Q84*Z83 -> 0 | AB84: =$R84*Z83 -> 0 | AF84: =$Q84*AE83 -> 0 | AG84: =$R84*AE83 -> 0 | AK84: =$Q84*AJ83 -> 0 | AL84: =$R84*AJ83 -> 0
A85: Total Seam Length | B85: [ft] | C85: =C82+C84 -> 0 | L85: =L79-L78 -> 40 | M85: =M80-M79 -> 39.75 | O85: Outside Reference | Q85: =Q82 -> 8.416666667 | R85: =R84 -> 0.25 | V85: =$Q85*U83 -> 8.416666667 | W85: =$R85*U83 -> 0.25 | AA85: =$Q85*Z83 -> 0 | AB85: =$R85*Z83 -> 0 | AF85: =$Q85*AE83 -> 0 | AG85: =$R85*AE83 -> 0 | AK85: =$Q85*AJ83 -> 0 | AL85: =$R85*AJ83 -> 0
A86: Sealant Tubes Required | B86: [#] | C86: =ROUNDUP(C85/C80,0) -> 0 | D86: =C85/C80 -> 0 | E86: Raw Number | O86: 4' or 5' | P86: =IF(OR($C$41=2,$C$41=3),IF(P82>$F$63,$E$9,$F$9),IF(P82>$F$63,$C$9,$D$9)) -> 50.5 | Q86: =Q82 -> 8.416666667 | R86: =R82 -> 40 | V86: =$Q86*U83 -> 8.416666667 | W86: =$R86*U83 -> 40 | AA86: =$Q86*Z83 -> 0 | AB86: =$R86*Z83 -> 0 | AF86: =$Q86*AE83 -> 0 | AG86: =$R86*AE83 -> 0 | AK86: =$Q86*AJ83 -> 0 | AL86: =$R86*AJ83 -> 0
A87: Room Layout Calculations
A88: Distance A | B88: [in] | C88: =IF(C104=1,'Room Layout (Inputs)'!B19+7.5,IF(C104=2,'Room Layout (Inputs)'!B19+4.5)) -> 4.5 | O88: Row | P88: 4 | Q88: =(Q83+($D$39/12))*P89 -> 12.625 | R88: =(R83)*P89 -> 40 | T88: Row | U88: =U82+1 -> 4 | V88: =$Q88*U89 -> 12.625 | W88: =$R88*U89 -> 40 | Y88: Row | Z88: =Z82+1 -> 4 | AA88: =$Q88*Z89 -> 0 | AB88: =$R88*Z89 -> 0 | AD88: Row | AE88: =AE82+1 -> 4 | AF88: =$Q88*AE89 -> 0 | AG88: =$R88*AE89 -> 0 | AI88: Row | AJ88: =AJ82+1 -> 4 | AK88: =$Q88*AJ89 -> 0 | AL88: =$R88*AJ89 -> 0
A89: Distance B | B89: [in] | C89: =IF(C60=1,'Room Layout (Inputs)'!B16+Calcs!C31,IF(C60=2,'Room Layout (Inputs)'!B16+D31,IF(C60=3,IF(C111=2,'Room Layout (Inputs)'!B16+C31,IF(C111=3,'Room Layout (Inputs)'!B16+D31))))) -> 3 | O89: On/Off | P89: =IF(P88>$G$63,0,1) -> 1 | Q89: =(Q88+(P92/12))*P89 -> 16.83333333 | R89: =R88 -> 40 | T89: 4' or 5' | U89: =IF($C$41=1,IF($P92<$D$9,1,0),0) -> 1 | V89: =$Q89*U89 -> 16.83333333 | W89: =$R89*U89 -> 40 | Y89: 4' or 5' | Z89: =IF($C$41=1,IF($P92<$D$9,0,1),0) -> 0 | AA89: =$Q89*Z89 -> 0 | AB89: =$R89*Z89 -> 0 | AD89: 4' or 5' | AE89: =IF($C$41=2,IF($P92<$D$9,1,0),0) -> 0 | AF89: =$Q89*AE89 -> 0 | AG89: =$R89*AE89 -> 0 | AI89: 4' or 5' | AJ89: =IF($C$41=2,IF($P92<$D$9,0,1),0) -> 0 | AK89: =$Q89*AJ89 -> 0 | AL89: =$R89*AJ89 -> 0
A90: Distance C | B90: [in] | C90: =C97*12 -> 474 | O90: Inside Reference | Q90: =Q89 -> 16.83333333 | R90: =(R89-$C$55)*P89 -> 0.25 | V90: =$Q90*U89 -> 16.83333333 | W90: =$R90*U89 -> 0.25 | AA90: =$Q90*Z89 -> 0 | AB90: =$R90*Z89 -> 0 | AF90: =$Q90*AE89 -> 0 | AG90: =$R90*AE89 -> 0 | AK90: =$Q90*AJ89 -> 0 | AL90: =$R90*AJ89 -> 0
A91: Distance L | B91: [in] | C91: =(C54-1)*12 -> 462 | O91: Outside Reference | Q91: =Q88 -> 12.625 | R91: =R90 -> 0.25 | V91: =$Q91*U89 -> 12.625 | W91: =$R91*U89 -> 0.25 | AA91: =$Q91*Z89 -> 0 | AB91: =$R91*Z89 -> 0 | AF91: =$Q91*AE89 -> 0 | AG91: =$R91*AE89 -> 0 | AK91: =$Q91*AJ89 -> 0 | AL91: =$R91*AJ89 -> 0
A92: Distance D (not shown, for calculating right aisle) | B92: [in] | C92: =C36-C89-C90 -> 3 | O92: 4' or 5' | P92: =IF(OR($C$41=2,$C$41=3),IF(P88>$F$63,$E$9,$F$9),IF(P88>$F$63,$C$9,$D$9)) -> 50.5 | Q92: =Q88 -> 12.625 | R92: =R88 -> 40 | V92: =$Q92*U89 -> 12.625 | W92: =$R92*U89 -> 40 | AA92: =$Q92*Z89 -> 0 | AB92: =$R92*Z89 -> 0 | AF92: =$Q92*AE89 -> 0 | AG92: =$R92*AE89 -> 0 | AK92: =$Q92*AJ89 -> 0 | AL92: =$R92*AJ89 -> 0
A94: Track Length Calculations | O94: Row | P94: 5 | Q94: =(Q89+($D$39/12))*P95 -> 16.83333333 | R94: =(R89)*P95 -> 40 | T94: Row | U94: =U88+1 -> 5 | V94: =$Q94*U95 -> 16.83333333 | W94: =$R94*U95 -> 40 | Y94: Row | Z94: =Z88+1 -> 5 | AA94: =$Q94*Z95 -> 0 | AB94: =$R94*Z95 -> 0 | AD94: Row | AE94: =AE88+1 -> 5 | AF94: =$Q94*AE95 -> 0 | AG94: =$R94*AE95 -> 0 | AI94: Row | AJ94: =AJ88+1 -> 5 | AK94: =$Q94*AJ95 -> 0 | AL94: =$R94*AJ95 -> 0
A95: Number of Tracks (= number of skates) | B95: [#] | C95: =O4 -> 9 | O95: On/Off | P95: =IF(P94>$G$63,0,1) -> 1 | Q95: =(Q94+(P98/12))*P95 -> 21.04166667 | R95: =R94 -> 40 | T95: 4' or 5' | U95: =IF($C$41=1,IF($P98<$D$9,1,0),0) -> 1 | V95: =$Q95*U95 -> 21.04166667 | W95: =$R95*U95 -> 40 | Y95: 4' or 5' | Z95: =IF($C$41=1,IF($P98<$D$9,0,1),0) -> 0 | AA95: =$Q95*Z95 -> 0 | AB95: =$R95*Z95 -> 0 | AD95: 4' or 5' | AE95: =IF($C$41=2,IF($P98<$D$9,1,0),0) -> 0 | AF95: =$Q95*AE95 -> 0 | AG95: =$R95*AE95 -> 0 | AI95: 4' or 5' | AJ95: =IF($C$41=2,IF($P98<$D$9,0,1),0) -> 0 | AK95: =$Q95*AJ95 -> 0 | AL95: =$R95*AJ95 -> 0
A96: Possible Length of Tracks | B96: [ft] | C96: =IF(C60=1,C38-C31*2,IF(C60=2,C38-D31*2,IF(C60=3,IF(SUM(C111:C112)=4,C38-C31*2,IF(SUM(C111:C112)=6,C38-D31*2,IF(SUM(C111:C112)=5,C38-D31-C31,NA))))))/12 -> 39.5 | O96: Inside Reference | Q96: =Q95 -> 21.04166667 | R96: =(R95-$C$55)*P95 -> 0.25 | V96: =$Q96*U95 -> 21.04166667 | W96: =$R96*U95 -> 0.25 | AA96: =$Q96*Z95 -> 0 | AB96: =$R96*Z95 -> 0 | AF96: =$Q96*AE95 -> 0 | AG96: =$R96*AE95 -> 0 | AK96: =$Q96*AJ95 -> 0 | AL96: =$R96*AJ95 -> 0
A97: Floor of Length of Tracks | B97: [ft] | C97: =FLOOR(C96,0.5) -> 39.5 | O97: Outside Reference | Q97: =Q94 -> 16.83333333 | R97: =R96 -> 0.25 | V97: =$Q97*U95 -> 16.83333333 | W97: =$R97*U95 -> 0.25 | AA97: =$Q97*Z95 -> 0 | AB97: =$R97*Z95 -> 0 | AF97: =$Q97*AE95 -> 0 | AG97: =$R97*AE95 -> 0 | AK97: =$Q97*AJ95 -> 0 | AL97: =$R97*AJ95 -> 0
O98: 4' or 5' | P98: =IF(OR($C$41=2,$C$41=3),IF(P94>$F$63,$E$9,$F$9),IF(P94>$F$63,$C$9,$D$9)) -> 50.5 | Q98: =Q94 -> 16.83333333 | R98: 40 | V98: =$Q98*U95 -> 16.83333333 | W98: =$R98*U95 -> 40 | AA98: =$Q98*Z95 -> 0 | AB98: =$R98*Z95 -> 0 | AF98: =$Q98*AE95 -> 0 | AG98: =$R98*AE95 -> 0 | AK98: =$Q98*AJ95 -> 0 | AL98: =$R98*AJ95 -> 0
A99: Input Aisle Width Range | B99: [#] | C99: 2 | E99: 1 | F99: Left
A100: Middle Aisle, Max | B100: [in] | C100: =IF((Q365-Q364)*12<0,NA(),(Q365-Q364)*12) -> 25.5 | E100: 2 | F100: Centered | O100: Row | P100: 6 | Q100: =(Q95+($D$39/12))*P101 -> 21.04166667 | R100: =(R95)*P101 -> 40 | T100: Row | U100: =U94+1 -> 6 | V100: =$Q100*U101 -> 21.04166667 | W100: =$R100*U101 -> 40 | Y100: Row | Z100: =Z94+1 -> 6 | AA100: =$Q100*Z101 -> 0 | AB100: =$R100*Z101 -> 0 | AD100: Row | AE100: =AE94+1 -> 6 | AF100: =$Q100*AE101 -> 0 | AG100: =$R100*AE101 -> 0 | AI100: Row | AJ100: =AJ94+1 -> 6 | AK100: =$Q100*AJ101 -> 0 | AL100: =$R100*AJ101 -> 0
A101: Track Left, Centered, or Right | B101: [#] | C101: 1 | D101: <- Hardcoded | E101: 3 | F101: Right | O101: On/Off | P101: =IF(P100>$G$63,0,1) -> 1 | Q101: =(Q100+(P104/12))*P101 -> 25.25 | R101: =R100 -> 40 | T101: 4' or 5' | U101: =IF($C$41=1,IF($P104<$D$9,1,0),0) -> 1 | V101: =$Q101*U101 -> 25.25 | W101: =$R101*U101 -> 40 | Y101: 4' or 5' | Z101: =IF($C$41=1,IF($P104<$D$9,0,1),0) -> 0 | AA101: =$Q101*Z101 -> 0 | AB101: =$R101*Z101 -> 0 | AD101: 4' or 5' | AE101: =IF($C$41=2,IF($P104<$D$9,1,0),0) -> 0 | AF101: =$Q101*AE101 -> 0 | AG101: =$R101*AE101 -> 0 | AI101: 4' or 5' | AJ101: =IF($C$41=2,IF($P104<$D$9,0,1),0) -> 0 | AK101: =$Q101*AJ101 -> 0 | AL101: =$R101*AJ101 -> 0
A102: Total Overhang based on Bench Width (both benches combined) | B102: [in] | C102: =IF(C60=1,C31*2,IF(C60=2,D31*2,IF(C60=3,IF(SUM(C111:C112)=4,C31*2,IF(SUM(C111:C112)=5,C31+D31,IF(SUM(C111:C112)=6,D31*2,"")))))) -> 6 | O102: Inside Reference | Q102: =Q101 -> 25.25 | R102: =(R101-$C$55)*P101 -> 0.25 | V102: =$Q102*U101 -> 25.25 | W102: =$R102*U101 -> 0.25 | AA102: =$Q102*Z101 -> 0 | AB102: =$R102*Z101 -> 0 | AF102: =$Q102*AE101 -> 0 | AG102: =$R102*AE101 -> 0 | AK102: =$Q102*AJ101 -> 0 | AL102: =$R102*AJ101 -> 0
E103: 1 | F103: On the Drain Side | O103: Outside Reference | Q103: =Q100 -> 21.04166667 | R103: =R102 -> 0.25 | V103: =$Q103*U101 -> 21.04166667 | W103: =$R103*U101 -> 0.25 | AA103: =$Q103*Z101 -> 0 | AB103: =$R103*Z101 -> 0 | AF103: =$Q103*AE101 -> 0 | AG103: =$R103*AE101 -> 0 | AK103: =$Q103*AJ101 -> 0 | AL103: =$R103*AJ101 -> 0
A104: Handle Location | B104: [#] | C104: 2 | E104: 2 | F104: Opposite the Drain Side | O104: 4' or 5' | P104: =IF(OR($C$41=2,$C$41=3),IF(P100>$F$63,$E$9,$F$9),IF(P100>$F$63,$C$9,$D$9)) -> 50.5 | Q104: =Q100 -> 21.04166667 | R104: 40 | V104: =$Q104*U101 -> 21.04166667 | W104: =$R104*U101 -> 40 | AA104: =$Q104*Z101 -> 0 | AB104: =$R104*Z101 -> 0 | AF104: =$Q104*AE101 -> 0 | AG104: =$R104*AE101 -> 0 | AK104: =$Q104*AJ101 -> 0 | AL104: =$R104*AJ101 -> 0
A106: Left Aisle, Minimum | B106: [in] | C106: =IF(C60=1,C89-C31,IF(C60=2,C89-D31,IF(C60=3,IF(C111=2,C89-C31,IF(C111=3,C89-D31))))) -> 0 | O106: Row | P106: 7 | Q106: =(Q101+($D$39/12))*P107 -> 25.25 | R106: =(R101)*P107 -> 40 | T106: Row | U106: =U100+1 -> 7 | V106: =$Q106*U107 -> 25.25 | W106: =$R106*U107 -> 40 | Y106: Row | Z106: =Z100+1 -> 7 | AA106: =$Q106*Z107 -> 0 | AB106: =$R106*Z107 -> 0 | AD106: Row | AE106: =AE100+1 -> 7 | AF106: =$Q106*AE107 -> 0 | AG106: =$R106*AE107 -> 0 | AI106: Row | AJ106: =AJ100+1 -> 7 | AK106: =$Q106*AJ107 -> 0 | AL106: =$R106*AJ107 -> 0
A107: Left Aisle, Maximum | B107: [in] | C107: =C106+C100 -> 25.5 | O107: On/Off | P107: =IF(P106>$G$63,0,1) -> 1 | Q107: =(Q106+(P110/12))*P107 -> 29.45833333 | R107: =R106 -> 40 | T107: 4' or 5' | U107: =IF($C$41=1,IF($P110<$D$9,1,0),0) -> 1 | V107: =$Q107*U107 -> 29.45833333 | W107: =$R107*U107 -> 40 | Y107: 4' or 5' | Z107: =IF($C$41=1,IF($P110<$D$9,0,1),0) -> 0 | AA107: =$Q107*Z107 -> 0 | AB107: =$R107*Z107 -> 0 | AD107: 4' or 5' | AE107: =IF($C$41=2,IF($P110<$D$9,1,0),0) -> 0 | AF107: =$Q107*AE107 -> 0 | AG107: =$R107*AE107 -> 0 | AI107: 4' or 5' | AJ107: =IF($C$41=2,IF($P110<$D$9,0,1),0) -> 0 | AK107: =$Q107*AJ107 -> 0 | AL107: =$R107*AJ107 -> 0
A108: Right Aisle, Minimum | B108: [in] | C108: =IF(C60=1,C92-C31,IF(C60=2,C92-D31,IF(C60=3,IF(C112=2,C92-C31,IF(C112=3,C92-D31))))) -> 0 | O108: Inside Reference | Q108: =Q107 -> 29.45833333 | R108: =(R107-$C$55)*P107 -> 0.25 | V108: =$Q108*U107 -> 29.45833333 | W108: =$R108*U107 -> 0.25 | AA108: =$Q108*Z107 -> 0 | AB108: =$R108*Z107 -> 0 | AF108: =$Q108*AE107 -> 0 | AG108: =$R108*AE107 -> 0 | AK108: =$Q108*AJ107 -> 0 | AL108: =$R108*AJ107 -> 0
A109: Right Aisle, Maximum | B109: [in] | C109: =C108+C100 -> 25.5 | E109: 1 | F109: -- | O109: Outside Reference | Q109: =Q106 -> 25.25 | R109: =R108 -> 0.25 | V109: =$Q109*U107 -> 25.25 | W109: =$R109*U107 -> 0.25 | AA109: =$Q109*Z107 -> 0 | AB109: =$R109*Z107 -> 0 | AF109: =$Q109*AE107 -> 0 | AG109: =$R109*AE107 -> 0 | AK109: =$Q109*AJ107 -> 0 | AL109: =$R109*AJ107 -> 0
E110: 2 | F110: 4ft | O110: 4' or 5' | P110: =IF(OR($C$41=2,$C$41=3),IF(P106>$F$63,$E$9,$F$9),IF(P106>$F$63,$C$9,$D$9)) -> 50.5 | Q110: =Q106 -> 25.25 | R110: 40 | V110: =$Q110*U107 -> 25.25 | W110: =$R110*U107 -> 40 | AA110: =$Q110*Z107 -> 0 | AB110: =$R110*Z107 -> 0 | AF110: =$Q110*AE107 -> 0 | AG110: =$R110*AE107 -> 0 | AK110: =$Q110*AJ107 -> 0 | AL110: =$R110*AJ107 -> 0
A111: Left Bench | B111: [#] | C111: 1 | E111: 3 | F111: 5ft
A112: Right Bench | B112: [#] | C112: 1 | O112: Row | P112: 8 | Q112: =(Q107+($D$39/12))*P113 -> 29.45833333 | R112: =(R107)*P113 -> 40 | T112: Row | U112: =U106+1 -> 8 | V112: =$Q112*U113 -> 29.45833333 | W112: =$R112*U113 -> 40 | Y112: Row | Z112: =Z106+1 -> 8 | AA112: =$Q112*Z113 -> 0 | AB112: =$R112*Z113 -> 0 | AD112: Row | AE112: =AE106+1 -> 8 | AF112: =$Q112*AE113 -> 0 | AG112: =$R112*AE113 -> 0 | AI112: Row | AJ112: =AJ106+1 -> 8 | AK112: =$Q112*AJ113 -> 0 | AL112: =$R112*AJ113 -> 0
O113: On/Off | P113: =IF(P112>$G$63,0,1) -> 1 | Q113: =(Q112+(P116/12))*P113 -> 33.66666667 | R113: =R112 -> 40 | T113: 4' or 5' | U113: =IF($C$41=1,IF($P116<$D$9,1,0),0) -> 1 | V113: =$Q113*U113 -> 33.66666667 | W113: =$R113*U113 -> 40 | Y113: 4' or 5' | Z113: =IF($C$41=1,IF($P116<$D$9,0,1),0) -> 0 | AA113: =$Q113*Z113 -> 0 | AB113: =$R113*Z113 -> 0 | AD113: 4' or 5' | AE113: =IF($C$41=2,IF($P116<$D$9,1,0),0) -> 0 | AF113: =$Q113*AE113 -> 0 | AG113: =$R113*AE113 -> 0 | AI113: 4' or 5' | AJ113: =IF($C$41=2,IF($P116<$D$9,0,1),0) -> 0 | AK113: =$Q113*AJ113 -> 0 | AL113: =$R113*AJ113 -> 0
O114: Inside Reference | Q114: =Q113 -> 33.66666667 | R114: =(R113-$C$55)*P113 -> 0.25 | V114: =$Q114*U113 -> 33.66666667 | W114: =$R114*U113 -> 0.25 | AA114: =$Q114*Z113 -> 0 | AB114: =$R114*Z113 -> 0 | AF114: =$Q114*AE113 -> 0 | AG114: =$R114*AE113 -> 0 | AK114: =$Q114*AJ113 -> 0 | AL114: =$R114*AJ113 -> 0
O115: Outside Reference | Q115: =Q112 -> 29.45833333 | R115: =R114 -> 0.25 | V115: =$Q115*U113 -> 29.45833333 | W115: =$R115*U113 -> 0.25 | AA115: =$Q115*Z113 -> 0 | AB115: =$R115*Z113 -> 0 | AF115: =$Q115*AE113 -> 0 | AG115: =$R115*AE113 -> 0 | AK115: =$Q115*AJ113 -> 0 | AL115: =$R115*AJ113 -> 0
O116: 4' or 5' | P116: =IF(OR($C$41=2,$C$41=3),IF(P112>$F$63,$E$9,$F$9),IF(P112>$F$63,$C$9,$D$9)) -> 50.5 | Q116: =Q112 -> 29.45833333 | R116: 40 | V116: =$Q116*U113 -> 29.45833333 | W116: =$R116*U113 -> 40 | AA116: =$Q116*Z113 -> 0 | AB116: =$R116*Z113 -> 0 | AF116: =$Q116*AE113 -> 0 | AG116: =$R116*AE113 -> 0 | AK116: =$Q116*AJ113 -> 0 | AL116: =$R116*AJ113 -> 0
O118: Row | P118: 9 | Q118: =(Q113+($D$39/12))*P119 -> 33.66666667 | R118: =(R113)*P119 -> 40 | T118: Row | U118: =U112+1 -> 9 | V118: =$Q118*U119 -> 33.66666667 | W118: =$R118*U119 -> 40 | Y118: Row | Z118: =Z112+1 -> 9 | AA118: =$Q118*Z119 -> 0 | AB118: =$R118*Z119 -> 0 | AD118: Row | AE118: =AE112+1 -> 9 | AF118: =$Q118*AE119 -> 0 | AG118: =$R118*AE119 -> 0 | AI118: Row | AJ118: =AJ112+1 -> 9 | AK118: =$Q118*AJ119 -> 0 | AL118: =$R118*AJ119 -> 0
O119: On/Off | P119: =IF(P118>$G$63,0,1) -> 1 | Q119: =(Q118+(P122/12))*P119 -> 37.875 | R119: =R118 -> 40 | T119: 4' or 5' | U119: =IF($C$41=1,IF($P122<$D$9,1,0),0) -> 1 | V119: =$Q119*U119 -> 37.875 | W119: =$R119*U119 -> 40 | Y119: 4' or 5' | Z119: =IF($C$41=1,IF($P122<$D$9,0,1),0) -> 0 | AA119: =$Q119*Z119 -> 0 | AB119: =$R119*Z119 -> 0 | AD119: 4' or 5' | AE119: =IF($C$41=2,IF($P122<$D$9,1,0),0) -> 0 | AF119: =$Q119*AE119 -> 0 | AG119: =$R119*AE119 -> 0 | AI119: 4' or 5' | AJ119: =IF($C$41=2,IF($P122<$D$9,0,1),0) -> 0 | AK119: =$Q119*AJ119 -> 0 | AL119: =$R119*AJ119 -> 0
O120: Inside Reference | Q120: =Q119 -> 37.875 | R120: =(R119-$C$55)*P119 -> 0.25 | V120: =$Q120*U119 -> 37.875 | W120: =$R120*U119 -> 0.25 | AA120: =$Q120*Z119 -> 0 | AB120: =$R120*Z119 -> 0 | AF120: =$Q120*AE119 -> 0 | AG120: =$R120*AE119 -> 0 | AK120: =$Q120*AJ119 -> 0 | AL120: =$R120*AJ119 -> 0
O121: Outside Reference | Q121: =Q118 -> 33.66666667 | R121: =R120 -> 0.25 | V121: =$Q121*U119 -> 33.66666667 | W121: =$R121*U119 -> 0.25 | AA121: =$Q121*Z119 -> 0 | AB121: =$R121*Z119 -> 0 | AF121: =$Q121*AE119 -> 0 | AG121: =$R121*AE119 -> 0 | AK121: =$Q121*AJ119 -> 0 | AL121: =$R121*AJ119 -> 0
O122: 4' or 5' | P122: =IF(OR($C$41=2,$C$41=3),IF(P118>$F$63,$E$9,$F$9),IF(P118>$F$63,$C$9,$D$9)) -> 50.5 | Q122: =Q118 -> 33.66666667 | R122: 40 | V122: =$Q122*U119 -> 33.66666667 | W122: =$R122*U119 -> 40 | AA122: =$Q122*Z119 -> 0 | AB122: =$R122*Z119 -> 0 | AF122: =$Q122*AE119 -> 0 | AG122: =$R122*AE119 -> 0 | AK122: =$Q122*AJ119 -> 0 | AL122: =$R122*AJ119 -> 0
O124: Row | P124: 10 | Q124: =(Q119+($D$39/12))*P125 -> 0 | R124: =(R119)*P125 -> 0 | T124: Row | U124: =U118+1 -> 10 | V124: =$Q124*U125 -> 0 | W124: =$R124*U125 -> 0 | Y124: Row | Z124: =Z118+1 -> 10 | AA124: =$Q124*Z125 -> 0 | AB124: =$R124*Z125 -> 0 | AD124: Row | AE124: =AE118+1 -> 10 | AF124: =$Q124*AE125 -> 0 | AG124: =$R124*AE125 -> 0 | AI124: Row | AJ124: =AJ118+1 -> 10 | AK124: =$Q124*AJ125 -> 0 | AL124: =$R124*AJ125 -> 0
O125: On/Off | P125: =IF(P124>$G$63,0,1) -> 0 | Q125: =(Q124+(P128/12))*P125 -> 0 | R125: =R124 -> 0 | T125: 4' or 5' | U125: =IF($C$41=1,IF($P128<$D$9,1,0),0) -> 1 | V125: =$Q125*U125 -> 0 | W125: =$R125*U125 -> 0 | Y125: 4' or 5' | Z125: =IF($C$41=1,IF($P128<$D$9,0,1),0) -> 0 | AA125: =$Q125*Z125 -> 0 | AB125: =$R125*Z125 -> 0 | AD125: 4' or 5' | AE125: =IF($C$41=2,IF($P128<$D$9,1,0),0) -> 0 | AF125: =$Q125*AE125 -> 0 | AG125: =$R125*AE125 -> 0 | AI125: 4' or 5' | AJ125: =IF($C$41=2,IF($P128<$D$9,0,1),0) -> 0 | AK125: =$Q125*AJ125 -> 0 | AL125: =$R125*AJ125 -> 0
O126: Inside Reference | Q126: =Q125 -> 0 | R126: =(R125-$C$55)*P125 -> 0 | V126: =$Q126*U125 -> 0 | W126: =$R126*U125 -> 0 | AA126: =$Q126*Z125 -> 0 | AB126: =$R126*Z125 -> 0 | AF126: =$Q126*AE125 -> 0 | AG126: =$R126*AE125 -> 0 | AK126: =$Q126*AJ125 -> 0 | AL126: =$R126*AJ125 -> 0
O127: Outside Reference | Q127: =Q124 -> 0 | R127: =R126 -> 0 | V127: =$Q127*U125 -> 0 | W127: =$R127*U125 -> 0 | AA127: =$Q127*Z125 -> 0 | AB127: =$R127*Z125 -> 0 | AF127: =$Q127*AE125 -> 0 | AG127: =$R127*AE125 -> 0 | AK127: =$Q127*AJ125 -> 0 | AL127: =$R127*AJ125 -> 0
O128: 4' or 5' | P128: =IF(OR($C$41=2,$C$41=3),IF(P124>$F$63,$E$9,$F$9),IF(P124>$F$63,$C$9,$D$9)) -> 50.5 | Q128: =Q124 -> 0 | R128: 0 | V128: =$Q128*U125 -> 0 | W128: =$R128*U125 -> 0 | AA128: =$Q128*Z125 -> 0 | AB128: =$R128*Z125 -> 0 | AF128: =$Q128*AE125 -> 0 | AG128: =$R128*AE125 -> 0 | AK128: =$Q128*AJ125 -> 0 | AL128: =$R128*AJ125 -> 0
O130: Row | P130: 11 | Q130: =(Q125+($D$39/12))*P131 -> 0 | R130: =(R125)*P131 -> 0 | T130: Row | U130: =U124+1 -> 11 | V130: =$Q130*U131 -> 0 | W130: =$R130*U131 -> 0 | Y130: Row | Z130: =Z124+1 -> 11 | AA130: =$Q130*Z131 -> 0 | AB130: =$R130*Z131 -> 0 | AD130: Row | AE130: =AE124+1 -> 11 | AF130: =$Q130*AE131 -> 0 | AG130: =$R130*AE131 -> 0 | AI130: Row | AJ130: =AJ124+1 -> 11 | AK130: =$Q130*AJ131 -> 0 | AL130: =$R130*AJ131 -> 0
O131: On/Off | P131: =IF(P130>$G$63,0,1) -> 0 | Q131: =(Q130+(P134/12))*P131 -> 0 | R131: =R130 -> 0 | T131: 4' or 5' | U131: =IF($C$41=1,IF($P134<$D$9,1,0),0) -> 1 | V131: =$Q131*U131 -> 0 | W131: =$R131*U131 -> 0 | Y131: 4' or 5' | Z131: =IF($C$41=1,IF($P134<$D$9,0,1),0) -> 0 | AA131: =$Q131*Z131 -> 0 | AB131: =$R131*Z131 -> 0 | AD131: 4' or 5' | AE131: =IF($C$41=2,IF($P134<$D$9,1,0),0) -> 0 | AF131: =$Q131*AE131 -> 0 | AG131: =$R131*AE131 -> 0 | AI131: 4' or 5' | AJ131: =IF($C$41=2,IF($P134<$D$9,0,1),0) -> 0 | AK131: =$Q131*AJ131 -> 0 | AL131: =$R131*AJ131 -> 0
O132: Inside Reference | Q132: =Q131 -> 0 | R132: =(R131-$C$55)*P131 -> 0 | V132: =$Q132*U131 -> 0 | W132: =$R132*U131 -> 0 | AA132: =$Q132*Z131 -> 0 | AB132: =$R132*Z131 -> 0 | AF132: =$Q132*AE131 -> 0 | AG132: =$R132*AE131 -> 0 | AK132: =$Q132*AJ131 -> 0 | AL132: =$R132*AJ131 -> 0
O133: Outside Reference | Q133: =Q130 -> 0 | R133: =R132 -> 0 | V133: =$Q133*U131 -> 0 | W133: =$R133*U131 -> 0 | AA133: =$Q133*Z131 -> 0 | AB133: =$R133*Z131 -> 0 | AF133: =$Q133*AE131 -> 0 | AG133: =$R133*AE131 -> 0 | AK133: =$Q133*AJ131 -> 0 | AL133: =$R133*AJ131 -> 0
O134: 4' or 5' | P134: =IF(OR($C$41=2,$C$41=3),IF(P130>$F$63,$E$9,$F$9),IF(P130>$F$63,$C$9,$D$9)) -> 50.5 | Q134: =Q130 -> 0 | R134: 0 | V134: =$Q134*U131 -> 0 | W134: =$R134*U131 -> 0 | AA134: =$Q134*Z131 -> 0 | AB134: =$R134*Z131 -> 0 | AF134: =$Q134*AE131 -> 0 | AG134: =$R134*AE131 -> 0 | AK134: =$Q134*AJ131 -> 0 | AL134: =$R134*AJ131 -> 0
O136: Row | P136: 12 | Q136: =(Q131+($D$39/12))*P137 -> 0 | R136: =(R131)*P137 -> 0 | T136: Row | U136: =U130+1 -> 12 | V136: =$Q136*U137 -> 0 | W136: =$R136*U137 -> 0 | Y136: Row | Z136: =Z130+1 -> 12 | AA136: =$Q136*Z137 -> 0 | AB136: =$R136*Z137 -> 0 | AD136: Row | AE136: =AE130+1 -> 12 | AF136: =$Q136*AE137 -> 0 | AG136: =$R136*AE137 -> 0 | AI136: Row | AJ136: =AJ130+1 -> 12 | AK136: =$Q136*AJ137 -> 0 | AL136: =$R136*AJ137 -> 0
O137: On/Off | P137: =IF(P136>$G$63,0,1) -> 0 | Q137: =(Q136+(P140/12))*P137 -> 0 | R137: =R136 -> 0 | T137: 4' or 5' | U137: =IF($C$41=1,IF($P140<$D$9,1,0),0) -> 1 | V137: =$Q137*U137 -> 0 | W137: =$R137*U137 -> 0 | Y137: 4' or 5' | Z137: =IF($C$41=1,IF($P140<$D$9,0,1),0) -> 0 | AA137: =$Q137*Z137 -> 0 | AB137: =$R137*Z137 -> 0 | AD137: 4' or 5' | AE137: =IF($C$41=2,IF($P140<$D$9,1,0),0) -> 0 | AF137: =$Q137*AE137 -> 0 | AG137: =$R137*AE137 -> 0 | AI137: 4' or 5' | AJ137: =IF($C$41=2,IF($P140<$D$9,0,1),0) -> 0 | AK137: =$Q137*AJ137 -> 0 | AL137: =$R137*AJ137 -> 0
O138: Inside Reference | Q138: =Q137 -> 0 | R138: =(R137-$C$55)*P137 -> 0 | V138: =$Q138*U137 -> 0 | W138: =$R138*U137 -> 0 | AA138: =$Q138*Z137 -> 0 | AB138: =$R138*Z137 -> 0 | AF138: =$Q138*AE137 -> 0 | AG138: =$R138*AE137 -> 0 | AK138: =$Q138*AJ137 -> 0 | AL138: =$R138*AJ137 -> 0
O139: Outside Reference | Q139: =Q136 -> 0 | R139: =R138 -> 0 | V139: =$Q139*U137 -> 0 | W139: =$R139*U137 -> 0 | AA139: =$Q139*Z137 -> 0 | AB139: =$R139*Z137 -> 0 | AF139: =$Q139*AE137 -> 0 | AG139: =$R139*AE137 -> 0 | AK139: =$Q139*AJ137 -> 0 | AL139: =$R139*AJ137 -> 0
O140: 4' or 5' | P140: =IF(OR($C$41=2,$C$41=3),IF(P136>$F$63,$E$9,$F$9),IF(P136>$F$63,$C$9,$D$9)) -> 50.5 | Q140: =Q136 -> 0 | R140: 0 | V140: =$Q140*U137 -> 0 | W140: =$R140*U137 -> 0 | AA140: =$Q140*Z137 -> 0 | AB140: =$R140*Z137 -> 0 | AF140: =$Q140*AE137 -> 0 | AG140: =$R140*AE137 -> 0 | AK140: =$Q140*AJ137 -> 0 | AL140: =$R140*AJ137 -> 0
O142: Row | P142: 13 | Q142: =(Q137+($D$39/12))*P143 -> 0 | R142: =(R137)*P143 -> 0 | T142: Row | U142: =U136+1 -> 13 | V142: =$Q142*U143 -> 0 | W142: =$R142*U143 -> 0 | Y142: Row | Z142: =Z136+1 -> 13 | AA142: =$Q142*Z143 -> 0 | AB142: =$R142*Z143 -> 0 | AD142: Row | AE142: =AE136+1 -> 13 | AF142: =$Q142*AE143 -> 0 | AG142: =$R142*AE143 -> 0 | AI142: Row | AJ142: =AJ136+1 -> 13 | AK142: =$Q142*AJ143 -> 0 | AL142: =$R142*AJ143 -> 0
O143: On/Off | P143: =IF(P142>$G$63,0,1) -> 0 | Q143: =(Q142+(P146/12))*P143 -> 0 | R143: =R142 -> 0 | T143: 4' or 5' | U143: =IF($C$41=1,IF($P146<$D$9,1,0),0) -> 1 | V143: =$Q143*U143 -> 0 | W143: =$R143*U143 -> 0 | Y143: 4' or 5' | Z143: =IF($C$41=1,IF($P146<$D$9,0,1),0) -> 0 | AA143: =$Q143*Z143 -> 0 | AB143: =$R143*Z143 -> 0 | AD143: 4' or 5' | AE143: =IF($C$41=2,IF($P146<$D$9,1,0),0) -> 0 | AF143: =$Q143*AE143 -> 0 | AG143: =$R143*AE143 -> 0 | AI143: 4' or 5' | AJ143: =IF($C$41=2,IF($P146<$D$9,0,1),0) -> 0 | AK143: =$Q143*AJ143 -> 0 | AL143: =$R143*AJ143 -> 0
O144: Inside Reference | Q144: =Q143 -> 0 | R144: =(R143-$C$55)*P143 -> 0 | V144: =$Q144*U143 -> 0 | W144: =$R144*U143 -> 0 | AA144: =$Q144*Z143 -> 0 | AB144: =$R144*Z143 -> 0 | AF144: =$Q144*AE143 -> 0 | AG144: =$R144*AE143 -> 0 | AK144: =$Q144*AJ143 -> 0 | AL144: =$R144*AJ143 -> 0
O145: Outside Reference | Q145: =Q142 -> 0 | R145: =R144 -> 0 | V145: =$Q145*U143 -> 0 | W145: =$R145*U143 -> 0 | AA145: =$Q145*Z143 -> 0 | AB145: =$R145*Z143 -> 0 | AF145: =$Q145*AE143 -> 0 | AG145: =$R145*AE143 -> 0 | AK145: =$Q145*AJ143 -> 0 | AL145: =$R145*AJ143 -> 0
O146: 4' or 5' | P146: =IF(OR($C$41=2,$C$41=3),IF(P142>$F$63,$E$9,$F$9),IF(P142>$F$63,$C$9,$D$9)) -> 50.5 | Q146: =Q142 -> 0 | R146: 0 | V146: =$Q146*U143 -> 0 | W146: =$R146*U143 -> 0 | AA146: =$Q146*Z143 -> 0 | AB146: =$R146*Z143 -> 0 | AF146: =$Q146*AE143 -> 0 | AG146: =$R146*AE143 -> 0 | AK146: =$Q146*AJ143 -> 0 | AL146: =$R146*AJ143 -> 0
O148: Row | P148: 14 | Q148: =(Q143+($D$39/12))*P149 -> 0 | R148: =(R143)*P149 -> 0 | T148: Row | U148: =U142+1 -> 14 | V148: =$Q148*U149 -> 0 | W148: =$R148*U149 -> 0 | Y148: Row | Z148: =Z142+1 -> 14 | AA148: =$Q148*Z149 -> 0 | AB148: =$R148*Z149 -> 0 | AD148: Row | AE148: =AE142+1 -> 14 | AF148: =$Q148*AE149 -> 0 | AG148: =$R148*AE149 -> 0 | AI148: Row | AJ148: =AJ142+1 -> 14 | AK148: =$Q148*AJ149 -> 0 | AL148: =$R148*AJ149 -> 0
O149: On/Off | P149: =IF(P148>$G$63,0,1) -> 0 | Q149: =(Q148+(P152/12))*P149 -> 0 | R149: =R148 -> 0 | T149: 4' or 5' | U149: =IF($C$41=1,IF($P152<$D$9,1,0),0) -> 1 | V149: =$Q149*U149 -> 0 | W149: =$R149*U149 -> 0 | Y149: 4' or 5' | Z149: =IF($C$41=1,IF($P152<$D$9,0,1),0) -> 0 | AA149: =$Q149*Z149 -> 0 | AB149: =$R149*Z149 -> 0 | AD149: 4' or 5' | AE149: =IF($C$41=2,IF($P152<$D$9,1,0),0) -> 0 | AF149: =$Q149*AE149 -> 0 | AG149: =$R149*AE149 -> 0 | AI149: 4' or 5' | AJ149: =IF($C$41=2,IF($P152<$D$9,0,1),0) -> 0 | AK149: =$Q149*AJ149 -> 0 | AL149: =$R149*AJ149 -> 0
O150: Inside Reference | Q150: =Q149 -> 0 | R150: =(R149-$C$55)*P149 -> 0 | V150: =$Q150*U149 -> 0 | W150: =$R150*U149 -> 0 | AA150: =$Q150*Z149 -> 0 | AB150: =$R150*Z149 -> 0 | AF150: =$Q150*AE149 -> 0 | AG150: =$R150*AE149 -> 0 | AK150: =$Q150*AJ149 -> 0 | AL150: =$R150*AJ149 -> 0
O151: Outside Reference | Q151: =Q148 -> 0 | R151: =R150 -> 0 | V151: =$Q151*U149 -> 0 | W151: =$R151*U149 -> 0 | AA151: =$Q151*Z149 -> 0 | AB151: =$R151*Z149 -> 0 | AF151: =$Q151*AE149 -> 0 | AG151: =$R151*AE149 -> 0 | AK151: =$Q151*AJ149 -> 0 | AL151: =$R151*AJ149 -> 0
O152: 4' or 5' | P152: =IF(OR($C$41=2,$C$41=3),IF(P148>$F$63,$E$9,$F$9),IF(P148>$F$63,$C$9,$D$9)) -> 50.5 | Q152: =Q148 -> 0 | R152: 0 | V152: =$Q152*U149 -> 0 | W152: =$R152*U149 -> 0 | AA152: =$Q152*Z149 -> 0 | AB152: =$R152*Z149 -> 0 | AF152: =$Q152*AE149 -> 0 | AG152: =$R152*AE149 -> 0 | AK152: =$Q152*AJ149 -> 0 | AL152: =$R152*AJ149 -> 0
O154: Row | P154: 15 | Q154: =(Q149+($D$39/12))*P155 -> 0 | R154: =(R149)*P155 -> 0 | T154: Row | U154: =U148+1 -> 15 | V154: =$Q154*U155 -> 0 | W154: =$R154*U155 -> 0 | Y154: Row | Z154: =Z148+1 -> 15 | AA154: =$Q154*Z155 -> 0 | AB154: =$R154*Z155 -> 0 | AD154: Row | AE154: =AE148+1 -> 15 | AF154: =$Q154*AE155 -> 0 | AG154: =$R154*AE155 -> 0 | AI154: Row | AJ154: =AJ148+1 -> 15 | AK154: =$Q154*AJ155 -> 0 | AL154: =$R154*AJ155 -> 0
O155: On/Off | P155: =IF(P154>$G$63,0,1) -> 0 | Q155: =(Q154+(P158/12))*P155 -> 0 | R155: =R154 -> 0 | T155: 4' or 5' | U155: =IF($C$41=1,IF($P158<$D$9,1,0),0) -> 1 | V155: =$Q155*U155 -> 0 | W155: =$R155*U155 -> 0 | Y155: 4' or 5' | Z155: =IF($C$41=1,IF($P158<$D$9,0,1),0) -> 0 | AA155: =$Q155*Z155 -> 0 | AB155: =$R155*Z155 -> 0 | AD155: 4' or 5' | AE155: =IF($C$41=2,IF($P158<$D$9,1,0),0) -> 0 | AF155: =$Q155*AE155 -> 0 | AG155: =$R155*AE155 -> 0 | AI155: 4' or 5' | AJ155: =IF($C$41=2,IF($P158<$D$9,0,1),0) -> 0 | AK155: =$Q155*AJ155 -> 0 | AL155: =$R155*AJ155 -> 0
O156: Inside Reference | Q156: =Q155 -> 0 | R156: =(R155-$C$55)*P155 -> 0 | V156: =$Q156*U155 -> 0 | W156: =$R156*U155 -> 0 | AA156: =$Q156*Z155 -> 0 | AB156: =$R156*Z155 -> 0 | AF156: =$Q156*AE155 -> 0 | AG156: =$R156*AE155 -> 0 | AK156: =$Q156*AJ155 -> 0 | AL156: =$R156*AJ155 -> 0
O157: Outside Reference | Q157: =Q154 -> 0 | R157: =R156 -> 0 | V157: =$Q157*U155 -> 0 | W157: =$R157*U155 -> 0 | AA157: =$Q157*Z155 -> 0 | AB157: =$R157*Z155 -> 0 | AF157: =$Q157*AE155 -> 0 | AG157: =$R157*AE155 -> 0 | AK157: =$Q157*AJ155 -> 0 | AL157: =$R157*AJ155 -> 0
O158: 4' or 5' | P158: =IF(OR($C$41=2,$C$41=3),IF(P154>$F$63,$E$9,$F$9),IF(P154>$F$63,$C$9,$D$9)) -> 50.5 | Q158: =Q154 -> 0 | R158: 0 | V158: =$Q158*U155 -> 0 | W158: =$R158*U155 -> 0 | AA158: =$Q158*Z155 -> 0 | AB158: =$R158*Z155 -> 0 | AF158: =$Q158*AE155 -> 0 | AG158: =$R158*AE155 -> 0 | AK158: =$Q158*AJ155 -> 0 | AL158: =$R158*AJ155 -> 0
O160: Row | P160: 16 | Q160: =(Q155+($D$39/12))*P161 -> 0 | R160: =(R155)*P161 -> 0 | T160: Row | U160: =U154+1 -> 16 | V160: =$Q160*U161 -> 0 | W160: =$R160*U161 -> 0 | Y160: Row | Z160: =Z154+1 -> 16 | AA160: =$Q160*Z161 -> 0 | AB160: =$R160*Z161 -> 0 | AD160: Row | AE160: =AE154+1 -> 16 | AF160: =$Q160*AE161 -> 0 | AG160: =$R160*AE161 -> 0 | AI160: Row | AJ160: =AJ154+1 -> 16 | AK160: =$Q160*AJ161 -> 0 | AL160: =$R160*AJ161 -> 0
O161: On/Off | P161: =IF(P160>$G$63,0,1) -> 0 | Q161: =(Q160+(P164/12))*P161 -> 0 | R161: =R160 -> 0 | T161: 4' or 5' | U161: =IF($C$41=1,IF($P164<$D$9,1,0),0) -> 1 | V161: =$Q161*U161 -> 0 | W161: =$R161*U161 -> 0 | Y161: 4' or 5' | Z161: =IF($C$41=1,IF($P164<$D$9,0,1),0) -> 0 | AA161: =$Q161*Z161 -> 0 | AB161: =$R161*Z161 -> 0 | AD161: 4' or 5' | AE161: =IF($C$41=2,IF($P164<$D$9,1,0),0) -> 0 | AF161: =$Q161*AE161 -> 0 | AG161: =$R161*AE161 -> 0 | AI161: 4' or 5' | AJ161: =IF($C$41=2,IF($P164<$D$9,0,1),0) -> 0 | AK161: =$Q161*AJ161 -> 0 | AL161: =$R161*AJ161 -> 0
O162: Inside Reference | Q162: =Q161 -> 0 | R162: =(R161-$C$55)*P161 -> 0 | V162: =$Q162*U161 -> 0 | W162: =$R162*U161 -> 0 | AA162: =$Q162*Z161 -> 0 | AB162: =$R162*Z161 -> 0 | AF162: =$Q162*AE161 -> 0 | AG162: =$R162*AE161 -> 0 | AK162: =$Q162*AJ161 -> 0 | AL162: =$R162*AJ161 -> 0
O163: Outside Reference | Q163: =Q160 -> 0 | R163: =R162 -> 0 | V163: =$Q163*U161 -> 0 | W163: =$R163*U161 -> 0 | AA163: =$Q163*Z161 -> 0 | AB163: =$R163*Z161 -> 0 | AF163: =$Q163*AE161 -> 0 | AG163: =$R163*AE161 -> 0 | AK163: =$Q163*AJ161 -> 0 | AL163: =$R163*AJ161 -> 0
O164: 4' or 5' | P164: =IF(OR($C$41=2,$C$41=3),IF(P160>$F$63,$E$9,$F$9),IF(P160>$F$63,$C$9,$D$9)) -> 50.5 | Q164: =Q160 -> 0 | R164: 0 | V164: =$Q164*U161 -> 0 | W164: =$R164*U161 -> 0 | AA164: =$Q164*Z161 -> 0 | AB164: =$R164*Z161 -> 0 | AF164: =$Q164*AE161 -> 0 | AG164: =$R164*AE161 -> 0 | AK164: =$Q164*AJ161 -> 0 | AL164: =$R164*AJ161 -> 0
O166: Row | P166: 17 | Q166: =(Q161+($D$39/12))*P167 -> 0 | R166: =(R161)*P167 -> 0 | T166: Row | U166: =U160+1 -> 17 | V166: =$Q166*U167 -> 0 | W166: =$R166*U167 -> 0 | Y166: Row | Z166: =Z160+1 -> 17 | AA166: =$Q166*Z167 -> 0 | AB166: =$R166*Z167 -> 0 | AD166: Row | AE166: =AE160+1 -> 17 | AF166: =$Q166*AE167 -> 0 | AG166: =$R166*AE167 -> 0 | AI166: Row | AJ166: =AJ160+1 -> 17 | AK166: =$Q166*AJ167 -> 0 | AL166: =$R166*AJ167 -> 0
O167: On/Off | P167: =IF(P166>$G$63,0,1) -> 0 | Q167: =(Q166+(P170/12))*P167 -> 0 | R167: =R166 -> 0 | T167: 4' or 5' | U167: =IF($C$41=1,IF($P170<$D$9,1,0),0) -> 1 | V167: =$Q167*U167 -> 0 | W167: =$R167*U167 -> 0 | Y167: 4' or 5' | Z167: =IF($C$41=1,IF($P170<$D$9,0,1),0) -> 0 | AA167: =$Q167*Z167 -> 0 | AB167: =$R167*Z167 -> 0 | AD167: 4' or 5' | AE167: =IF($C$41=2,IF($P170<$D$9,1,0),0) -> 0 | AF167: =$Q167*AE167 -> 0 | AG167: =$R167*AE167 -> 0 | AI167: 4' or 5' | AJ167: =IF($C$41=2,IF($P170<$D$9,0,1),0) -> 0 | AK167: =$Q167*AJ167 -> 0 | AL167: =$R167*AJ167 -> 0
O168: Inside Reference | Q168: =Q167 -> 0 | R168: =(R167-$C$55)*P167 -> 0 | V168: =$Q168*U167 -> 0 | W168: =$R168*U167 -> 0 | AA168: =$Q168*Z167 -> 0 | AB168: =$R168*Z167 -> 0 | AF168: =$Q168*AE167 -> 0 | AG168: =$R168*AE167 -> 0 | AK168: =$Q168*AJ167 -> 0 | AL168: =$R168*AJ167 -> 0
O169: Outside Reference | Q169: =Q166 -> 0 | R169: =R168 -> 0 | V169: =$Q169*U167 -> 0 | W169: =$R169*U167 -> 0 | AA169: =$Q169*Z167 -> 0 | AB169: =$R169*Z167 -> 0 | AF169: =$Q169*AE167 -> 0 | AG169: =$R169*AE167 -> 0 | AK169: =$Q169*AJ167 -> 0 | AL169: =$R169*AJ167 -> 0
O170: 4' or 5' | P170: =IF(OR($C$41=2,$C$41=3),IF(P166>$F$63,$E$9,$F$9),IF(P166>$F$63,$C$9,$D$9)) -> 50.5 | Q170: =Q166 -> 0 | R170: 0 | V170: =$Q170*U167 -> 0 | W170: =$R170*U167 -> 0 | AA170: =$Q170*Z167 -> 0 | AB170: =$R170*Z167 -> 0 | AF170: =$Q170*AE167 -> 0 | AG170: =$R170*AE167 -> 0 | AK170: =$Q170*AJ167 -> 0 | AL170: =$R170*AJ167 -> 0
O172: Row | P172: 18 | Q172: =(Q167+($D$39/12))*P173 -> 0 | R172: =(R167)*P173 -> 0 | T172: Row | U172: =U166+1 -> 18 | V172: =$Q172*U173 -> 0 | W172: =$R172*U173 -> 0 | Y172: Row | Z172: =Z166+1 -> 18 | AA172: =$Q172*Z173 -> 0 | AB172: =$R172*Z173 -> 0 | AD172: Row | AE172: =AE166+1 -> 18 | AF172: =$Q172*AE173 -> 0 | AG172: =$R172*AE173 -> 0 | AI172: Row | AJ172: =AJ166+1 -> 18 | AK172: =$Q172*AJ173 -> 0 | AL172: =$R172*AJ173 -> 0
O173: On/Off | P173: =IF(P172>$G$63,0,1) -> 0 | Q173: =(Q172+(P176/12))*P173 -> 0 | R173: =R172 -> 0 | T173: 4' or 5' | U173: =IF($C$41=1,IF($P176<$D$9,1,0),0) -> 1 | V173: =$Q173*U173 -> 0 | W173: =$R173*U173 -> 0 | Y173: 4' or 5' | Z173: =IF($C$41=1,IF($P176<$D$9,0,1),0) -> 0 | AA173: =$Q173*Z173 -> 0 | AB173: =$R173*Z173 -> 0 | AD173: 4' or 5' | AE173: =IF($C$41=2,IF($P176<$D$9,1,0),0) -> 0 | AF173: =$Q173*AE173 -> 0 | AG173: =$R173*AE173 -> 0 | AI173: 4' or 5' | AJ173: =IF($C$41=2,IF($P176<$D$9,0,1),0) -> 0 | AK173: =$Q173*AJ173 -> 0 | AL173: =$R173*AJ173 -> 0
O174: Inside Reference | Q174: =Q173 -> 0 | R174: =(R173-$C$55)*P173 -> 0 | V174: =$Q174*U173 -> 0 | W174: =$R174*U173 -> 0 | AA174: =$Q174*Z173 -> 0 | AB174: =$R174*Z173 -> 0 | AF174: =$Q174*AE173 -> 0 | AG174: =$R174*AE173 -> 0 | AK174: =$Q174*AJ173 -> 0 | AL174: =$R174*AJ173 -> 0
O175: Outside Reference | Q175: =Q172 -> 0 | R175: =R174 -> 0 | V175: =$Q175*U173 -> 0 | W175: =$R175*U173 -> 0 | AA175: =$Q175*Z173 -> 0 | AB175: =$R175*Z173 -> 0 | AF175: =$Q175*AE173 -> 0 | AG175: =$R175*AE173 -> 0 | AK175: =$Q175*AJ173 -> 0 | AL175: =$R175*AJ173 -> 0
O176: 4' or 5' | P176: =IF(OR($C$41=2,$C$41=3),IF(P172>$F$63,$E$9,$F$9),IF(P172>$F$63,$C$9,$D$9)) -> 50.5 | Q176: =Q172 -> 0 | R176: 0 | V176: =$Q176*U173 -> 0 | W176: =$R176*U173 -> 0 | AA176: =$Q176*Z173 -> 0 | AB176: =$R176*Z173 -> 0 | AF176: =$Q176*AE173 -> 0 | AG176: =$R176*AE173 -> 0 | AK176: =$Q176*AJ173 -> 0 | AL176: =$R176*AJ173 -> 0
O178: Row | P178: 19 | Q178: =(Q173+($D$39/12))*P179 -> 0 | R178: =(R173)*P179 -> 0 | T178: Row | U178: =U172+1 -> 19 | V178: =$Q178*U179 -> 0 | W178: =$R178*U179 -> 0 | Y178: Row | Z178: =Z172+1 -> 19 | AA178: =$Q178*Z179 -> 0 | AB178: =$R178*Z179 -> 0 | AD178: Row | AE178: =AE172+1 -> 19 | AF178: =$Q178*AE179 -> 0 | AG178: =$R178*AE179 -> 0 | AI178: Row | AJ178: =AJ172+1 -> 19 | AK178: =$Q178*AJ179 -> 0 | AL178: =$R178*AJ179 -> 0
O179: On/Off | P179: =IF(P178>$G$63,0,1) -> 0 | Q179: =(Q178+(P182/12))*P179 -> 0 | R179: =R178 -> 0 | T179: 4' or 5' | U179: =IF($C$41=1,IF($P182<$D$9,1,0),0) -> 1 | V179: =$Q179*U179 -> 0 | W179: =$R179*U179 -> 0 | Y179: 4' or 5' | Z179: =IF($C$41=1,IF($P182<$D$9,0,1),0) -> 0 | AA179: =$Q179*Z179 -> 0 | AB179: =$R179*Z179 -> 0 | AD179: 4' or 5' | AE179: =IF($C$41=2,IF($P182<$D$9,1,0),0) -> 0 | AF179: =$Q179*AE179 -> 0 | AG179: =$R179*AE179 -> 0 | AI179: 4' or 5' | AJ179: =IF($C$41=2,IF($P182<$D$9,0,1),0) -> 0 | AK179: =$Q179*AJ179 -> 0 | AL179: =$R179*AJ179 -> 0
O180: Inside Reference | Q180: =Q179 -> 0 | R180: =(R179-$C$55)*P179 -> 0 | V180: =$Q180*U179 -> 0 | W180: =$R180*U179 -> 0 | AA180: =$Q180*Z179 -> 0 | AB180: =$R180*Z179 -> 0 | AF180: =$Q180*AE179 -> 0 | AG180: =$R180*AE179 -> 0 | AK180: =$Q180*AJ179 -> 0 | AL180: =$R180*AJ179 -> 0
O181: Outside Reference | Q181: =Q178 -> 0 | R181: =R180 -> 0 | V181: =$Q181*U179 -> 0 | W181: =$R181*U179 -> 0 | AA181: =$Q181*Z179 -> 0 | AB181: =$R181*Z179 -> 0 | AF181: =$Q181*AE179 -> 0 | AG181: =$R181*AE179 -> 0 | AK181: =$Q181*AJ179 -> 0 | AL181: =$R181*AJ179 -> 0
O182: 4' or 5' | P182: =IF(OR($C$41=2,$C$41=3),IF(P178>$F$63,$E$9,$F$9),IF(P178>$F$63,$C$9,$D$9)) -> 50.5 | Q182: =Q178 -> 0 | R182: 0 | V182: =$Q182*U179 -> 0 | W182: =$R182*U179 -> 0 | AA182: =$Q182*Z179 -> 0 | AB182: =$R182*Z179 -> 0 | AF182: =$Q182*AE179 -> 0 | AG182: =$R182*AE179 -> 0 | AK182: =$Q182*AJ179 -> 0 | AL182: =$R182*AJ179 -> 0
O184: Row | P184: 20 | Q184: =(Q179+($D$39/12))*P185 -> 0 | R184: =(R179)*P185 -> 0 | T184: Row | U184: =U178+1 -> 20 | V184: =$Q184*U185 -> 0 | W184: =$R184*U185 -> 0 | Y184: Row | Z184: =Z178+1 -> 20 | AA184: =$Q184*Z185 -> 0 | AB184: =$R184*Z185 -> 0 | AD184: Row | AE184: =AE178+1 -> 20 | AF184: =$Q184*AE185 -> 0 | AG184: =$R184*AE185 -> 0 | AI184: Row | AJ184: =AJ178+1 -> 20 | AK184: =$Q184*AJ185 -> 0 | AL184: =$R184*AJ185 -> 0
O185: On/Off | P185: =IF(P184>$G$63,0,1) -> 0 | Q185: =(Q184+(P188/12))*P185 -> 0 | R185: =R184 -> 0 | T185: 4' or 5' | U185: =IF($C$41=1,IF($P188<$D$9,1,0),0) -> 1 | V185: =$Q185*U185 -> 0 | W185: =$R185*U185 -> 0 | Y185: 4' or 5' | Z185: =IF($C$41=1,IF($P188<$D$9,0,1),0) -> 0 | AA185: =$Q185*Z185 -> 0 | AB185: =$R185*Z185 -> 0 | AD185: 4' or 5' | AE185: =IF($C$41=2,IF($P188<$D$9,1,0),0) -> 0 | AF185: =$Q185*AE185 -> 0 | AG185: =$R185*AE185 -> 0 | AI185: 4' or 5' | AJ185: =IF($C$41=2,IF($P188<$D$9,0,1),0) -> 0 | AK185: =$Q185*AJ185 -> 0 | AL185: =$R185*AJ185 -> 0
O186: Inside Reference | Q186: =Q185 -> 0 | R186: =(R185-$C$55)*P185 -> 0 | V186: =$Q186*U185 -> 0 | W186: =$R186*U185 -> 0 | AA186: =$Q186*Z185 -> 0 | AB186: =$R186*Z185 -> 0 | AF186: =$Q186*AE185 -> 0 | AG186: =$R186*AE185 -> 0 | AK186: =$Q186*AJ185 -> 0 | AL186: =$R186*AJ185 -> 0
O187: Outside Reference | Q187: =Q184 -> 0 | R187: =R186 -> 0 | V187: =$Q187*U185 -> 0 | W187: =$R187*U185 -> 0 | AA187: =$Q187*Z185 -> 0 | AB187: =$R187*Z185 -> 0 | AF187: =$Q187*AE185 -> 0 | AG187: =$R187*AE185 -> 0 | AK187: =$Q187*AJ185 -> 0 | AL187: =$R187*AJ185 -> 0
O188: 4' or 5' | P188: =IF(OR($C$41=2,$C$41=3),IF(P184>$F$63,$E$9,$F$9),IF(P184>$F$63,$C$9,$D$9)) -> 50.5 | Q188: =Q184 -> 0 | R188: 0 | V188: =$Q188*U185 -> 0 | W188: =$R188*U185 -> 0 | AA188: =$Q188*Z185 -> 0 | AB188: =$R188*Z185 -> 0 | AF188: =$Q188*AE185 -> 0 | AG188: =$R188*AE185 -> 0 | AK188: =$Q188*AJ185 -> 0 | AL188: =$R188*AJ185 -> 0
O190: Row | P190: 21 | Q190: =(Q185+($D$39/12))*P191 -> 0 | R190: =(R185)*P191 -> 0 | T190: Row | U190: =U184+1 -> 21 | V190: =$Q190*U191 -> 0 | W190: =$R190*U191 -> 0 | Y190: Row | Z190: =Z184+1 -> 21 | AA190: =$Q190*Z191 -> 0 | AB190: =$R190*Z191 -> 0 | AD190: Row | AE190: =AE184+1 -> 21 | AF190: =$Q190*AE191 -> 0 | AG190: =$R190*AE191 -> 0 | AI190: Row | AJ190: =AJ184+1 -> 21 | AK190: =$Q190*AJ191 -> 0 | AL190: =$R190*AJ191 -> 0
O191: On/Off | P191: =IF(P190>$G$63,0,1) -> 0 | Q191: =(Q190+(P194/12))*P191 -> 0 | R191: =R190 -> 0 | T191: 4' or 5' | U191: =IF($C$41=1,IF($P194<$D$9,1,0),0) -> 1 | V191: =$Q191*U191 -> 0 | W191: =$R191*U191 -> 0 | Y191: 4' or 5' | Z191: =IF($C$41=1,IF($P194<$D$9,0,1),0) -> 0 | AA191: =$Q191*Z191 -> 0 | AB191: =$R191*Z191 -> 0 | AD191: 4' or 5' | AE191: =IF($C$41=2,IF($P194<$D$9,1,0),0) -> 0 | AF191: =$Q191*AE191 -> 0 | AG191: =$R191*AE191 -> 0 | AI191: 4' or 5' | AJ191: =IF($C$41=2,IF($P194<$D$9,0,1),0) -> 0 | AK191: =$Q191*AJ191 -> 0 | AL191: =$R191*AJ191 -> 0
O192: Inside Reference | Q192: =Q191 -> 0 | R192: =(R191-$C$55)*P191 -> 0 | V192: =$Q192*U191 -> 0 | W192: =$R192*U191 -> 0 | AA192: =$Q192*Z191 -> 0 | AB192: =$R192*Z191 -> 0 | AF192: =$Q192*AE191 -> 0 | AG192: =$R192*AE191 -> 0 | AK192: =$Q192*AJ191 -> 0 | AL192: =$R192*AJ191 -> 0
O193: Outside Reference | Q193: =Q190 -> 0 | R193: =R192 -> 0 | V193: =$Q193*U191 -> 0 | W193: =$R193*U191 -> 0 | AA193: =$Q193*Z191 -> 0 | AB193: =$R193*Z191 -> 0 | AF193: =$Q193*AE191 -> 0 | AG193: =$R193*AE191 -> 0 | AK193: =$Q193*AJ191 -> 0 | AL193: =$R193*AJ191 -> 0
O194: 4' or 5' | P194: =IF(OR($C$41=2,$C$41=3),IF(P190>$F$63,$E$9,$F$9),IF(P190>$F$63,$C$9,$D$9)) -> 50.5 | Q194: =Q190 -> 0 | R194: 0 | V194: =$Q194*U191 -> 0 | W194: =$R194*U191 -> 0 | AA194: =$Q194*Z191 -> 0 | AB194: =$R194*Z191 -> 0 | AF194: =$Q194*AE191 -> 0 | AG194: =$R194*AE191 -> 0 | AK194: =$Q194*AJ191 -> 0 | AL194: =$R194*AJ191 -> 0
O196: Row | P196: 22 | Q196: =(Q191+($D$39/12))*P197 -> 0 | R196: =(R191)*P197 -> 0 | T196: Row | U196: =U190+1 -> 22 | V196: =$Q196*U197 -> 0 | W196: =$R196*U197 -> 0 | Y196: Row | Z196: =Z190+1 -> 22 | AA196: =$Q196*Z197 -> 0 | AB196: =$R196*Z197 -> 0 | AD196: Row | AE196: =AE190+1 -> 22 | AF196: =$Q196*AE197 -> 0 | AG196: =$R196*AE197 -> 0 | AI196: Row | AJ196: =AJ190+1 -> 22 | AK196: =$Q196*AJ197 -> 0 | AL196: =$R196*AJ197 -> 0
O197: On/Off | P197: =IF(P196>$G$63,0,1) -> 0 | Q197: =(Q196+(P200/12))*P197 -> 0 | R197: =R196 -> 0 | T197: 4' or 5' | U197: =IF($C$41=1,IF($P200<$D$9,1,0),0) -> 1 | V197: =$Q197*U197 -> 0 | W197: =$R197*U197 -> 0 | Y197: 4' or 5' | Z197: =IF($C$41=1,IF($P200<$D$9,0,1),0) -> 0 | AA197: =$Q197*Z197 -> 0 | AB197: =$R197*Z197 -> 0 | AD197: 4' or 5' | AE197: =IF($C$41=2,IF($P200<$D$9,1,0),0) -> 0 | AF197: =$Q197*AE197 -> 0 | AG197: =$R197*AE197 -> 0 | AI197: 4' or 5' | AJ197: =IF($C$41=2,IF($P200<$D$9,0,1),0) -> 0 | AK197: =$Q197*AJ197 -> 0 | AL197: =$R197*AJ197 -> 0
O198: Inside Reference | Q198: =Q197 -> 0 | R198: =(R197-$C$55)*P197 -> 0 | V198: =$Q198*U197 -> 0 | W198: =$R198*U197 -> 0 | AA198: =$Q198*Z197 -> 0 | AB198: =$R198*Z197 -> 0 | AF198: =$Q198*AE197 -> 0 | AG198: =$R198*AE197 -> 0 | AK198: =$Q198*AJ197 -> 0 | AL198: =$R198*AJ197 -> 0
O199: Outside Reference | Q199: =Q196 -> 0 | R199: =R198 -> 0 | V199: =$Q199*U197 -> 0 | W199: =$R199*U197 -> 0 | AA199: =$Q199*Z197 -> 0 | AB199: =$R199*Z197 -> 0 | AF199: =$Q199*AE197 -> 0 | AG199: =$R199*AE197 -> 0 | AK199: =$Q199*AJ197 -> 0 | AL199: =$R199*AJ197 -> 0
O200: 4' or 5' | P200: =IF(OR($C$41=2,$C$41=3),IF(P196>$F$63,$E$9,$F$9),IF(P196>$F$63,$C$9,$D$9)) -> 50.5 | Q200: =Q196 -> 0 | R200: 0 | V200: =$Q200*U197 -> 0 | W200: =$R200*U197 -> 0 | AA200: =$Q200*Z197 -> 0 | AB200: =$R200*Z197 -> 0 | AF200: =$Q200*AE197 -> 0 | AG200: =$R200*AE197 -> 0 | AK200: =$Q200*AJ197 -> 0 | AL200: =$R200*AJ197 -> 0
O202: Row | P202: 23 | Q202: =(Q197+($D$39/12))*P203 -> 0 | R202: =(R197)*P203 -> 0 | T202: Row | U202: =U196+1 -> 23 | V202: =$Q202*U203 -> 0 | W202: =$R202*U203 -> 0 | Y202: Row | Z202: =Z196+1 -> 23 | AA202: =$Q202*Z203 -> 0 | AB202: =$R202*Z203 -> 0 | AD202: Row | AE202: =AE196+1 -> 23 | AF202: =$Q202*AE203 -> 0 | AG202: =$R202*AE203 -> 0 | AI202: Row | AJ202: =AJ196+1 -> 23 | AK202: =$Q202*AJ203 -> 0 | AL202: =$R202*AJ203 -> 0
O203: On/Off | P203: =IF(P202>$G$63,0,1) -> 0 | Q203: =(Q202+(P206/12))*P203 -> 0 | R203: =R202 -> 0 | T203: 4' or 5' | U203: =IF($C$41=1,IF($P206<$D$9,1,0),0) -> 1 | V203: =$Q203*U203 -> 0 | W203: =$R203*U203 -> 0 | Y203: 4' or 5' | Z203: =IF($C$41=1,IF($P206<$D$9,0,1),0) -> 0 | AA203: =$Q203*Z203 -> 0 | AB203: =$R203*Z203 -> 0 | AD203: 4' or 5' | AE203: =IF($C$41=2,IF($P206<$D$9,1,0),0) -> 0 | AF203: =$Q203*AE203 -> 0 | AG203: =$R203*AE203 -> 0 | AI203: 4' or 5' | AJ203: =IF($C$41=2,IF($P206<$D$9,0,1),0) -> 0 | AK203: =$Q203*AJ203 -> 0 | AL203: =$R203*AJ203 -> 0
O204: Inside Reference | Q204: =Q203 -> 0 | R204: =(R203-$C$55)*P203 -> 0 | V204: =$Q204*U203 -> 0 | W204: =$R204*U203 -> 0 | AA204: =$Q204*Z203 -> 0 | AB204: =$R204*Z203 -> 0 | AF204: =$Q204*AE203 -> 0 | AG204: =$R204*AE203 -> 0 | AK204: =$Q204*AJ203 -> 0 | AL204: =$R204*AJ203 -> 0
O205: Outside Reference | Q205: =Q202 -> 0 | R205: =R204 -> 0 | V205: =$Q205*U203 -> 0 | W205: =$R205*U203 -> 0 | AA205: =$Q205*Z203 -> 0 | AB205: =$R205*Z203 -> 0 | AF205: =$Q205*AE203 -> 0 | AG205: =$R205*AE203 -> 0 | AK205: =$Q205*AJ203 -> 0 | AL205: =$R205*AJ203 -> 0
O206: 4' or 5' | P206: =IF(OR($C$41=2,$C$41=3),IF(P202>$F$63,$E$9,$F$9),IF(P202>$F$63,$C$9,$D$9)) -> 50.5 | Q206: =Q202 -> 0 | R206: 0 | V206: =$Q206*U203 -> 0 | W206: =$R206*U203 -> 0 | AA206: =$Q206*Z203 -> 0 | AB206: =$R206*Z203 -> 0 | AF206: =$Q206*AE203 -> 0 | AG206: =$R206*AE203 -> 0 | AK206: =$Q206*AJ203 -> 0 | AL206: =$R206*AJ203 -> 0
O208: Row | P208: 24 | Q208: =(Q203+($D$39/12))*P209 -> 0 | R208: =(R203)*P209 -> 0 | T208: Row | U208: =U202+1 -> 24 | V208: =$Q208*U209 -> 0 | W208: =$R208*U209 -> 0 | Y208: Row | Z208: =Z202+1 -> 24 | AA208: =$Q208*Z209 -> 0 | AB208: =$R208*Z209 -> 0 | AD208: Row | AE208: =AE202+1 -> 24 | AF208: =$Q208*AE209 -> 0 | AG208: =$R208*AE209 -> 0 | AI208: Row | AJ208: =AJ202+1 -> 24 | AK208: =$Q208*AJ209 -> 0 | AL208: =$R208*AJ209 -> 0
O209: On/Off | P209: =IF(P208>$G$63,0,1) -> 0 | Q209: =(Q208+(P212/12))*P209 -> 0 | R209: =R208 -> 0 | T209: 4' or 5' | U209: =IF($C$41=1,IF($P212<$D$9,1,0),0) -> 1 | V209: =$Q209*U209 -> 0 | W209: =$R209*U209 -> 0 | Y209: 4' or 5' | Z209: =IF($C$41=1,IF($P212<$D$9,0,1),0) -> 0 | AA209: =$Q209*Z209 -> 0 | AB209: =$R209*Z209 -> 0 | AD209: 4' or 5' | AE209: =IF($C$41=2,IF($P212<$D$9,1,0),0) -> 0 | AF209: =$Q209*AE209 -> 0 | AG209: =$R209*AE209 -> 0 | AI209: 4' or 5' | AJ209: =IF($C$41=2,IF($P212<$D$9,0,1),0) -> 0 | AK209: =$Q209*AJ209 -> 0 | AL209: =$R209*AJ209 -> 0
O210: Inside Reference | Q210: =Q209 -> 0 | R210: =(R209-$C$55)*P209 -> 0 | V210: =$Q210*U209 -> 0 | W210: =$R210*U209 -> 0 | AA210: =$Q210*Z209 -> 0 | AB210: =$R210*Z209 -> 0 | AF210: =$Q210*AE209 -> 0 | AG210: =$R210*AE209 -> 0 | AK210: =$Q210*AJ209 -> 0 | AL210: =$R210*AJ209 -> 0
O211: Outside Reference | Q211: =Q208 -> 0 | R211: =R210 -> 0 | V211: =$Q211*U209 -> 0 | W211: =$R211*U209 -> 0 | AA211: =$Q211*Z209 -> 0 | AB211: =$R211*Z209 -> 0 | AF211: =$Q211*AE209 -> 0 | AG211: =$R211*AE209 -> 0 | AK211: =$Q211*AJ209 -> 0 | AL211: =$R211*AJ209 -> 0
O212: 4' or 5' | P212: =IF(OR($C$41=2,$C$41=3),IF(P208>$F$63,$E$9,$F$9),IF(P208>$F$63,$C$9,$D$9)) -> 50.5 | Q212: =Q208 -> 0 | R212: 0 | V212: =$Q212*U209 -> 0 | W212: =$R212*U209 -> 0 | AA212: =$Q212*Z209 -> 0 | AB212: =$R212*Z209 -> 0 | AF212: =$Q212*AE209 -> 0 | AG212: =$R212*AE209 -> 0 | AK212: =$Q212*AJ209 -> 0 | AL212: =$R212*AJ209 -> 0
O214: Row | P214: 25 | Q214: =(Q209+($D$39/12))*P215 -> 0 | R214: =(R209)*P215 -> 0 | T214: Row | U214: =U208+1 -> 25 | V214: =$Q214*U215 -> 0 | W214: =$R214*U215 -> 0 | Y214: Row | Z214: =Z208+1 -> 25 | AA214: =$Q214*Z215 -> 0 | AB214: =$R214*Z215 -> 0 | AD214: Row | AE214: =AE208+1 -> 25 | AF214: =$Q214*AE215 -> 0 | AG214: =$R214*AE215 -> 0 | AI214: Row | AJ214: =AJ208+1 -> 25 | AK214: =$Q214*AJ215 -> 0 | AL214: =$R214*AJ215 -> 0
O215: On/Off | P215: =IF(P214>$G$63,0,1) -> 0 | Q215: =(Q214+(P218/12))*P215 -> 0 | R215: =R214 -> 0 | T215: 4' or 5' | U215: =IF($C$41=1,IF($P218<$D$9,1,0),0) -> 1 | V215: =$Q215*U215 -> 0 | W215: =$R215*U215 -> 0 | Y215: 4' or 5' | Z215: =IF($C$41=1,IF($P218<$D$9,0,1),0) -> 0 | AA215: =$Q215*Z215 -> 0 | AB215: =$R215*Z215 -> 0 | AD215: 4' or 5' | AE215: =IF($C$41=2,IF($P218<$D$9,1,0),0) -> 0 | AF215: =$Q215*AE215 -> 0 | AG215: =$R215*AE215 -> 0 | AI215: 4' or 5' | AJ215: =IF($C$41=2,IF($P218<$D$9,0,1),0) -> 0 | AK215: =$Q215*AJ215 -> 0 | AL215: =$R215*AJ215 -> 0
O216: Inside Reference | Q216: =Q215 -> 0 | R216: =(R215-$C$55)*P215 -> 0 | V216: =$Q216*U215 -> 0 | W216: =$R216*U215 -> 0 | AA216: =$Q216*Z215 -> 0 | AB216: =$R216*Z215 -> 0 | AF216: =$Q216*AE215 -> 0 | AG216: =$R216*AE215 -> 0 | AK216: =$Q216*AJ215 -> 0 | AL216: =$R216*AJ215 -> 0
O217: Outside Reference | Q217: =Q214 -> 0 | R217: =R216 -> 0 | V217: =$Q217*U215 -> 0 | W217: =$R217*U215 -> 0 | AA217: =$Q217*Z215 -> 0 | AB217: =$R217*Z215 -> 0 | AF217: =$Q217*AE215 -> 0 | AG217: =$R217*AE215 -> 0 | AK217: =$Q217*AJ215 -> 0 | AL217: =$R217*AJ215 -> 0
O218: 4' or 5' | P218: =IF(OR($C$41=2,$C$41=3),IF(P214>$F$63,$E$9,$F$9),IF(P214>$F$63,$C$9,$D$9)) -> 50.5 | Q218: =Q214 -> 0 | R218: 0 | V218: =$Q218*U215 -> 0 | W218: =$R218*U215 -> 0 | AA218: =$Q218*Z215 -> 0 | AB218: =$R218*Z215 -> 0 | AF218: =$Q218*AE215 -> 0 | AG218: =$R218*AE215 -> 0 | AK218: =$Q218*AJ215 -> 0 | AL218: =$R218*AJ215 -> 0
O220: Row | P220: 26 | Q220: =(Q215+($D$39/12))*P221 -> 0 | R220: =(R215)*P221 -> 0 | T220: Row | U220: =U214+1 -> 26 | V220: =$Q220*U221 -> 0 | W220: =$R220*U221 -> 0 | Y220: Row | Z220: =Z214+1 -> 26 | AA220: =$Q220*Z221 -> 0 | AB220: =$R220*Z221 -> 0 | AD220: Row | AE220: =AE214+1 -> 26 | AF220: =$Q220*AE221 -> 0 | AG220: =$R220*AE221 -> 0 | AI220: Row | AJ220: =AJ214+1 -> 26 | AK220: =$Q220*AJ221 -> 0 | AL220: =$R220*AJ221 -> 0
O221: On/Off | P221: =IF(P220>$G$63,0,1) -> 0 | Q221: =(Q220+(P224/12))*P221 -> 0 | R221: =R220 -> 0 | T221: 4' or 5' | U221: =IF($C$41=1,IF($P224<$D$9,1,0),0) -> 1 | V221: =$Q221*U221 -> 0 | W221: =$R221*U221 -> 0 | Y221: 4' or 5' | Z221: =IF($C$41=1,IF($P224<$D$9,0,1),0) -> 0 | AA221: =$Q221*Z221 -> 0 | AB221: =$R221*Z221 -> 0 | AD221: 4' or 5' | AE221: =IF($C$41=2,IF($P224<$D$9,1,0),0) -> 0 | AF221: =$Q221*AE221 -> 0 | AG221: =$R221*AE221 -> 0 | AI221: 4' or 5' | AJ221: =IF($C$41=2,IF($P224<$D$9,0,1),0) -> 0 | AK221: =$Q221*AJ221 -> 0 | AL221: =$R221*AJ221 -> 0
... 123 more rows

Sheet LU Table (hidden)
A1: Range Name | C1: Index & Lookup Table
A2: Lookup | C2: Index # | D2: Length | E2: Length | F2: # Arches | G2: # Mid Trays | H2: 5'L End | I2: 4'L End | J2: 3'L End | K2: 2'L End | L2: +Antitip | M2: Height | N2: Widths
A3: ArchHeight | C3: 1 | D3: -- | E3: -- | F3: 0 | G3: 0 | H3: 0 | I3: 0 | J3: 0 | K3: 0 | L3: 0 | M3: -- | N3: 4' Only
A4: Widths | C4: 2 | D4: 7.5 | E4: 7' 6" | F4: 3 | G4: 0 | H4: 0 | I4: 0 | J4: 0 | K4: 1 | L4: 0 | M4: 12" | N4: 5' Only
C5: 3 | D5: 8.5 | E5: 8' 6" | F5: 3 | G5: 0 | H5: 0 | I5: 0 | J5: 1 | K5: 0 | L5: 0 | M5: 20" | N5: 4' & 5' Mixed
C6: 4 | D6: 9.5 | E6: 9' 6" | F6: 3 | G6: 0 | H6: 0 | I6: 1 | J6: 0 | K6: 0 | L6: 0 | M6: 30"
C7: 5 | D7: 10.5 | E7: 10' 6" | F7: 3 | G7: 0 | H7: 1 | I7: 0 | J7: 0 | K7: 0 | L7: 0
C8: 6 | D8: 12.5 | E8: 12' 6" | F8: 4 | G8: 1 | H8: 0 | I8: 0 | J8: 0 | K8: 1 | L8: 0
C9: 7 | D9: 13.5 | E9: 13' 6" | F9: 4 | G9: 1 | H9: 0 | I9: 0 | J9: 1 | K9: 0 | L9: 0
C10: 8 | D10: 14.5 | E10: 14' 6" | F10: 4 | G10: 1 | H10: 0 | I10: 1 | J10: 0 | K10: 0 | L10: 0
C11: 9 | D11: 15.5 | E11: 15' 6" | F11: 4 | G11: 1 | H11: 1 | I11: 0 | J11: 0 | K11: 0 | L11: 0
C12: 10 | D12: 17.5 | E12: 17' 6" | F12: 5 | G12: 2 | H12: 0 | I12: 0 | J12: 0 | K12: 1 | L12: 1
C13: 11 | D13: 18.5 | E13: 18' 6" | F13: 5 | G13: 2 | H13: 0 | I13: 0 | J13: 1 | K13: 0 | L13: 1
C14: 12 | D14: 19.5 | E14: 19' 6" | F14: 5 | G14: 2 | H14: 0 | I14: 1 | J14: 0 | K14: 0 | L14: 1
C15: 13 | D15: 20.5 | E15: 20' 6" | F15: 5 | G15: 2 | H15: 1 | I15: 0 | J15: 0 | K15: 0 | L15: 1
C16: 14 | D16: 22.5 | E16: 22' 6" | F16: 6 | G16: 3 | H16: 0 | I16: 0 | J16: 0 | K16: 1 | L16: 2
C17: 15 | D17: 23.5 | E17: 23' 6" | F17: 6 | G17: 3 | H17: 0 | I17: 0 | J17: 1 | K17: 0 | L17: 2
C18: 16 | D18: 24.5 | E18: 24' 6" | F18: 6 | G18: 3 | H18: 0 | I18: 1 | J18: 0 | K18: 0 | L18: 2
C19: 17 | D19: 25.5 | E19: 25' 6" | F19: 6 | G19: 3 | H19: 1 | I19: 0 | J19: 0 | K19: 0 | L19: 2
C20: 18 | D20: 27.5 | E20: 27' 6" | F20: 7 | G20: 4 | H20: 0 | I20: 0 | J20: 0 | K20: 1 | L20: 2
C21: 19 | D21: 28.5 | E21: 28' 6" | F21: 7 | G21: 4 | H21: 0 | I21: 0 | J21: 1 | K21: 0 | L21: 2
C22: 20 | D22: 29.5 | E22: 29' 6" | F22: 7 | G22: 4 | H22: 0 | I22: 1 | J22: 0 | K22: 0 | L22: 2
C23: 21 | D23: 30.5 | E23: 30' 6" | F23: 7 | G23: 4 | H23: 1 | I23: 0 | J23: 0 | K23: 0 | L23: 2
C24: 22 | D24: 32.5 | E24: 32' 6" | F24: 8 | G24: 5 | H24: 0 | I24: 0 | J24: 0 | K24: 1 | L24: 3
C25: 23 | D25: 33.5 | E25: 33' 6" | F25: 8 | G25: 5 | H25: 0 | I25: 0 | J25: 1 | K25: 0 | L25: 3
C26: 24 | D26: 34.5 | E26: 34' 6" | F26: 8 | G26: 5 | H26: 0 | I26: 1 | J26: 0 | K26: 0 | L26: 3
C27: 25 | D27: 35.5 | E27: 35' 6" | F27: 8 | G27: 5 | H27: 1 | I27: 0 | J27: 0 | K27: 0 | L27: 3
C28: 26 | D28: 37.5 | E28: 37' 6" | F28: 9 | G28: 6 | H28: 0 | I28: 0 | J28: 0 | K28: 1 | L28: 3
C29: 27 | D29: 38.5 | E29: 38' 6" | F29: 9 | G29: 6 | H29: 0 | I29: 0 | J29: 1 | K29: 0 | L29: 3
C30: 28 | D30: 39.5 | E30: 39' 6" | F30: 9 | G30: 6 | H30: 0 | I30: 1 | J30: 0 | K30: 0 | L30: 3
C31: 29 | D31: 40.5 | E31: 40' 6" | F31: 9 | G31: 6 | H31: 1 | I31: 0 | J31: 0 | K31: 0 | L31: 3
C32: 30 | D32: 42.5 | E32: 42' 6" | F32: 10 | G32: 7 | H32: 0 | I32: 0 | J32: 0 | K32: 1 | L32: 4
C33: 31 | D33: 43.5 | E33: 43' 6" | F33: 10 | G33: 7 | H33: 0 | I33: 0 | J33: 1 | K33: 0 | L33: 4
C34: 32 | D34: 44.5 | E34: 44' 6" | F34: 10 | G34: 7 | H34: 0 | I34: 1 | J34: 0 | K34: 0 | L34: 4
C35: 33 | D35: 45.5 | E35: 45' 6" | F35: 10 | G35: 7 | H35: 1 | I35: 0 | J35: 0 | K35: 0 | L35: 4
C36: 34 | D36: 47.5 | E36: 47' 6" | F36: 11 | G36: 8 | H36: 0 | I36: 0 | J36: 0 | K36: 1 | L36: 4
C37: 35 | D37: 48.5 | E37: 48' 6" | F37: 11 | G37: 8 | H37: 0 | I37: 0 | J37: 1 | K37: 0 | L37: 4
C38: 36 | D38: 49.5 | E38: 49' 6" | F38: 11 | G38: 8 | H38: 0 | I38: 1 | J38: 0 | K38: 0 | L38: 4
C39: 37 | D39: 50.5 | E39: 50' 6" | F39: 11 | G39: 8 | H39: 1 | I39: 0 | J39: 0 | K39: 0 | L39: 4
C40: 38 | D40: 52.5 | E40: 52' 6" | F40: 12 | G40: 9 | H40: 0 | I40: 0 | J40: 0 | K40: 1 | L40: 5
C41: 39 | D41: 53.5 | E41: 53' 6" | F41: 12 | G41: 9 | H41: 0 | I41: 0 | J41: 1 | K41: 0 | L41: 5
C42: 40 | D42: 54.5 | E42: 54' 6" | F42: 12 | G42: 9 | H42: 0 | I42: 1 | J42: 0 | K42: 0 | L42: 5
C43: 41 | D43: 55.5 | E43: 55' 6" | F43: 12 | G43: 9 | H43: 1 | I43: 0 | J43: 0 | K43: 0 | L43: 5
C44: 42 | D44: 57.5 | E44: 57' 6" | F44: 13 | G44: 10 | H44: 0 | I44: 0 | J44: 0 | K44: 1 | L44: 5
C45: 43 | D45: 58.5 | E45: 58' 6" | F45: 13 | G45: 10 | H45: 0 | I45: 0 | J45: 1 | K45: 0 | L45: 5
C46: 44 | D46: 59.5 | E46: 59' 6" | F46: 13 | G46: 10 | H46: 0 | I46: 1 | J46: 0 | K46: 0 | L46: 5
C47: 45 | D47: 60.5 | E47: 60' 6" | F47: 13 | G47: 10 | H47: 1 | I47: 0 | J47: 0 | K47: 0 | L47: 5
C48: 46 | D48: 62.5 | E48: 62' 6" | F48: 14 | G48: 11 | H48: 0 | I48: 0 | J48: 0 | K48: 1 | L48: 6
C49: 47 | D49: 63.5 | E49: 63' 6" | F49: 14 | G49: 11 | H49: 0 | I49: 0 | J49: 1 | K49: 0 | L49: 6
C50: 48 | D50: 64.5 | E50: 64' 6" | F50: 14 | G50: 11 | H50: 0 | I50: 1 | J50: 0 | K50: 0 | L50: 6
C51: 49 | D51: 65.5 | E51: 65' 6" | F51: 14 | G51: 11 | H51: 1 | I51: 0 | J51: 0 | K51: 0 | L51: 6
C52: 50 | D52: 67.5 | E52: 67' 6" | F52: 15 | G52: 12 | H52: 0 | I52: 0 | J52: 0 | K52: 1 | L52: 6
C53: 51 | D53: 68.5 | E53: 68' 6" | F53: 15 | G53: 12 | H53: 0 | I53: 0 | J53: 1 | K53: 0 | L53: 6
C54: 52 | D54: 69.5 | E54: 69' 6" | F54: 15 | G54: 12 | H54: 0 | I54: 1 | J54: 0 | K54: 0 | L54: 6
C55: 53 | D55: 70.5 | E55: 70' 6" | F55: 15 | G55: 12 | H55: 1 | I55: 0 | J55: 0 | K55: 0 | L55: 6
C56: 54 | D56: 72.5 | E56: 72' 6" | F56: 16 | G56: 13 | H56: 0 | I56: 0 | J56: 0 | K56: 1 | L56: 7
C57: 55 | D57: 73.5 | E57: 73' 6" | F57: 16 | G57: 13 | H57: 0 | I57: 0 | J57: 1 | K57: 0 | L57: 7
C58: 56 | D58: 74.5 | E58: 74' 6" | F58: 16 | G58: 13 | H58: 0 | I58: 1 | J58: 0 | K58: 0 | L58: 7
C59: 57 | D59: 75.5 | E59: 75' 6" | F59: 16 | G59: 13 | H59: 1 | I59: 0 | J59: 0 | K59: 0 | L59: 7
C60: 58 | D60: 77.5 | E60: 77' 6" | F60: 17 | G60: 14 | H60: 0 | I60: 0 | J60: 0 | K60: 1 | L60: 7
C61: 59 | D61: 78.5 | E61: 78' 6" | F61: 17 | G61: 14 | H61: 0 | I61: 0 | J61: 1 | K61: 0 | L61: 7
C62: 60 | D62: 79.5 | E62: 79' 6" | F62: 17 | G62: 14 | H62: 0 | I62: 1 | J62: 0 | K62: 0 | L62: 7
C63: 61 | D63: 80.5 | E63: 80' 6" | F63: 17 | G63: 14 | H63: 1 | I63: 0 | J63: 0 | K63: 0 | L63: 7
C64: 62 | D64: 82.5 | E64: 82' 6" | F64: 18 | G64: 15 | H64: 0 | I64: 0 | J64: 0 | K64: 1 | L64: 8
C65: 63 | D65: 83.5 | E65: 83' 6" | F65: 18 | G65: 15 | H65: 0 | I65: 0 | J65: 1 | K65: 0 | L65: 8
C66: 64 | D66: 84.5 | E66: 84' 6" | F66: 18 | G66: 15 | H66: 0 | I66: 1 | J66: 0 | K66: 0 | L66: 8
C67: 65 | D67: 85.5 | E67: 85' 6" | F67: 18 | G67: 15 | H67: 1 | I67: 0 | J67: 0 | K67: 0 | L67: 8
C68: 66 | D68: 87.5 | E68: 87' 6" | F68: 19 | G68: 16 | H68: 0 | I68: 0 | J68: 0 | K68: 1 | L68: 8
C69: 67 | D69: 88.5 | E69: 88' 6" | F69: 19 | G69: 16 | H69: 0 | I69: 0 | J69: 1 | K69: 0 | L69: 8
C70: 68 | D70: 89.5 | E70: 89' 6" | F70: 19 | G70: 16 | H70: 0 | I70: 1 | J70: 0 | K70: 0 | L70: 8
C71: 69 | D71: 90.5 | E71: 90' 6" | F71: 19 | G71: 16 | H71: 1 | I71: 0 | J71: 0 | K71: 0 | L71: 8
C72: 70 | D72: 92.5 | E72: 92' 6" | F72: 20 | G72: 17 | H72: 0 | I72: 0 | J72: 0 | K72: 1 | L72: 9
C73: 71 | D73: 93.5 | E73: 93' 6" | F73: 20 | G73: 17 | H73: 0 | I73: 0 | J73: 1 | K73: 0 | L73: 9
C74: 72 | D74: 94.5 | E74: 94' 6" | F74: 20 | G74: 17 | H74: 0 | I74: 1 | J74: 0 | K74: 0 | L74: 9
C75: 73 | D75: 95.5 | E75: 95' 6" | F75: 20 | G75: 17 | H75: 1 | I75: 0 | J75: 0 | K75: 0 | L75: 9
C76: 74 | D76: 97.5 | E76: 97' 6" | F76: 21 | G76: 18 | H76: 0 | I76: 0 | J76: 0 | K76: 1 | L76: 9
C77: 75 | D77: 98.5 | E77: 98' 6" | F77: 21 | G77: 18 | H77: 0 | I77: 0 | J77: 1 | K77: 0 | L77: 9
C78: 76 | D78: 99.5 | E78: 99' 6" | F78: 21 | G78: 18 | H78: 0 | I78: 1 | J78: 0 | K78: 0 | L78: 9
C79: 77 | D79: 100.5 | E79: 100' 6" | F79: 21 | G79: 18 | H79: 1 | I79: 0 | J79: 0 | K79: 0 | L79: 9

Sheet LU Table-Gutter (hidden)
A1: Range Name | C1: Gutter Tray - Index & Lookup Table
A2: Lookup-Gutter
A3: ArchHeight | C3: Index # | D3: Length | E3: Length | F3: # Arches | G3: # Mid Trays | H3: 5'L End | I3: 4'L End | J3: 3'L End | K3: 2'L End | L3: +Antitip | M3: 4' Bracket | N3: 5' Inside Bracket | O3: 5' Outside Bracket | P3: Tri-Lock | Q3: Irrigation Clips | R3: Height | S3: Widths
A4: Widths | C4: 1 | D4: -- | E4: -- | F4: 0 | G4: 0 | H4: 0 | I4: 0 | J4: 0 | K4: 0 | L4: 0 | P4: 0 | R4: -- | S4: 4' Only
C5: 2 | D5: 7.5 | E5: 7' 6" | F5: 3 | G5: 0 | H5: 0 | I5: 0 | J5: 0 | K5: 1 | L5: 0 | P5: 6 | R5: 12" | S5: 5' Only
C6: 3 | D6: 8.5 | E6: 8' 6" | F6: 3 | G6: 0 | H6: 0 | I6: 0 | J6: 1 | K6: 0 | L6: 0 | P6: 6 | R6: 20" | S6: 4' & 5' Mixed
C7: 4 | D7: 9.5 | E7: 9' 6" | F7: 3 | G7: 0 | H7: 0 | I7: 1 | J7: 0 | K7: 0 | L7: 0 | P7: 6 | R7: 30"
C8: 5 | D8: 10.5 | E8: 10' 6" | F8: 3 | G8: 0 | H8: 1 | I8: 0 | J8: 0 | K8: 0 | L8: 0 | P8: 6
C9: 6 | D9: 12.5 | E9: 12' 6" | F9: 4 | G9: 1 | H9: 0 | I9: 0 | J9: 0 | K9: 1 | L9: 0 | P9: 8
C10: 7 | D10: 13.5 | E10: 13' 6" | F10: 4 | G10: 1 | H10: 0 | I10: 0 | J10: 1 | K10: 0 | L10: 0 | P10: 8
C11: 8 | D11: 14.5 | E11: 14' 6" | F11: 4 | G11: 1 | H11: 0 | I11: 1 | J11: 0 | K11: 0 | L11: 0 | P11: 8
C12: 9 | D12: 15.5 | E12: 15' 6" | F12: 4 | G12: 1 | H12: 1 | I12: 0 | J12: 0 | K12: 0 | L12: 0 | P12: 8
C13: 10 | D13: 17.5 | E13: 17' 6" | F13: 5 | G13: 2 | H13: 0 | I13: 0 | J13: 0 | K13: 1 | L13: 1 | P13: 10
C14: 11 | D14: 18.5 | E14: 18' 6" | F14: 5 | G14: 2 | H14: 0 | I14: 0 | J14: 1 | K14: 0 | L14: 1 | P14: 10
C15: 12 | D15: 19.5 | E15: 19' 6" | F15: 5 | G15: 2 | H15: 0 | I15: 1 | J15: 0 | K15: 0 | L15: 1 | P15: 10
C16: 13 | D16: 20.5 | E16: 20' 6" | F16: 5 | G16: 2 | H16: 1 | I16: 0 | J16: 0 | K16: 0 | L16: 1 | P16: 10
C17: 14 | D17: 22.5 | E17: 22' 6" | F17: 6 | G17: 3 | H17: 0 | I17: 0 | J17: 0 | K17: 1 | L17: 2 | P17: 12
C18: 15 | D18: 23.5 | E18: 23' 6" | F18: 6 | G18: 3 | H18: 0 | I18: 0 | J18: 1 | K18: 0 | L18: 2 | P18: 12
C19: 16 | D19: 24.5 | E19: 24' 6" | F19: 6 | G19: 3 | H19: 0 | I19: 1 | J19: 0 | K19: 0 | L19: 2 | P19: 12
C20: 17 | D20: 25.5 | E20: 25' 6" | F20: 6 | G20: 3 | H20: 1 | I20: 0 | J20: 0 | K20: 0 | L20: 2 | P20: 12
C21: 18 | D21: 27.5 | E21: 27' 6" | F21: 7 | G21: 4 | H21: 0 | I21: 0 | J21: 0 | K21: 1 | L21: 2 | P21: 14
C22: 19 | D22: 28.5 | E22: 28' 6" | F22: 7 | G22: 4 | H22: 0 | I22: 0 | J22: 1 | K22: 0 | L22: 2 | P22: 14
C23: 20 | D23: 29.5 | E23: 29' 6" | F23: 7 | G23: 4 | H23: 0 | I23: 1 | J23: 0 | K23: 0 | L23: 2 | P23: 14
C24: 21 | D24: 30.5 | E24: 30' 6" | F24: 7 | G24: 4 | H24: 1 | I24: 0 | J24: 0 | K24: 0 | L24: 2 | P24: 14
C25: 22 | D25: 32.5 | E25: 32' 6" | F25: 8 | G25: 5 | H25: 0 | I25: 0 | J25: 0 | K25: 1 | L25: 3 | P25: 16
C26: 23 | D26: 33.5 | E26: 33' 6" | F26: 8 | G26: 5 | H26: 0 | I26: 0 | J26: 1 | K26: 0 | L26: 3 | P26: 16
C27: 24 | D27: 34.5 | E27: 34' 6" | F27: 8 | G27: 5 | H27: 0 | I27: 1 | J27: 0 | K27: 0 | L27: 3 | P27: 16
C28: 25 | D28: 35.5 | E28: 35' 6" | F28: 8 | G28: 5 | H28: 1 | I28: 0 | J28: 0 | K28: 0 | L28: 3 | P28: 16
C29: 26 | D29: 37.5 | E29: 37' 6" | F29: 9 | G29: 6 | H29: 0 | I29: 0 | J29: 0 | K29: 1 | L29: 3 | P29: 18
C30: 27 | D30: 38.5 | E30: 38' 6" | F30: 9 | G30: 6 | H30: 0 | I30: 0 | J30: 1 | K30: 0 | L30: 3 | P30: 18
C31: 28 | D31: 39.5 | E31: 39' 6" | F31: 9 | G31: 6 | H31: 0 | I31: 1 | J31: 0 | K31: 0 | L31: 3 | P31: 18
C32: 29 | D32: 40.5 | E32: 40' 6" | F32: 9 | G32: 6 | H32: 1 | I32: 0 | J32: 0 | K32: 0 | L32: 3 | P32: 18
C33: 30 | D33: 42.5 | E33: 42' 6" | F33: 10 | G33: 7 | H33: 0 | I33: 0 | J33: 0 | K33: 1 | L33: 4 | P33: 20
C34: 31 | D34: 43.5 | E34: 43' 6" | F34: 10 | G34: 7 | H34: 0 | I34: 0 | J34: 1 | K34: 0 | L34: 4 | P34: 20
C35: 32 | D35: 44.5 | E35: 44' 6" | F35: 10 | G35: 7 | H35: 0 | I35: 1 | J35: 0 | K35: 0 | L35: 4 | P35: 20
C36: 33 | D36: 45.5 | E36: 45' 6" | F36: 10 | G36: 7 | H36: 1 | I36: 0 | J36: 0 | K36: 0 | L36: 4 | P36: 20
C37: 34 | D37: 47.5 | E37: 47' 6" | F37: 11 | G37: 8 | H37: 0 | I37: 0 | J37: 0 | K37: 1 | L37: 4 | P37: 22
C38: 35 | D38: 48.5 | E38: 48' 6" | F38: 11 | G38: 8 | H38: 0 | I38: 0 | J38: 1 | K38: 0 | L38: 4 | P38: 22
C39: 36 | D39: 49.5 | E39: 49' 6" | F39: 11 | G39: 8 | H39: 0 | I39: 1 | J39: 0 | K39: 0 | L39: 4 | P39: 22
C40: 37 | D40: 50.5 | E40: 50' 6" | F40: 11 | G40: 8 | H40: 1 | I40: 0 | J40: 0 | K40: 0 | L40: 4 | P40: 22
C41: 38 | D41: 52.5 | E41: 52' 6" | F41: 12 | G41: 9 | H41: 0 | I41: 0 | J41: 0 | K41: 1 | L41: 5 | P41: 24
C42: 39 | D42: 53.5 | E42: 53' 6" | F42: 12 | G42: 9 | H42: 0 | I42: 0 | J42: 1 | K42: 0 | L42: 5 | P42: 24
C43: 40 | D43: 54.5 | E43: 54' 6" | F43: 12 | G43: 9 | H43: 0 | I43: 1 | J43: 0 | K43: 0 | L43: 5 | P43: 24
C44: 41 | D44: 55.5 | E44: 55' 6" | F44: 12 | G44: 9 | H44: 1 | I44: 0 | J44: 0 | K44: 0 | L44: 5 | P44: 24
C45: 42 | D45: 57.5 | E45: 57' 6" | F45: 13 | G45: 10 | H45: 0 | I45: 0 | J45: 0 | K45: 1 | L45: 5 | P45: 26
C46: 43 | D46: 58.5 | E46: 58' 6" | F46: 13 | G46: 10 | H46: 0 | I46: 0 | J46: 1 | K46: 0 | L46: 5 | P46: 26
C47: 44 | D47: 59.5 | E47: 59' 6" | F47: 13 | G47: 10 | H47: 0 | I47: 1 | J47: 0 | K47: 0 | L47: 5 | P47: 26
C48: 45 | D48: 60.5 | E48: 60' 6" | F48: 13 | G48: 10 | H48: 1 | I48: 0 | J48: 0 | K48: 0 | L48: 5 | P48: 26
C49: 46 | D49: 62.5 | E49: 62' 6" | F49: 14 | G49: 11 | H49: 0 | I49: 0 | J49: 0 | K49: 1 | L49: 6 | P49: 28
C50: 47 | D50: 63.5 | E50: 63' 6" | F50: 14 | G50: 11 | H50: 0 | I50: 0 | J50: 1 | K50: 0 | L50: 6 | P50: 28
C51: 48 | D51: 64.5 | E51: 64' 6" | F51: 14 | G51: 11 | H51: 0 | I51: 1 | J51: 0 | K51: 0 | L51: 6 | P51: 28
C52: 49 | D52: 65.5 | E52: 65' 6" | F52: 14 | G52: 11 | H52: 1 | I52: 0 | J52: 0 | K52: 0 | L52: 6 | P52: 28
C53: 50 | D53: 67.5 | E53: 67' 6" | F53: 15 | G53: 12 | H53: 0 | I53: 0 | J53: 0 | K53: 1 | L53: 6 | P53: 30
C54: 51 | D54: 68.5 | E54: 68' 6" | F54: 15 | G54: 12 | H54: 0 | I54: 0 | J54: 1 | K54: 0 | L54: 6 | P54: 30
C55: 52 | D55: 69.5 | E55: 69' 6" | F55: 15 | G55: 12 | H55: 0 | I55: 1 | J55: 0 | K55: 0 | L55: 6 | P55: 30
C56: 53 | D56: 70.5 | E56: 70' 6" | F56: 15 | G56: 12 | H56: 1 | I56: 0 | J56: 0 | K56: 0 | L56: 6 | P56: 30
C57: 54 | D57: 72.5 | E57: 72' 6" | F57: 16 | G57: 13 | H57: 0 | I57: 0 | J57: 0 | K57: 1 | L57: 7 | P57: 32
C58: 55 | D58: 73.5 | E58: 73' 6" | F58: 16 | G58: 13 | H58: 0 | I58: 0 | J58: 1 | K58: 0 | L58: 7 | P58: 32
C59: 56 | D59: 74.5 | E59: 74' 6" | F59: 16 | G59: 13 | H59: 0 | I59: 1 | J59: 0 | K59: 0 | L59: 7 | P59: 32
C60: 57 | D60: 75.5 | E60: 75' 6" | F60: 16 | G60: 13 | H60: 1 | I60: 0 | J60: 0 | K60: 0 | L60: 7 | P60: 32
C61: 58 | D61: 77.5 | E61: 77' 6" | F61: 17 | G61: 14 | H61: 0 | I61: 0 | J61: 0 | K61: 1 | L61: 7 | P61: 34
C62: 59 | D62: 78.5 | E62: 78' 6" | F62: 17 | G62: 14 | H62: 0 | I62: 0 | J62: 1 | K62: 0 | L62: 7 | P62: 34
C63: 60 | D63: 79.5 | E63: 79' 6" | F63: 17 | G63: 14 | H63: 0 | I63: 1 | J63: 0 | K63: 0 | L63: 7 | P63: 34
C64: 61 | D64: 80.5 | E64: 80' 6" | F64: 17 | G64: 14 | H64: 1 | I64: 0 | J64: 0 | K64: 0 | L64: 7 | P64: 34
C65: 62 | D65: 82.5 | E65: 82' 6" | F65: 18 | G65: 15 | H65: 0 | I65: 0 | J65: 0 | K65: 1 | L65: 8 | P65: 36
C66: 63 | D66: 83.5 | E66: 83' 6" | F66: 18 | G66: 15 | H66: 0 | I66: 0 | J66: 1 | K66: 0 | L66: 8 | P66: 36
C67: 64 | D67: 84.5 | E67: 84' 6" | F67: 18 | G67: 15 | H67: 0 | I67: 1 | J67: 0 | K67: 0 | L67: 8 | P67: 36
C68: 65 | D68: 85.5 | E68: 85' 6" | F68: 18 | G68: 15 | H68: 1 | I68: 0 | J68: 0 | K68: 0 | L68: 8 | P68: 36
C69: 66 | D69: 87.5 | E69: 87' 6" | F69: 19 | G69: 16 | H69: 0 | I69: 0 | J69: 0 | K69: 1 | L69: 8 | P69: 38
C70: 67 | D70: 88.5 | E70: 88' 6" | F70: 19 | G70: 16 | H70: 0 | I70: 0 | J70: 1 | K70: 0 | L70: 8 | P70: 38
C71: 68 | D71: 89.5 | E71: 89' 6" | F71: 19 | G71: 16 | H71: 0 | I71: 1 | J71: 0 | K71: 0 | L71: 8 | P71: 38
C72: 69 | D72: 90.5 | E72: 90' 6" | F72: 19 | G72: 16 | H72: 1 | I72: 0 | J72: 0 | K72: 0 | L72: 8 | P72: 38
C73: 70 | D73: 92.5 | E73: 92' 6" | F73: 20 | G73: 17 | H73: 0 | I73: 0 | J73: 0 | K73: 1 | L73: 9 | P73: 40
C74: 71 | D74: 93.5 | E74: 93' 6" | F74: 20 | G74: 17 | H74: 0 | I74: 0 | J74: 1 | K74: 0 | L74: 9 | P74: 40
C75: 72 | D75: 94.5 | E75: 94' 6" | F75: 20 | G75: 17 | H75: 0 | I75: 1 | J75: 0 | K75: 0 | L75: 9 | P75: 40
C76: 73 | D76: 95.5 | E76: 95' 6" | F76: 20 | G76: 17 | H76: 1 | I76: 0 | J76: 0 | K76: 0 | L76: 9 | P76: 40
C77: 74 | D77: 97.5 | E77: 97' 6" | F77: 21 | G77: 18 | H77: 0 | I77: 0 | J77: 0 | K77: 1 | L77: 9 | P77: 42
C78: 75 | D78: 98.5 | E78: 98' 6" | F78: 21 | G78: 18 | H78: 0 | I78: 0 | J78: 1 | K78: 0 | L78: 9 | P78: 42
C79: 76 | D79: 99.5 | E79: 99' 6" | F79: 21 | G79: 18 | H79: 0 | I79: 1 | J79: 0 | K79: 0 | L79: 9 | P79: 42
C80: 77 | D80: 100.5 | E80: 100' 6" | F80: 21 | G80: 18 | H80: 1 | I80: 0 | J80: 0 | K80: 0 | L80: 9 | P80: 42

Sheet Order BOM's (hidden)
B1: Top Level Order BOM | H1: Screw Kits
A2: Transfer Filter | B2: SKU | C2: Description | D2: Order Qty | E2: Resale Price | F2: Notes | H2: SKU | I2: Description | J2: Order Qty | K2: Notes
A3: =IF(D3=0,0,1) -> 0 | B3: VB706165 | C3: BOT SLIDE BENCH 4' DRAIN TRAY KIT T-LOCK | D3: =IF(Calcs!$C$41=3,0,Calcs!$Y$15) -> 0 | E3: 284.16
A4: =IF(D4=0,0,MAX(A3)+1) -> 0 | B4: VB706166 | C4: BOT SLIDE BENCH 4' MIDL TRAY KIT T-LOCK | D4: =IF(Calcs!$C$41=3,0,Calcs!$Z$15) -> 0 | E4: 284.16 | H4: LC3165 | I4: Arch Screw Kit | J4: 1 | K4: 1 pkg for each 12", 20" & 30" arch kit | L4: LC3642 will replace
A5: =IF(D5=0,0,MAX($A$3:A4)+1) -> 0 | B5: VB706167 | C5: BOT SLIDE BENCH 4' ENDKIT 5'-LONG T-LOCK | D5: =IF(Calcs!$C$41=3,0,Calcs!$AA$15) -> 0 | E5: 284.16 | H5: MS3271 | I5: SCREW - HEX HD, FLNG, 1/4"-20 UNC X 3/8" | J5: 4
A6: =IF(D6=0,0,MAX($A$3:A5)+1) -> 0 | B6: VB706168 | C6: BOT SLIDE BENCH 4'-ENDKIT 4'-LONG T-LOCK | D6: =IF(Calcs!$C$41=3,0,Calcs!$AB$15) -> 0 | E6: 244.73 | H6: MS3255 | I6: NUT-HEX, 5/8"-11 UNC-2B | J6: 4 | L6: Eliminate
A7: =IF(D7=0,0,MAX($A$3:A6)+1) -> 0 | B7: VB706169 | C7: BOT SLIDE BENCH 4'-ENDKIT 3'-LONG T-LOCK | D7: =IF(Calcs!$C$41=3,0,Calcs!$AC$15) -> 0 | E7: 222.48 | H7: MS3256 | I7: Wshr, 11/16" ID | J7: 4 | L7: Eliminate
A8: =IF(D8=0,0,MAX($A$3:A7)+1) -> 0 | B8: VB706170 | C8: BOT SLIDE BENCH 4'-ENDKIT 2'-LONG T-LOCK | D8: =IF(Calcs!$C$41=3,0,Calcs!$AD$15) -> 0 | E8: 210.24
A9: =IF(D9=0,0,MAX($A$3:A8)+1) -> 0 | B9: VB706162 | C9: BOT SLIDE BENCH 5' DRAIN TRAY KIT T-LOCK | D9: =IF(Calcs!$C$41=3,0,Calcs!$Y$27) -> 0 | E9: 383.83
A10: =IF(D10=0,0,MAX($A$3:A9)+1) -> 0 | B10: VB706163 | C10: BOT SLIDE BENCH 5' MIDL TRAY KIT T-LOCK | D10: =IF(Calcs!$C$41=3,0,Calcs!$Z$27) -> 0 | E10: 383.83 | H10: LC3166 | I10: Tube Screw Kit | J10: 1 | K10: 1 pkg for each short tube & long tube kit
A11: =IF(D11=0,0,MAX($A$3:A10)+1) -> 0 | B11: VB706164 | C11: BOT SLIDE BENCH 5' ENDKIT 5'-LONG T-LOCK | D11: =IF(Calcs!$C$41=3,0,Calcs!$AA$27) -> 0 | E11: 383.83 | H11: MS3271 | I11: SCREW, HEX HD, FLANGE, 1/4"-20 UN x 0.375" | J11: 9
A12: =IF(D12=0,0,MAX($A$3:A11)+1) -> 0 | B12: VB706171 | C12: BOT SLIDE BENCH 5'-ENDKIT 4'-LONG T-LOCK | D12: =IF(Calcs!$C$41=3,0,Calcs!$AB$27) -> 0 | E12: 305.91 | H12: MS3291 | I12: SCREW, HEX HD, 10-32 X .5IN, THREAD-CUTTING | J12: 52
A13: =IF(D13=0,0,MAX($A$3:A12)+1) -> 0 | B13: VB706172 | C13: BOT SLIDE BENCH 5'-ENDKIT 3'-LONG T-LOCK | D13: =IF(Calcs!$C$41=3,0,Calcs!$AC$27) -> 0 | E13: 278.1
A14: =IF(D14=0,0,MAX($A$3:A13)+1) -> 0 | B14: VB706173 | C14: BOT SLIDE BENCH 5'-ENDKIT 2'-LONG T-LOCK | D14: =IF(Calcs!$C$41=3,0,Calcs!$AD$27) -> 0 | E14: 262.8 | H14: LC3167 | I14: Extrusion Screw Kit | J14: 1 | K14: 1 pkg for each 4' & 5' extrusion kit
A15: =IF(D15=0,0,MAX($A$3:A14)+1) -> 0 | B15: VB706177 | C15: BOT SLIDE BENCH 4' DRAIN TRAY KIT GUTTER | D15: =IF(Calcs!$C$41=3,Calcs!$Y$15,0) -> 0 | E15: 1 | H15: MS3298 | I15: SCREW, THUMB, 10-32X.5IN | J15: 2
A16: =IF(D16=0,0,MAX($A$3:A15)+1) -> 0 | B16: VB706178 | C16: BOT SLIDE BENCH 4' MIDL TRAY KIT GUTTER | D16: =IF(Calcs!$C$41=3,Calcs!$Z$15,0) -> 0 | E16: 1 | H16: MS3299 | I16: SCREW, HEX HD, 10-32 X 1IN, THREAD-CUTTING | J16: 13
A17: =IF(D17=0,0,MAX($A$3:A16)+1) -> 0 | B17: VB706179 | C17: BOT SLIDE BENCH 4'-ENDKIT 5'-LONG GUTTER | D17: =IF(Calcs!$C$41=3,Calcs!$AA$15,0) -> 0 | E17: 1
A18: =IF(D18=0,0,MAX($A$3:A17)+1) -> 0 | B18: VB706180 | C18: BOT SLIDE BENCH 4'-ENDKIT 4'-LONG GUTTER | D18: =IF(Calcs!$C$41=3,Calcs!$AB$15,0) -> 0 | E18: 1 | H18: LC3168 | I18: Anti-Tip Screw Kit | J18: 1 | K18: 1 pkg for each anti-tip kit
A19: =IF(D19=0,0,MAX($A$3:A18)+1) -> 0 | B19: VB706181 | C19: BOT SLIDE BENCH 4'-ENDKIT 3'-LONG GUTTER | D19: =IF(Calcs!$C$41=3,Calcs!$AC$15,0) -> 0 | E19: 1 | H19: MS3299 | I19: SCREW, HEX HD, 10-32 X 1IN, THREAD-CUTTING | J19: 4
A20: =IF(D20=0,0,MAX($A$3:A19)+1) -> 0 | B20: VB706182 | C20: BOT SLIDE BENCH 4'-ENDKIT 2'-LONG GUTTER | D20: =IF(Calcs!$C$41=3,Calcs!$AD$15,0) -> 0 | E20: 1 | H20: MS3291 | I20: SCREW, HEX HD, 10-32 X .5IN, THREAD-CUTTING | J20: 2
A21: =IF(D21=0,0,MAX($A$3:A20)+1) -> 0 | B21: VB706174 | C21: BOT SLIDE BENCH 5' DRAIN TRAY KIT GUTTER | D21: =IF(Calcs!$C$41=3,Calcs!$Y$27,0) -> 0 | E21: 1 | H21: MS3260 | I21: SCREW, HEX HD, 10-16X0.5IN, SELF-DRILLING | J21: 2
A22: =IF(D22=0,0,MAX($A$3:A21)+1) -> 0 | B22: VB706175 | C22: BOT SLIDE BENCH 5' MIDL TRAY KIT GUTTER | D22: =IF(Calcs!$C$41=3,Calcs!$Z$27,0) -> 0 | E22: 1 | H22: MC2083 | I22: PLUG, TUBE, 1X1 | J22: 4
A23: =IF(D23=0,0,MAX($A$3:A22)+1) -> 0 | B23: VB706176 | C23: BOT SLIDE BENCH 5'-ENDKIT 5'-LONG GUTTER | D23: =IF(Calcs!$C$41=3,Calcs!$AA$27,0) -> 0 | E23: 1 | H23: MC2084 | I23: PLUG, .625DIA | J23: 4
A24: =IF(D24=0,0,MAX($A$3:A23)+1) -> 0 | B24: VB706183 | C24: BOT SLIDE BENCH 5'-ENDKIT 4'-LONG GUTTER | D24: =IF(Calcs!$C$41=3,Calcs!$AB$27,0) -> 0 | E24: 1 | H24: MC2085 | I24: SPRING, COMPRESSION RUBBER | J24: 2
A25: =IF(D25=0,0,MAX($A$3:A24)+1) -> 0 | B25: VB706184 | C25: BOT SLIDE BENCH 5'-ENDKIT 3'-LONG GUTTER | D25: =IF(Calcs!$C$41=3,Calcs!$AC$27,0) -> 0 | E25: 1
A26: =IF(D26=0,0,MAX($A$3:A25)+1) -> 0 | B26: VB706185 | C26: BOT SLIDE BENCH 5'-ENDKIT 2'-LONG GUTTER | D26: =IF(Calcs!$C$41=3,Calcs!$AD$27,0) -> 0 | E26: 1
A27: =IF(D27=0,0,MAX($A$3:A26)+1) -> 0 | B27: VB706000 | C27: BOTANICARE SLIDE BENCH 12" LEGS-BRDG KIT | D27: =Calcs!$T$15+Calcs!$T$27 -> 0 | E27: 47.43
A28: =IF(D28=0,0,MAX($A$3:A27)+1) -> 0 | B28: VB706001 | C28: BOTANICARE SLIDE BENCH 20" LEGS-BRDG KIT | D28: =Calcs!$V$15+Calcs!$V$27 -> 0 | E28: 50.07
A29: =IF(D29=0,0,MAX($A$3:A28)+1) -> 0 | B29: VB706002 | C29: BOTANICARE SLIDE BENCH 30" LEGS-BRDG KIT | D29: =Calcs!$X$15+Calcs!$X$27 -> 0 | E29: 54.31
A30: =IF(D30=0,0,MAX($A$3:A29)+1) -> 0 | B30: VB706003 | C30: BOTANICARE SLIDE BENCH ANTI-TIP KIT | D30: =Calcs!$AE$15+Calcs!$AE$27 -> 0 | E30: 20.73
A31: =IF(D31=0,0,MAX($A$3:A30)+1) -> 0 | B31: VB60040 | C31: BOTANICARE BOND 3 SEALANT VB BLACK | D31: =Calcs!$C$86 -> 0 | E31: 14.89
A32: =IF(D32=0,0,MAX($A$3:A31)+1) -> 0
A33: =IF(D33=0,0,MAX($A$3:A32)+1) -> 1 | B33: HGC117004-01 | C33: Slide Bench Instruction Manual | D33: =Calcs!T32+Calcs!T33 -> 1 | E33: 0
B46: Part Level Order BOM
A47: Transfer Filter | B47: SKU | C47: Description | D47: Order Qty | E47: Notes
A48: =IF(D48=0,0,1) -> 0 | B48: HGC706009-01 | C48: BOTANICARE 4' DRAIN TRAY BLACK ABS/1 | D48: =D3 -> 0 | E48: From Top Level BOM | H48: VB705994 | I48: Botanicare Slide Bench 5' Drain Tray Kit VB
A49: =IF(D49=0,0,MAX(A48)+1) -> 0 | B49: HGC706012-01 | C49: BOTANICARE 4' MID TRAY BLACK ABS/1 | D49: 0 | E49: From Top Level BOM | H49: VB705995 | I49: Botanicare Slide Bench 5' Middle Tray Kit VB
A50: =IF(D50=0,0,MAX(A$48:$A49)+1) -> 0 | B50: HGC706010-01 | C50: BOTANICARE 4'Wx5'L END TRAY BLACK ABS/1 | D50: 0 | E50: From Top Level BOM | H50: VB705996 | I50: Botanicare Slide Bench 5' EndKit 5' Long VB
A51: =IF(D51=0,0,MAX(A$48:$A50)+1) -> 0 | B51: HGC706162-01 | C51: BOTANICARE 4'Wx4'L END TRAY BLACK ABS/1 | D51: 0 | E51: From Top Level BOM | H51: VB706159 | I51: Botanicare Slide Bench 5' End Kit 4' Long VB
A52: =IF(D52=0,0,MAX(A$48:$A51)+1) -> 0 | B52: HGC706163-01 | C52: BOTANICARE 4'Wx3'L END TRAY BLACK ABS/1 | D52: 0 | E52: From Top Level BOM | H52: VB706160 | I52: Botanicare Slide Bench 5' End Kit 3' Long VB
A53: =IF(D53=0,0,MAX(A$48:$A52)+1) -> 0 | B53: HGC706164-01 | C53: BOTANICARE 4'Wx2'L END TRAY BLACK ABS/1 | D53: 0 | E53: From Top Level BOM | H53: VB706161 | I53: Botanicare Slide Bench 5' End Kit 2' Long VB
A54: =IF(D54=0,0,MAX(A$48:$A53)+1) -> 0 | B54: HGC706663-01 | C54: BOTANICARE 5' DRAIN TRAY BLACK ABS/1 | D54: 0 | E54: From Top Level BOM | H54: VB705997 | I54: Botanicare Slide Bench 4' Drain Tray Kit VB
A55: =IF(D55=0,0,MAX(A$48:$A54)+1) -> 0 | B55: HGC706667-01 | C55: BOTANICARE 5' MID TRAY BLACK ABS/1 | D55: 0 | E55: From Top Level BOM | H55: VB705998 | I55: Botanicare Slide Bench 4' Middle Tray Kit VB
A56: =IF(D56=0,0,MAX(A$48:$A55)+1) -> 0 | B56: HGC706668-01 | C56: BOTANICARE 5'Wx5'L END TRAY BLACK ABS/1 | D56: 0 | E56: From Top Level BOM | H56: VB705999 | I56: Botanicare Slide Bench 4' EndKit 5' Long VB
A57: =IF(D57=0,0,MAX(A$48:$A56)+1) -> 0 | B57: HGC706165-01 | C57: BOTANICARE 5'Wx4'L END TRAY BLACK ABS/1 | D57: 0 | E57: From Top Level BOM | H57: VB706157 | I57: Botanicare Slide Bench 4' End Kit 3' Long VB
A58: =IF(D58=0,0,MAX(A$48:$A57)+1) -> 0 | B58: HGC706166-01 | C58: BOTANICARE 5'Wx3'L END TRAY BLACK ABS/1 | D58: 0 | E58: From Top Level BOM | H58: VB706156 | I58: Botanicare Slide Bench 4' End Kit 4' Long VB
A59: =IF(D59=0,0,MAX(A$48:$A58)+1) -> 0 | B59: HGC706167-01 | C59: BOTANICARE 5'Wx2'L END TRAY BLACK ABS/1 | D59: 0 | E59: From Top Level BOM | H59: VB706158 | I59: Botanicare Slide Bench 4' End Kit 2' Long VB
A60: =IF(D60=0,0,MAX(A$48:$A59)+1) -> 0 | B60: HGC707001-01 | C60: BOTANICARE DRAIN GUTTER TRAY BLACK/1 | D60: =D15*3 + D21*4 -> 0 | E60: From Top Level BOM | H60: VB706165 | I60: BOT SLIDE BENCH 4' DRAIN TRAY KIT T-LOCK
A61: =IF(D61=0,0,MAX(A$48:$A60)+1) -> 0 | B61: HGC707002-01 | C61: BOTANICARE MID GUTTER TRAY BLACK/1 | D61: =D16*3 + D22*4 -> 0 | E61: From Top Level BOM | H61: VB706166 | I61: BOT SLIDE BENCH 4' MIDL TRAY KIT T-LOCK
A62: =IF(D62=0,0,MAX(A$48:$A61)+1) -> 0 | B62: HGC707003-01 | C62: BOTANICARE 5'L END GUTTER TRAY BLACK/1 | D62: =D17*3 +D23*4 -> 0 | E62: From Top Level BOM | H62: VB706167 | I62: BOT SLIDE BENCH 4' ENDKIT 5'-LONG T-LOCK
A63: =IF(D63=0,0,MAX(A$48:$A62)+1) -> 0 | B63: HGC707004-01 | C63: BOTANICARE 4'L END GUTTER TRAY BLACK/1 | D63: =D18*3 +D24*4 -> 0 | E63: From Top Level BOM | H63: VB706168 | I63: BOT SLIDE BENCH 4'-ENDKIT 4'-LONG T-LOCK
A64: =IF(D64=0,0,MAX(A$48:$A63)+1) -> 0 | B64: HGC707005-01 | C64: BOTANICARE 3'L END GUTTER TRAY BLACK/1 | D64: 0 | E64: From Top Level BOM | H64: VB706169 | I64: BOT SLIDE BENCH 4'-ENDKIT 3'-LONG T-LOCK
A65: =IF(D65=0,0,MAX(A$48:$A64)+1) -> 0 | B65: HGC707006-01 | C65: BOTANICARE 2'L END GUTTER TRAY BLACK/1 | D65: 0 | E65: From Top Level BOM | H65: VB706170 | I65: BOT SLIDE BENCH 4'-ENDKIT 2'-LONG T-LOCK
A66: =IF(D66=0,0,MAX(A$48:$A65)+1) -> 0 | B66: MS3292 | C66: TUBE - RECTANGLE, FRAME (58.45") | D66: =((D3+D4)*2)+((D9+D10)*2)+(D15+D16)*2+(D21+D22)*2 -> 0 | E66: ( 4' & 5' Drain + Middle )*2 | H66: VB706162 | I66: BOT SLIDE BENCH 5' DRAIN TRAY KIT T-LOCK
A67: =IF(D67=0,0,MAX(A$48:$A66)+1) -> 0 | B67: MS3286 | C67: TUBE - RECTANGLE, FRAME (52.45") | D67: =(D5+D11)*2+(D17+D23)*2 -> 0 | E67: 4' & 5' End Kit *2 | H67: VB706163 | I67: BOT SLIDE BENCH 5' MIDL TRAY KIT T-LOCK
A68: =IF(D68=0,0,MAX(A$48:$A67)+1) -> 0 | B68: MS3806 | C68: TUBE - RECTANGLE, FRAME (40.45") | D68: =(D6+D12)*2+(D18+D24)*2 -> 0 | E68: 4' & 5' End Kit *2 | H68: VB706164 | I68: BOT SLIDE BENCH 5' ENDKIT 5'-LONG T-LOCK
A69: =IF(D69=0,0,MAX(A$48:$A68)+1) -> 0 | B69: MS3807 | C69: TUBE - RECTANGLE, FRAME (28.45") | D69: =(D7+D13)*2+(D19+D25)*2 -> 0 | E69: 4' & 5' End Kit *2 | H69: VB706171 | I69: BOT SLIDE BENCH 5'-ENDKIT 4'-LONG T-LOCK
A70: =IF(D70=0,0,MAX(A$48:$A69)+1) -> 0 | B70: MS3808 | C70: TUBE - RECTANGLE, FRAME (16.45") | D70: =(D8+D14)*2+(D20+D26)*2 -> 0 | E70: 4' & 5' End Kit *2 | H70: VB706172 | I70: BOT SLIDE BENCH 5'-ENDKIT 3'-LONG T-LOCK
A71: =IF(D71=0,0,MAX(A$48:$A70)+1) -> 0 | B71: MS3295 | C71: TUBE - PLATFORM (56.96") | D71: =((D3+D4)*3)+((D9+D10)*5)+(D15+D16)*3+(D21+D22)*5 -> 0 | E71: ( 4' Drain+Middle *3) + (5' Drain + Middle * 5) | H71: VB706173 | I71: BOT SLIDE BENCH 5'-ENDKIT 2'-LONG T-LOCK
A72: =IF(D72=0,0,MAX(A$48:$A71)+1) -> 0 | B72: MS3290 | C72: TUBE - PLATFORM (50.96") | D72: =(D5*3)+(D11*5)+(D17*3)+(D23*5) -> 0 | E72: 4' End Kit *3 + 5' End Kit *5 | H72: VB706177 | I72: BOT SLIDE BENCH 4' DRAIN TRAY KIT GUTTER
A73: =IF(D73=0,0,MAX(A$48:$A72)+1) -> 0 | B73: MS3809 | C73: TUBE - PLATFORM (38.96") | D73: =(D6*3)+(D12*5)+(D18*3)+(D24*5) -> 0 | E73: 4' End Kit *3 + 5' End Kit *5 | H73: VB706178 | I73: BOT SLIDE BENCH 4' MIDL TRAY KIT GUTTER
A74: =IF(D74=0,0,MAX(A$48:$A73)+1) -> 0 | B74: MS3810 | C74: TUBE - PLATFORM (26.96") | D74: =(D7*3)+(D13*5)+(D19*3)+(D25*5) -> 0 | E74: 4' End Kit *3 + 5' End Kit *5 | H74: VB706179 | I74: BOT SLIDE BENCH 4'-ENDKIT 5'-LONG GUTTER
A75: =IF(D75=0,0,MAX(A$48:$A74)+1) -> 0 | B75: MS3821 | C75: TUBE - PLATFORM (14.96") | D75: =(D8*3)+(D14*5)+(D20*3)+(D26*5) -> 0 | E75: 4' End Kit *3 + 5' End Kit *5 | H75: VB706180 | I75: BOT SLIDE BENCH 4'-ENDKIT 4'-LONG GUTTER
A76: =IF(D76=0,0,MAX(A$48:$A75)+1) -> 0 | B76: MS3294 | C76: TUBE - ROLLER (55.96") | D76: =D66 -> 0 | E76: Same as Frame Tube | H76: VB706181 | I76: BOT SLIDE BENCH 4'-ENDKIT 3'-LONG GUTTER
A77: =IF(D77=0,0,MAX(A$48:$A76)+1) -> 0 | B77: MS3288 | C77: TUBE - ROLLER (49.96") | D77: =(D5+D11)*2+(D17+D23)*2 -> 0 | E77: 4' & 5' End Kit *2 | H77: VB706182 | I77: BOT SLIDE BENCH 4'-ENDKIT 2'-LONG GUTTER
A78: =IF(D78=0,0,MAX(A$48:$A77)+1) -> 0 | B78: MS3822 | C78: TUBE - ROLLER (37.96") | D78: =(D6+D12)*2 + (D18+D24)*2 -> 0 | E78: 4' & 5' End Kit *2 | H78: VB706174 | I78: BOT SLIDE BENCH 5' DRAIN TRAY KIT GUTTER
A79: =IF(D79=0,0,MAX(A$48:$A78)+1) -> 0 | B79: MS3823 | C79: TUBE - ROLLER (25.96") | D79: =(D7+D13)*2+(D19+D25)*2 -> 0 | E79: 4' & 5' End Kit *2 | H79: VB706175 | I79: BOT SLIDE BENCH 5' MIDL TRAY KIT GUTTER
A80: =IF(D80=0,0,MAX(A$48:$A79)+1) -> 0 | B80: MS3824 | C80: TUBE - ROLLER (13.96") | D80: =(D8+D14)*2+(D20+D26)*2 -> 0 | E80: 4' & 5' End Kit *2 | H80: VB706176 | I80: BOT SLIDE BENCH 5'-ENDKIT 5'-LONG GUTTER
A81: =IF(D81=0,0,MAX(A$48:$A80)+1) -> 0 | B81: MS3296 | C81: SLIDE RAIL - 4FT | D81: =(D3+D4+ SUM(D5:D8)*2) + (D15+D16+SUM(D17:D20)*2) -> 0 | E81: Top Level BOM:4' Drain + Middle + 2*End Kit | H81: VB706183 | I81: BOT SLIDE BENCH 5'-ENDKIT 4'-LONG GUTTER
A82: =IF(D82=0,0,MAX(A$48:$A81)+1) -> 0 | B82: MS3431 | C82: SLIDE RAIL - 5FT | D82: =(D9+D10+SUM(D11:D14)*2) + (D21+D22+SUM(D23:D26)*2) -> 0 | E82: 4' Drain + Middle + 2*End Kit | H82: VB706184 | I82: BOT SLIDE BENCH 5'-ENDKIT 3'-LONG GUTTER
A83: =IF(D83=0,0,MAX(A$48:$A82)+1) -> 0 | B83: MS3257 | C83: TUBE - RECTANGLE, BRIDGE | D83: =D27+D28+D29 -> 0 | E83: Arch Kit Qty | H83: VB706185 | I83: BOT SLIDE BENCH 5'-ENDKIT 2'-LONG GUTTER
A84: =IF(D84=0,0,MAX(A$48:$A83)+1) -> 0 | B84: MS3281 | C84: CONNECTOR - FRAME | D84: =(D27*2)+(D28*2)+(D29*2) -> 0 | E84: Arch kits Qty*2 | H84: VB706000 | I84: BOTANICARE SLIDE BENCH 12" LEGS-BRDG KIT
A85: =IF(D85=0,0,MAX(A$48:$A84)+1) -> 0 | B85: MS3283 | C85: LEG ASSEMBLY - 20" BENCH | E85: 20" Arch kit Qty*2 | F85: These will be removed when 30" Leg Preassembled has been created. MS3271 (1/4"-20 X 3/8"), MS3255 (NUT 5/8"-11), and MS3256 (Washer 11/16") will need to be adjust down bc they will be part of preassembled | H85: VB706001 | I85: BOTANICARE SLIDE BENCH 20" LEGS-BRDG KIT
A86: =IF(D86=0,0,MAX(A$48:$A85)+1) -> 0 | B86: MS3285 | C86: LEG ASSEMBLY - 30" BENCH | D86: =D29*2 -> 0 | E86: 30" Arch kit Qty*2 | H86: VB706002 | I86: BOTANICARE SLIDE BENCH 30" LEGS-BRDG KIT
A87: =IF(D87=0,0,MAX(A$48:$A86)+1) -> 0 | B87: MS3258 | C87: LEG ASSEMBLY - 12" BENCH | E87: 12" Arch kit Qty*2 | H87: VB706003 | I87: BOTANICARE SLIDE BENCH ANTI-TIP KIT
A88: =IF(D88=0,0,MAX(A$48:$A87)+1) -> 0 | B88: MS3284 | C88: ROD - THREADED, 20-30" BENCH | D88: =(D29*2) -> 0 | E88: 20" & 30" Arch kits Qty *2 | H88: VB60040 | I88: BOTANICARE BOND 3 SEALANT VB BLACK
A89: =IF(D89=0,0,MAX(A$48:$A88)+1) -> 0 | B89: MS3282 | C89: ROD - THREADED, 12" BENCH | E89: Same as 12" Arch Leg
A90: =IF(D90=0,0,MAX(A$48:$A89)+1) -> 0 | B90: LC3651 | C90: 12" LEG PREASSEMBLED - BOTANICARE BENCH | D90: =D27*2 -> 0
A91: =IF(D91=0,0,MAX(A$48:$A90)+1) -> 0 | B91: LC3652 | C91: 20" LEG PREASSEMBLED - BOTANICARE BENCH | D91: =D28*2 -> 0
A92: =IF(D92=0,0,MAX(A$48:$A91)+1) -> 0 | C92: 30" LEG PREASSEMBLED - BOTANICARE BENCH | F92: Doesn't exit yet, equation deactivated (=D29*2)
A93: =IF(D93=0,0,MAX(A$48:$A92)+1) -> 0 | B93: MS3287 | C93: CONNECTOR - ROLLERS, 1.5" DIAM (SHORT) | D93: =(D3+D9)*4 + (D15+D21)*4 -> 0 | E93: Drain Kit *4
A94: =IF(D94=0,0,MAX(A$48:$A93)+1) -> 0 | B94: MS3293 | C94: CONNECTOR - ROLLERS, 1.5" DIAM (LONG) | D94: =(SUM(D4:D8) +SUM(D10:D14))*2 + (SUM(D16:D20) +SUM(D22:D26))*2 -> 0 | E94: (4' & 5' Middle + End) *2
A95: =IF(D95=0,0,MAX(A$48:$A94)+1) -> 0 | B95: MS3289 | C95: BRACKET - CORNER | D95: =SUM(D3:D14)*8 + SUM(D15:D26)*8 -> 0 | E95: 4' & 5' Kits *8
A96: =IF(D96=0,0,MAX(A$48:$A95)+1) -> 0 | B96: MC2081 | C96: BUMPER - TRELLIS, SLIDE RAIL | D96: =((D3+D4+SUM(D5:D8)*2)+(D9+D10+SUM(D11:D14)*2))*2 + ((D15+D16+SUM(D17:D20)*2)+(D21+D22+SUM(D23:D26)*2))*2 -> 0 | E96: (4' Drain + Middle + 2*End Kit)*2
A97: =IF(D97=0,0,MAX(A$48:$A96)+1) -> 0 | B97: MS3783 | C97: MOUNT - TRELLIS | D97: =D96 -> 0 | E97: Same as bumper quantity
A98: =IF(D98=0,0,MAX(A$48:$A97)+1) -> 0 | B98: MS3300 | C98: ANTI-TIP - WELDMENT | D98: =(IF(D4>0,$D$30,0)+ D3+SUM(D5:D8)) + (D9+D10+ SUM(D11:D14)*2) + (IF(D16>0,$D$30,0)+ D15+SUM(D17:D20)) + (D21+D22+ SUM(D23:D26)*2) -> 0 | E98: 4' Drain + End + Anti-tip Kit + 5' Drain + Middle + End Kit
A99: =IF(D99=0,0,MAX(A$48:$A98)+1) -> 0 | B99: MS3301 | C99: BRACKET - GUIDE | D99: =D98 -> 0 | E99: Same as Anti-tip Weldment
A100: =IF(D100=0,0,MAX(A$48:$A99)+1) -> 0 | B100: MC2082 | C100: ALIGNER - ROLLER | D100: =D98 -> 0 | E100: Anti-tp Qty
A101: =IF(D101=0,0,MAX(A$48:$A100)+1) -> 0 | B101: HGC708573-01 | C101: DRAIN SCREEN/1 | D101: =D3+ D9 +(D15*3) + (D21*4) -> 0 | E101: 4' & 5' Drain Kit
A102: =IF(D102=0,0,MAX(A$48:$A101)+1) -> 0 | B102: HGC708558-01 | C102: EBB N FLOW BARBED FITTING 1IN 25CT PACK | D102: =(D3+D9)*2+D15*3+D21*4 -> 0 | E102: 4' & 5' Drain Kit * 2
A103: =IF(D103=0,0,MAX(A$48:$A102)+1) -> 0 | B103: HGC708552-01 | C103: EBB N FLOW BARBED FITTING 3/4 25CT PACK | D103: =D3+D9+D15*3+D21*4 -> 0 | E103: 4' & 5' Drain Kit
A104: =IF(D104=0,0,MAX(A$48:$A103)+1) -> 0 | B104: MC2573 | C104: Gutter tray support - 4' | D104: =SUM(D15:D18)*2 -> 0 | E104: 2 per tray kit, excluding 3' and less
A105: =IF(D105=0,0,MAX(A$48:$A104)+1) -> 0 | B105: MC2572 | C105: Gutter tray support - 5' Inner | D105: =SUM(D21:D24)*2 -> 0 | E105: 2 per tray kit, excluding 3' and less
A106: =IF(D106=0,0,MAX(A$48:$A105)+1) -> 0 | B106: MC2571 | C106: Gutter tray support - 5' Exterior | D106: =D105 -> 0 | E106: 2 per tray kit, excluding 3' and less
A107: =IF(D107=0,0,MAX(A$48:$A106)+1) -> 0 | B107: HGC707010-01 | C107: BOTANICARE IRRIGATION HDR SUPPORT/10 | D107: =ROUNDUP( (SUM(D15,D17:D20)*3 + SUM(D21,D23:D26)*4) / 10, 0) -> 0 | E107: 1 per end/drain tray sections, pack of 10
A108: =IF(D108=0,0,MAX(A$48:$A107)+1) -> 0 | B108: HGC707009-01 | C108: BOTANICARE IRRIGATION LINE CLIP/25 | D108: =ROUNDUP( (D15*3 + D21*4)*ROUNDDOWN(Calcs!C54,0) / 25, 0) -> 0 | E108: 1 per tray per linear foot, pack of 25
A109: =IF(D109=0,0,MAX(A$48:$A108)+1) -> 0 | B109: HGC707007-01 | C109: BOTANICARE GUTTER MANIFOLD KIT - 3 DRAIN | D109: =D15 -> 0 | E109: 1 per 4' gutter drain tray
A110: =IF(D110=0,0,MAX(A$48:$A109)+1) -> 0 | B110: HGC707008-01 | C110: BOTANICARE GUTTER MANIFOLD KIT - 4 DRAIN | D110: =D21 -> 0 | E110: 1 per 5' gutter drain tray
A111: =IF(D111=0,0,MAX(A$48:$A110)+1) -> 0 | B111: HGC706016-01 | C111: BOND THREE SEALANT/1 | D111: =$D$31 -> 0 | E111: From Top Level BOM
A112: =IF(D112=0,0,MAX(A$48:$A111)+1) -> 0 | B112: HGC706014-01 | C112: BOT BOND THREE SEALANT TRAY SEALANT CDN | D112: =$D$31 -> 0 | E112: From Top Level BOM
A113: =IF(D113=0,0,MAX(A$48:$A112)+1) -> 1 | B113: 117004 | C113: Slide Bench Instruction Manual | D113: =$D$33 -> 1 | E113: From Top Level BOM
A114: =IF(D114=0,0,MAX(A$48:$A113)+1) -> 0 | B114: MS3531 | C114: LOGO END CAP (BOTANICARE SLIDING BENCH) | D114: =(D3+D9+D15+D21)*4 -> 0 | E114: 4' & 5' Drain Kit * 4
A115: =IF(D115=0,0,MAX(A$48:$A114)+1) -> 0 | B115: MS5071 | C115: TRILOCK TRELLIS MOUNT PACK - BAGGED 2/EA | D115: =IF(OR(D3>0,D9>0),D27+D28+D29,0) -> 0 | E115: 1 per Arch (with 10x SCREW 10-32 x 1in)
A116: =IF(D116=0,0,MAX(A$48:$A115)+1) -> 0 | B116: HGC706110-01 | C116: TRILOCK TRELLIS MOUNT PACK - BAGGED 2/EA | D116: =IF(OR(D15>0,D21>0),D27+D28+D29,0) -> 0 | E116: 1 per Arch (with 10x SCREW 10-32 x 1in)
A117: =IF(D117=0,0,MAX(A$48:$A116)+1) -> 0
A118: =IF(D118=0,0,MAX(A$48:$A117)+1) -> 0
A119: =IF(D119=0,0,MAX(A$48:$A118)+1) -> 0
A120: =IF(D120=0,0,MAX(A$48:$A119)+1) -> 0 | B120: LC3165 | C120: Arch Screw Kit | D120: =D27+D28+D29 -> 0 | E120: 1 pkg for each Arch Kit
A121: =IF(D121=0,0,MAX(A$48:$A120)+1) -> 0 | B121: MS3271 | C121: SCREW - HEX HD, FLNG, 1/4"-20 UNC X 3/8" | D121: =-(D120*4) -> 0 | E121: 4 per pkg
A122: =IF(D122=0,0,MAX(A$48:$A121)+1) -> 0 | B122: MS3255 | C122: NUT-HEX, 5/8"-11 UNC-2B | D122: =-(D29*4) -> 0 | E122: 4 per pkg | F122: Only for 30" leg, 12",20" preassembled include these
A123: =IF(D123=0,0,MAX(A$48:$A122)+1) -> 0 | B123: MS3256 | C123: Wshr, 11/16" ID | D123: =-(D29*4) -> 0 | E123: 4 per pkg
A124: =IF(D124=0,0,MAX(A$48:$A123)+1) -> 0 | B124: LC3166 | C124: Tubes Screw Kit | D124: =SUM(D3:D14) + SUM(D15:D26) -> 0 | E124: 1 pkg for long tubes, short tubes kit
A125: =IF(D125=0,0,MAX(A$48:$A124)+1) -> 0 | B125: MS3271 | C125: SCREW - HEX HD, FLNG, 1/4"-20 UNC X 3/8" | D125: =-(D124*9) -> 0 | E125: 9 per pkg
A126: =IF(D126=0,0,MAX(A$48:$A125)+1) -> 0 | B126: MS3291 | C126: SCREW, HEX HD, 10-32 X .5IN, THREAD-CUTTING | D126: =-(D124*52) -> 0 | E126: 52 per pkg
A127: =IF(D127=0,0,MAX(A$48:$A126)+1) -> 0 | B127: LC3167 | C127: Extrusion Screw Kit | D127: =D81+D82 -> 0 | E127: 1 pkg for each extrusion
A128: =IF(D128=0,0,MAX(A$48:$A127)+1) -> 0 | B128: MS3298 | C128: SCREW, THUMB, 10-32X.5IN | D128: =-(D127*2) -> 0 | E128: 2 per pkg
A129: =IF(D129=0,0,MAX(A$48:$A128)+1) -> 0 | B129: MS3299 | C129: SCREW, HEX HD, 10-32 X 1IN, THREAD-CUTTING | D129: =IF(Calcs!C41=1,-(D127*12),0) -> 0
A130: =IF(D130=0,0,MAX(A$48:$A129)+1) -> 0 | B130: LC3168 | C130: Anti-Tip Screw Kit | D130: =D98 -> 0 | E130: 1 pkg for each anti-tip
A131: =IF(D131=0,0,MAX(A$48:$A130)+1) -> 0 | B131: MS3299 | C131: SCREW, HEX HD, 10-32 X 1IN, THREAD-CUTTING | D131: =-(D130*4) -> 0 | E131: 4 per pkg
A132: =IF(D132=0,0,MAX(A$48:$A131)+1) -> 0 | B132: MS3291 | C132: SCREW, HEX HD, 10-32 X .5IN, THREAD-CUTTING | D132: =-(D130*2) -> 0 | E132: 2 per pkg
A133: =IF(D133=0,0,MAX(A$48:$A132)+1) -> 0 | B133: MS3260 | C133: SCREW, HEX HD, 10-16 X 1/2", SELF-DRILL | D133: =-(D130*2) -> 0 | E133: 2 per pkg
A134: =IF(D134=0,0,MAX(A$48:$A133)+1) -> 0 | B134: MC2083 | C134: PLUG - TUBE, 1X1 | D134: =-(D130*4) -> 0 | E134: 4 per pkg
A135: =IF(D135=0,0,MAX(A$48:$A134)+1) -> 0 | B135: MC2084 | C135: PLUG - 5/8" DIAMETER | D135: =-(D130*4) -> 0 | E135: 4 per pkg
A136: =IF(D136=0,0,MAX(A$48:$A135)+1) -> 0 | B136: MC2085 | C136: SPRING - COMPRESSION, RUBBER | D136: =-(D130*2) -> 0 | E136: 2 per pkg

Sheet New Order BOM's (hidden)
A1: Transfer Filter | C1: Index # | D1: Virtual SKU Designation | E1: SKU Character Count | F1: SAP Description (40 character max) | G1: SAP Description Character Count | H1: Web Description (200 character max) | I1: Width (FT) | J1: Length (FT) | K1: Height (IN)
A2: =IF(B2=0,0,1) -> 0 | B2: =IF(D2=Calcs!$X$38,Calcs!$W$38,IF(D2=Calcs!$X$39,Calcs!$W$39,IF(D2=Calcs!$X$40,Calcs!$W$40,IF(TRUE,0)))) -> 0 | C2: 1 | D2: TB48-90-14BT | E2: 12 | F2: TRACK BENCH: 4FTx7.5FTx14INxBT | G2: 30 | H2: BOTANICARE TRACK BENCH: 4FT WIDE x 7.5FT LONG x 14IN HIGH, TRILOCK | I2: 4 | J2: 7.5 | K2: 14
A3: =IF(B3=0,0,MAX(A2)+1) -> 0 | B3: =IF(D3=Calcs!$X$38,Calcs!$W$38,IF(D3=Calcs!$X$39,Calcs!$W$39,IF(D3=Calcs!$X$40,Calcs!$W$40,IF(TRUE,0)))) -> 0 | C3: 2 | D3: TB48-102-14BT | E3: 13 | F3: TRACK BENCH: 4FTx8.5FTx14INxBT | G3: 30 | H3: BOTANICARE TRACK BENCH: 4FT WIDE x 8.5FT LONG x 14IN HIGH, TRILOCK | I3: 4 | J3: 8.5 | K3: 14
A4: =IF(B4=0,0,MAX($A$2:A3)+1) -> 0 | B4: =IF(D4=Calcs!$X$38,Calcs!$W$38,IF(D4=Calcs!$X$39,Calcs!$W$39,IF(D4=Calcs!$X$40,Calcs!$W$40,IF(TRUE,0)))) -> 0 | C4: 3 | D4: TB48-114-14BT | E4: 13 | F4: TRACK BENCH: 4FTx9.5FTx14INxBT | G4: 30 | H4: BOTANICARE TRACK BENCH: 4FT WIDE x 9.5FT LONG x 14IN HIGH, TRILOCK | I4: 4 | J4: 9.5 | K4: 14
A5: =IF(B5=0,0,MAX($A$2:A4)+1) -> 0 | B5: =IF(D5=Calcs!$X$38,Calcs!$W$38,IF(D5=Calcs!$X$39,Calcs!$W$39,IF(D5=Calcs!$X$40,Calcs!$W$40,IF(TRUE,0)))) -> 0 | C5: 4 | D5: TB48-126-14BT | E5: 13 | F5: TRACK BENCH: 4FTx10.5FTx14INxBT | G5: 31 | H5: BOTANICARE TRACK BENCH: 4FT WIDE x 10.5FT LONG x 14IN HIGH, TRILOCK | I5: 4 | J5: 10.5 | K5: 14
A6: =IF(B6=0,0,MAX($A$2:A5)+1) -> 0 | B6: =IF(D6=Calcs!$X$38,Calcs!$W$38,IF(D6=Calcs!$X$39,Calcs!$W$39,IF(D6=Calcs!$X$40,Calcs!$W$40,IF(TRUE,0)))) -> 0 | C6: 5 | D6: TB48-150-14BT | E6: 13 | F6: TRACK BENCH: 4FTx12.5FTx14INxBT | G6: 31 | H6: BOTANICARE TRACK BENCH: 4FT WIDE x 12.5FT LONG x 14IN HIGH, TRILOCK | I6: 4 | J6: 12.5 | K6: 14
A7: =IF(B7=0,0,MAX($A$2:A6)+1) -> 0 | B7: =IF(D7=Calcs!$X$38,Calcs!$W$38,IF(D7=Calcs!$X$39,Calcs!$W$39,IF(D7=Calcs!$X$40,Calcs!$W$40,IF(TRUE,0)))) -> 0 | C7: 6 | D7: TB48-162-14BT | E7: 13 | F7: TRACK BENCH: 4FTx13.5FTx14INxBT | G7: 31 | H7: BOTANICARE TRACK BENCH: 4FT WIDE x 13.5FT LONG x 14IN HIGH, TRILOCK | I7: 4 | J7: 13.5 | K7: 14
A8: =IF(B8=0,0,MAX($A$2:A7)+1) -> 0 | B8: =IF(D8=Calcs!$X$38,Calcs!$W$38,IF(D8=Calcs!$X$39,Calcs!$W$39,IF(D8=Calcs!$X$40,Calcs!$W$40,IF(TRUE,0)))) -> 0 | C8: 7 | D8: TB48-174-14BT | E8: 13 | F8: TRACK BENCH: 4FTx14.5FTx14INxBT | G8: 31 | H8: BOTANICARE TRACK BENCH: 4FT WIDE x 14.5FT LONG x 14IN HIGH, TRILOCK | I8: 4 | J8: 14.5 | K8: 14
A9: =IF(B9=0,0,MAX($A$2:A8)+1) -> 0 | B9: =IF(D9=Calcs!$X$38,Calcs!$W$38,IF(D9=Calcs!$X$39,Calcs!$W$39,IF(D9=Calcs!$X$40,Calcs!$W$40,IF(TRUE,0)))) -> 0 | C9: 8 | D9: TB48-186-14BT | E9: 13 | F9: TRACK BENCH: 4FTx15.5FTx14INxBT | G9: 31 | H9: BOTANICARE TRACK BENCH: 4FT WIDE x 15.5FT LONG x 14IN HIGH, TRILOCK | I9: 4 | J9: 15.5 | K9: 14
A10: =IF(B10=0,0,MAX($A$2:A9)+1) -> 0 | B10: =IF(D10=Calcs!$X$38,Calcs!$W$38,IF(D10=Calcs!$X$39,Calcs!$W$39,IF(D10=Calcs!$X$40,Calcs!$W$40,IF(TRUE,0)))) -> 0 | C10: 9 | D10: TB48-210-14BT | E10: 13 | F10: TRACK BENCH: 4FTx17.5FTx14INxBT | G10: 31 | H10: BOTANICARE TRACK BENCH: 4FT WIDE x 17.5FT LONG x 14IN HIGH, TRILOCK | I10: 4 | J10: 17.5 | K10: 14
A11: =IF(B11=0,0,MAX($A$2:A10)+1) -> 0 | B11: =IF(D11=Calcs!$X$38,Calcs!$W$38,IF(D11=Calcs!$X$39,Calcs!$W$39,IF(D11=Calcs!$X$40,Calcs!$W$40,IF(TRUE,0)))) -> 0 | C11: 10 | D11: TB48-222-14BT | E11: 13 | F11: TRACK BENCH: 4FTx18.5FTx14INxBT | G11: 31 | H11: BOTANICARE TRACK BENCH: 4FT WIDE x 18.5FT LONG x 14IN HIGH, TRILOCK | I11: 4 | J11: 18.5 | K11: 14
A12: =IF(B12=0,0,MAX($A$2:A11)+1) -> 0 | B12: =IF(D12=Calcs!$X$38,Calcs!$W$38,IF(D12=Calcs!$X$39,Calcs!$W$39,IF(D12=Calcs!$X$40,Calcs!$W$40,IF(TRUE,0)))) -> 0 | C12: 11 | D12: TB48-234-14BT | E12: 13 | F12: TRACK BENCH: 4FTx19.5FTx14INxBT | G12: 31 | H12: BOTANICARE TRACK BENCH: 4FT WIDE x 19.5FT LONG x 14IN HIGH, TRILOCK | I12: 4 | J12: 19.5 | K12: 14
A13: =IF(B13=0,0,MAX($A$2:A12)+1) -> 0 | B13: =IF(D13=Calcs!$X$38,Calcs!$W$38,IF(D13=Calcs!$X$39,Calcs!$W$39,IF(D13=Calcs!$X$40,Calcs!$W$40,IF(TRUE,0)))) -> 0 | C13: 12 | D13: TB48-246-14BT | E13: 13 | F13: TRACK BENCH: 4FTx20.5FTx14INxBT | G13: 31 | H13: BOTANICARE TRACK BENCH: 4FT WIDE x 20.5FT LONG x 14IN HIGH, TRILOCK | I13: 4 | J13: 20.5 | K13: 14
A14: =IF(B14=0,0,MAX($A$2:A13)+1) -> 0 | B14: =IF(D14=Calcs!$X$38,Calcs!$W$38,IF(D14=Calcs!$X$39,Calcs!$W$39,IF(D14=Calcs!$X$40,Calcs!$W$40,IF(TRUE,0)))) -> 0 | C14: 13 | D14: TB48-270-14BT | E14: 13 | F14: TRACK BENCH: 4FTx22.5FTx14INxBT | G14: 31 | H14: BOTANICARE TRACK BENCH: 4FT WIDE x 22.5FT LONG x 14IN HIGH, TRILOCK | I14: 4 | J14: 22.5 | K14: 14
A15: =IF(B15=0,0,MAX($A$2:A14)+1) -> 0 | B15: =IF(D15=Calcs!$X$38,Calcs!$W$38,IF(D15=Calcs!$X$39,Calcs!$W$39,IF(D15=Calcs!$X$40,Calcs!$W$40,IF(TRUE,0)))) -> 0 | C15: 14 | D15: TB48-282-14BT | E15: 13 | F15: TRACK BENCH: 4FTx23.5FTx14INxBT | G15: 31 | H15: BOTANICARE TRACK BENCH: 4FT WIDE x 23.5FT LONG x 14IN HIGH, TRILOCK | I15: 4 | J15: 23.5 | K15: 14
A16: =IF(B16=0,0,MAX($A$2:A15)+1) -> 0 | B16: =IF(D16=Calcs!$X$38,Calcs!$W$38,IF(D16=Calcs!$X$39,Calcs!$W$39,IF(D16=Calcs!$X$40,Calcs!$W$40,IF(TRUE,0)))) -> 0 | C16: 15 | D16: TB48-294-14BT | E16: 13 | F16: TRACK BENCH: 4FTx24.5FTx14INxBT | G16: 31 | H16: BOTANICARE TRACK BENCH: 4FT WIDE x 24.5FT LONG x 14IN HIGH, TRILOCK | I16: 4 | J16: 24.5 | K16: 14
A17: =IF(B17=0,0,MAX($A$2:A16)+1) -> 0 | B17: =IF(D17=Calcs!$X$38,Calcs!$W$38,IF(D17=Calcs!$X$39,Calcs!$W$39,IF(D17=Calcs!$X$40,Calcs!$W$40,IF(TRUE,0)))) -> 0 | C17: 16 | D17: TB48-306-14BT | E17: 13 | F17: TRACK BENCH: 4FTx25.5FTx14INxBT | G17: 31 | H17: BOTANICARE TRACK BENCH: 4FT WIDE x 25.5FT LONG x 14IN HIGH, TRILOCK | I17: 4 | J17: 25.5 | K17: 14
A18: =IF(B18=0,0,MAX($A$2:A17)+1) -> 0 | B18: =IF(D18=Calcs!$X$38,Calcs!$W$38,IF(D18=Calcs!$X$39,Calcs!$W$39,IF(D18=Calcs!$X$40,Calcs!$W$40,IF(TRUE,0)))) -> 0 | C18: 17 | D18: TB48-330-14BT | E18: 13 | F18: TRACK BENCH: 4FTx27.5FTx14INxBT | G18: 31 | H18: BOTANICARE TRACK BENCH: 4FT WIDE x 27.5FT LONG x 14IN HIGH, TRILOCK | I18: 4 | J18: 27.5 | K18: 14
A19: =IF(B19=0,0,MAX($A$2:A18)+1) -> 0 | B19: =IF(D19=Calcs!$X$38,Calcs!$W$38,IF(D19=Calcs!$X$39,Calcs!$W$39,IF(D19=Calcs!$X$40,Calcs!$W$40,IF(TRUE,0)))) -> 0 | C19: 18 | D19: TB48-342-14BT | E19: 13 | F19: TRACK BENCH: 4FTx28.5FTx14INxBT | G19: 31 | H19: BOTANICARE TRACK BENCH: 4FT WIDE x 28.5FT LONG x 14IN HIGH, TRILOCK | I19: 4 | J19: 28.5 | K19: 14
A20: =IF(B20=0,0,MAX($A$2:A19)+1) -> 0 | B20: =IF(D20=Calcs!$X$38,Calcs!$W$38,IF(D20=Calcs!$X$39,Calcs!$W$39,IF(D20=Calcs!$X$40,Calcs!$W$40,IF(TRUE,0)))) -> 0 | C20: 19 | D20: TB48-354-14BT | E20: 13 | F20: TRACK BENCH: 4FTx29.5FTx14INxBT | G20: 31 | H20: BOTANICARE TRACK BENCH: 4FT WIDE x 29.5FT LONG x 14IN HIGH, TRILOCK | I20: 4 | J20: 29.5 | K20: 14
A21: =IF(B21=0,0,MAX($A$2:A20)+1) -> 0 | B21: =IF(D21=Calcs!$X$38,Calcs!$W$38,IF(D21=Calcs!$X$39,Calcs!$W$39,IF(D21=Calcs!$X$40,Calcs!$W$40,IF(TRUE,0)))) -> 0 | C21: 20 | D21: TB48-366-14BT | E21: 13 | F21: TRACK BENCH: 4FTx30.5FTx14INxBT | G21: 31 | H21: BOTANICARE TRACK BENCH: 4FT WIDE x 30.5FT LONG x 14IN HIGH, TRILOCK | I21: 4 | J21: 30.5 | K21: 14
A22: =IF(B22=0,0,MAX($A$2:A21)+1) -> 0 | B22: =IF(D22=Calcs!$X$38,Calcs!$W$38,IF(D22=Calcs!$X$39,Calcs!$W$39,IF(D22=Calcs!$X$40,Calcs!$W$40,IF(TRUE,0)))) -> 0 | C22: 21 | D22: TB48-390-14BT | E22: 13 | F22: TRACK BENCH: 4FTx32.5FTx14INxBT | G22: 31 | H22: BOTANICARE TRACK BENCH: 4FT WIDE x 32.5FT LONG x 14IN HIGH, TRILOCK | I22: 4 | J22: 32.5 | K22: 14
A23: =IF(B23=0,0,MAX($A$2:A22)+1) -> 0 | B23: =IF(D23=Calcs!$X$38,Calcs!$W$38,IF(D23=Calcs!$X$39,Calcs!$W$39,IF(D23=Calcs!$X$40,Calcs!$W$40,IF(TRUE,0)))) -> 0 | C23: 22 | D23: TB48-402-14BT | E23: 13 | F23: TRACK BENCH: 4FTx33.5FTx14INxBT | G23: 31 | H23: BOTANICARE TRACK BENCH: 4FT WIDE x 33.5FT LONG x 14IN HIGH, TRILOCK | I23: 4 | J23: 33.5 | K23: 14
A24: =IF(B24=0,0,MAX($A$2:A23)+1) -> 0 | B24: =IF(D24=Calcs!$X$38,Calcs!$W$38,IF(D24=Calcs!$X$39,Calcs!$W$39,IF(D24=Calcs!$X$40,Calcs!$W$40,IF(TRUE,0)))) -> 0 | C24: 23 | D24: TB48-414-14BT | E24: 13 | F24: TRACK BENCH: 4FTx34.5FTx14INxBT | G24: 31 | H24: BOTANICARE TRACK BENCH: 4FT WIDE x 34.5FT LONG x 14IN HIGH, TRILOCK | I24: 4 | J24: 34.5 | K24: 14
A25: =IF(B25=0,0,MAX($A$2:A24)+1) -> 0 | B25: =IF(D25=Calcs!$X$38,Calcs!$W$38,IF(D25=Calcs!$X$39,Calcs!$W$39,IF(D25=Calcs!$X$40,Calcs!$W$40,IF(TRUE,0)))) -> 0 | C25: 24 | D25: TB48-426-14BT | E25: 13 | F25: TRACK BENCH: 4FTx35.5FTx14INxBT | G25: 31 | H25: BOTANICARE TRACK BENCH: 4FT WIDE x 35.5FT LONG x 14IN HIGH, TRILOCK | I25: 4 | J25: 35.5 | K25: 14
A26: =IF(B26=0,0,MAX($A$2:A25)+1) -> 0 | B26: =IF(D26=Calcs!$X$38,Calcs!$W$38,IF(D26=Calcs!$X$39,Calcs!$W$39,IF(D26=Calcs!$X$40,Calcs!$W$40,IF(TRUE,0)))) -> 0 | C26: 25 | D26: TB48-450-14BT | E26: 13 | F26: TRACK BENCH: 4FTx37.5FTx14INxBT | G26: 31 | H26: BOTANICARE TRACK BENCH: 4FT WIDE x 37.5FT LONG x 14IN HIGH, TRILOCK | I26: 4 | J26: 37.5 | K26: 14
A27: =IF(B27=0,0,MAX($A$2:A26)+1) -> 0 | B27: =IF(D27=Calcs!$X$38,Calcs!$W$38,IF(D27=Calcs!$X$39,Calcs!$W$39,IF(D27=Calcs!$X$40,Calcs!$W$40,IF(TRUE,0)))) -> 0 | C27: 26 | D27: TB48-462-14BT | E27: 13 | F27: TRACK BENCH: 4FTx38.5FTx14INxBT | G27: 31 | H27: BOTANICARE TRACK BENCH: 4FT WIDE x 38.5FT LONG x 14IN HIGH, TRILOCK | I27: 4 | J27: 38.5 | K27: 14
A28: =IF(B28=0,0,MAX($A$2:A27)+1) -> 0 | B28: =IF(D28=Calcs!$X$38,Calcs!$W$38,IF(D28=Calcs!$X$39,Calcs!$W$39,IF(D28=Calcs!$X$40,Calcs!$W$40,IF(TRUE,0)))) -> 0 | C28: 27 | D28: TB48-474-14BT | E28: 13 | F28: TRACK BENCH: 4FTx39.5FTx14INxBT | G28: 31 | H28: BOTANICARE TRACK BENCH: 4FT WIDE x 39.5FT LONG x 14IN HIGH, TRILOCK | I28: 4 | J28: 39.5 | K28: 14
A29: =IF(B29=0,0,MAX($A$2:A28)+1) -> 0 | B29: =IF(D29=Calcs!$X$38,Calcs!$W$38,IF(D29=Calcs!$X$39,Calcs!$W$39,IF(D29=Calcs!$X$40,Calcs!$W$40,IF(TRUE,0)))) -> 0 | C29: 28 | D29: TB48-486-14BT | E29: 13 | F29: TRACK BENCH: 4FTx40.5FTx14INxBT | G29: 31 | H29: BOTANICARE TRACK BENCH: 4FT WIDE x 40.5FT LONG x 14IN HIGH, TRILOCK | I29: 4 | J29: 40.5 | K29: 14
A30: =IF(B30=0,0,MAX($A$2:A29)+1) -> 0 | B30: =IF(D30=Calcs!$X$38,Calcs!$W$38,IF(D30=Calcs!$X$39,Calcs!$W$39,IF(D30=Calcs!$X$40,Calcs!$W$40,IF(TRUE,0)))) -> 0 | C30: 29 | D30: TB48-510-14BT | E30: 13 | F30: TRACK BENCH: 4FTx42.5FTx14INxBT | G30: 31 | H30: BOTANICARE TRACK BENCH: 4FT WIDE x 42.5FT LONG x 14IN HIGH, TRILOCK | I30: 4 | J30: 42.5 | K30: 14
A31: =IF(B31=0,0,MAX($A$2:A30)+1) -> 0 | B31: =IF(D31=Calcs!$X$38,Calcs!$W$38,IF(D31=Calcs!$X$39,Calcs!$W$39,IF(D31=Calcs!$X$40,Calcs!$W$40,IF(TRUE,0)))) -> 0 | C31: 30 | D31: TB48-522-14BT | E31: 13 | F31: TRACK BENCH: 4FTx43.5FTx14INxBT | G31: 31 | H31: BOTANICARE TRACK BENCH: 4FT WIDE x 43.5FT LONG x 14IN HIGH, TRILOCK | I31: 4 | J31: 43.5 | K31: 14
A32: =IF(B32=0,0,MAX($A$2:A31)+1) -> 0 | B32: =IF(D32=Calcs!$X$38,Calcs!$W$38,IF(D32=Calcs!$X$39,Calcs!$W$39,IF(D32=Calcs!$X$40,Calcs!$W$40,IF(TRUE,0)))) -> 0 | C32: 31 | D32: TB48-534-14BT | E32: 13 | F32: TRACK BENCH: 4FTx44.5FTx14INxBT | G32: 31 | H32: BOTANICARE TRACK BENCH: 4FT WIDE x 44.5FT LONG x 14IN HIGH, TRILOCK | I32: 4 | J32: 44.5 | K32: 14
A33: =IF(B33=0,0,MAX($A$2:A32)+1) -> 0 | B33: =IF(D33=Calcs!$X$38,Calcs!$W$38,IF(D33=Calcs!$X$39,Calcs!$W$39,IF(D33=Calcs!$X$40,Calcs!$W$40,IF(TRUE,0)))) -> 0 | C33: 32 | D33: TB48-546-14BT | E33: 13 | F33: TRACK BENCH: 4FTx45.5FTx14INxBT | G33: 31 | H33: BOTANICARE TRACK BENCH: 4FT WIDE x 45.5FT LONG x 14IN HIGH, TRILOCK | I33: 4 | J33: 45.5 | K33: 14
A34: =IF(B34=0,0,MAX($A$2:A33)+1) -> 0 | B34: =IF(D34=Calcs!$X$38,Calcs!$W$38,IF(D34=Calcs!$X$39,Calcs!$W$39,IF(D34=Calcs!$X$40,Calcs!$W$40,IF(TRUE,0)))) -> 0 | C34: 33 | D34: TB48-570-14BT | E34: 13 | F34: TRACK BENCH: 4FTx47.5FTx14INxBT | G34: 31 | H34: BOTANICARE TRACK BENCH: 4FT WIDE x 47.5FT LONG x 14IN HIGH, TRILOCK | I34: 4 | J34: 47.5 | K34: 14
A35: =IF(B35=0,0,MAX($A$2:A34)+1) -> 0 | B35: =IF(D35=Calcs!$X$38,Calcs!$W$38,IF(D35=Calcs!$X$39,Calcs!$W$39,IF(D35=Calcs!$X$40,Calcs!$W$40,IF(TRUE,0)))) -> 0 | C35: 34 | D35: TB48-582-14BT | E35: 13 | F35: TRACK BENCH: 4FTx48.5FTx14INxBT | G35: 31 | H35: BOTANICARE TRACK BENCH: 4FT WIDE x 48.5FT LONG x 14IN HIGH, TRILOCK | I35: 4 | J35: 48.5 | K35: 14
A36: =IF(B36=0,0,MAX($A$2:A35)+1) -> 0 | B36: =IF(D36=Calcs!$X$38,Calcs!$W$38,IF(D36=Calcs!$X$39,Calcs!$W$39,IF(D36=Calcs!$X$40,Calcs!$W$40,IF(TRUE,0)))) -> 0 | C36: 35 | D36: TB48-594-14BT | E36: 13 | F36: TRACK BENCH: 4FTx49.5FTx14INxBT | G36: 31 | H36: BOTANICARE TRACK BENCH: 4FT WIDE x 49.5FT LONG x 14IN HIGH, TRILOCK | I36: 4 | J36: 49.5 | K36: 14
A37: =IF(B37=0,0,MAX($A$2:A36)+1) -> 0 | B37: =IF(D37=Calcs!$X$38,Calcs!$W$38,IF(D37=Calcs!$X$39,Calcs!$W$39,IF(D37=Calcs!$X$40,Calcs!$W$40,IF(TRUE,0)))) -> 0 | C37: 36 | D37: TB48-606-14BT | E37: 13 | F37: TRACK BENCH: 4FTx50.5FTx14INxBT | G37: 31 | H37: BOTANICARE TRACK BENCH: 4FT WIDE x 50.5FT LONG x 14IN HIGH, TRILOCK | I37: 4 | J37: 50.5 | K37: 14
A38: =IF(B38=0,0,MAX($A$2:A37)+1) -> 0 | B38: =IF(D38=Calcs!$X$38,Calcs!$W$38,IF(D38=Calcs!$X$39,Calcs!$W$39,IF(D38=Calcs!$X$40,Calcs!$W$40,IF(TRUE,0)))) -> 0 | C38: 37 | D38: TB48-630-14BT | E38: 13 | F38: TRACK BENCH: 4FTx52.5FTx14INxBT | G38: 31 | H38: BOTANICARE TRACK BENCH: 4FT WIDE x 52.5FT LONG x 14IN HIGH, TRILOCK | I38: 4 | J38: 52.5 | K38: 14
A39: =IF(B39=0,0,MAX($A$2:A38)+1) -> 0 | B39: =IF(D39=Calcs!$X$38,Calcs!$W$38,IF(D39=Calcs!$X$39,Calcs!$W$39,IF(D39=Calcs!$X$40,Calcs!$W$40,IF(TRUE,0)))) -> 0 | C39: 38 | D39: TB48-642-14BT | E39: 13 | F39: TRACK BENCH: 4FTx53.5FTx14INxBT | G39: 31 | H39: BOTANICARE TRACK BENCH: 4FT WIDE x 53.5FT LONG x 14IN HIGH, TRILOCK | I39: 4 | J39: 53.5 | K39: 14
A40: =IF(B40=0,0,MAX($A$2:A39)+1) -> 0 | B40: =IF(D40=Calcs!$X$38,Calcs!$W$38,IF(D40=Calcs!$X$39,Calcs!$W$39,IF(D40=Calcs!$X$40,Calcs!$W$40,IF(TRUE,0)))) -> 0 | C40: 39 | D40: TB48-654-14BT | E40: 13 | F40: TRACK BENCH: 4FTx54.5FTx14INxBT | G40: 31 | H40: BOTANICARE TRACK BENCH: 4FT WIDE x 54.5FT LONG x 14IN HIGH, TRILOCK | I40: 4 | J40: 54.5 | K40: 14
A41: =IF(B41=0,0,MAX($A$2:A40)+1) -> 0 | B41: =IF(D41=Calcs!$X$38,Calcs!$W$38,IF(D41=Calcs!$X$39,Calcs!$W$39,IF(D41=Calcs!$X$40,Calcs!$W$40,IF(TRUE,0)))) -> 0 | C41: 40 | D41: TB48-666-14BT | E41: 13 | F41: TRACK BENCH: 4FTx55.5FTx14INxBT | G41: 31 | H41: BOTANICARE TRACK BENCH: 4FT WIDE x 55.5FT LONG x 14IN HIGH, TRILOCK | I41: 4 | J41: 55.5 | K41: 14
A42: =IF(B42=0,0,MAX($A$2:A41)+1) -> 0 | B42: =IF(D42=Calcs!$X$38,Calcs!$W$38,IF(D42=Calcs!$X$39,Calcs!$W$39,IF(D42=Calcs!$X$40,Calcs!$W$40,IF(TRUE,0)))) -> 0 | C42: 41 | D42: TB48-690-14BT | E42: 13 | F42: TRACK BENCH: 4FTx57.5FTx14INxBT | G42: 31 | H42: BOTANICARE TRACK BENCH: 4FT WIDE x 57.5FT LONG x 14IN HIGH, TRILOCK | I42: 4 | J42: 57.5 | K42: 14
A43: =IF(B43=0,0,MAX($A$2:A42)+1) -> 0 | B43: =IF(D43=Calcs!$X$38,Calcs!$W$38,IF(D43=Calcs!$X$39,Calcs!$W$39,IF(D43=Calcs!$X$40,Calcs!$W$40,IF(TRUE,0)))) -> 0 | C43: 42 | D43: TB48-702-14BT | E43: 13 | F43: TRACK BENCH: 4FTx58.5FTx14INxBT | G43: 31 | H43: BOTANICARE TRACK BENCH: 4FT WIDE x 58.5FT LONG x 14IN HIGH, TRILOCK | I43: 4 | J43: 58.5 | K43: 14
A44: =IF(B44=0,0,MAX($A$2:A43)+1) -> 0 | B44: =IF(D44=Calcs!$X$38,Calcs!$W$38,IF(D44=Calcs!$X$39,Calcs!$W$39,IF(D44=Calcs!$X$40,Calcs!$W$40,IF(TRUE,0)))) -> 0 | C44: 43 | D44: TB48-714-14BT | E44: 13 | F44: TRACK BENCH: 4FTx59.5FTx14INxBT | G44: 31 | H44: BOTANICARE TRACK BENCH: 4FT WIDE x 59.5FT LONG x 14IN HIGH, TRILOCK | I44: 4 | J44: 59.5 | K44: 14
A45: =IF(B45=0,0,MAX($A$2:A44)+1) -> 0 | B45: =IF(D45=Calcs!$X$38,Calcs!$W$38,IF(D45=Calcs!$X$39,Calcs!$W$39,IF(D45=Calcs!$X$40,Calcs!$W$40,IF(TRUE,0)))) -> 0 | C45: 44 | D45: TB48-726-14BT | E45: 13 | F45: TRACK BENCH: 4FTx60.5FTx14INxBT | G45: 31 | H45: BOTANICARE TRACK BENCH: 4FT WIDE x 60.5FT LONG x 14IN HIGH, TRILOCK | I45: 4 | J45: 60.5 | K45: 14
A46: =IF(B46=0,0,MAX($A$2:A45)+1) -> 0 | B46: =IF(D46=Calcs!$X$38,Calcs!$W$38,IF(D46=Calcs!$X$39,Calcs!$W$39,IF(D46=Calcs!$X$40,Calcs!$W$40,IF(TRUE,0)))) -> 0 | C46: 45 | D46: TB48-750-14BT | E46: 13 | F46: TRACK BENCH: 4FTx62.5FTx14INxBT | G46: 31 | H46: BOTANICARE TRACK BENCH: 4FT WIDE x 62.5FT LONG x 14IN HIGH, TRILOCK | I46: 4 | J46: 62.5 | K46: 14
A47: =IF(B47=0,0,MAX($A$2:A46)+1) -> 0 | B47: =IF(D47=Calcs!$X$38,Calcs!$W$38,IF(D47=Calcs!$X$39,Calcs!$W$39,IF(D47=Calcs!$X$40,Calcs!$W$40,IF(TRUE,0)))) -> 0 | C47: 46 | D47: TB48-762-14BT | E47: 13 | F47: TRACK BENCH: 4FTx63.5FTx14INxBT | G47: 31 | H47: BOTANICARE TRACK BENCH: 4FT WIDE x 63.5FT LONG x 14IN HIGH, TRILOCK | I47: 4 | J47: 63.5 | K47: 14
A48: =IF(B48=0,0,MAX($A$2:A47)+1) -> 0 | B48: =IF(D48=Calcs!$X$38,Calcs!$W$38,IF(D48=Calcs!$X$39,Calcs!$W$39,IF(D48=Calcs!$X$40,Calcs!$W$40,IF(TRUE,0)))) -> 0 | C48: 47 | D48: TB48-774-14BT | E48: 13 | F48: TRACK BENCH: 4FTx64.5FTx14INxBT | G48: 31 | H48: BOTANICARE TRACK BENCH: 4FT WIDE x 64.5FT LONG x 14IN HIGH, TRILOCK | I48: 4 | J48: 64.5 | K48: 14
A49: =IF(B49=0,0,MAX($A$2:A48)+1) -> 0 | B49: =IF(D49=Calcs!$X$38,Calcs!$W$38,IF(D49=Calcs!$X$39,Calcs!$W$39,IF(D49=Calcs!$X$40,Calcs!$W$40,IF(TRUE,0)))) -> 0 | C49: 48 | D49: TB48-786-14BT | E49: 13 | F49: TRACK BENCH: 4FTx65.5FTx14INxBT | G49: 31 | H49: BOTANICARE TRACK BENCH: 4FT WIDE x 65.5FT LONG x 14IN HIGH, TRILOCK | I49: 4 | J49: 65.5 | K49: 14
A50: =IF(B50=0,0,MAX($A$2:A49)+1) -> 0 | B50: =IF(D50=Calcs!$X$38,Calcs!$W$38,IF(D50=Calcs!$X$39,Calcs!$W$39,IF(D50=Calcs!$X$40,Calcs!$W$40,IF(TRUE,0)))) -> 0 | C50: 49 | D50: TB48-810-14BT | E50: 13 | F50: TRACK BENCH: 4FTx67.5FTx14INxBT | G50: 31 | H50: BOTANICARE TRACK BENCH: 4FT WIDE x 67.5FT LONG x 14IN HIGH, TRILOCK | I50: 4 | J50: 67.5 | K50: 14
A51: =IF(B51=0,0,MAX($A$2:A50)+1) -> 0 | B51: =IF(D51=Calcs!$X$38,Calcs!$W$38,IF(D51=Calcs!$X$39,Calcs!$W$39,IF(D51=Calcs!$X$40,Calcs!$W$40,IF(TRUE,0)))) -> 0 | C51: 50 | D51: TB48-822-14BT | E51: 13 | F51: TRACK BENCH: 4FTx68.5FTx14INxBT | G51: 31 | H51: BOTANICARE TRACK BENCH: 4FT WIDE x 68.5FT LONG x 14IN HIGH, TRILOCK | I51: 4 | J51: 68.5 | K51: 14
A52: =IF(B52=0,0,MAX($A$2:A51)+1) -> 0 | B52: =IF(D52=Calcs!$X$38,Calcs!$W$38,IF(D52=Calcs!$X$39,Calcs!$W$39,IF(D52=Calcs!$X$40,Calcs!$W$40,IF(TRUE,0)))) -> 0 | C52: 51 | D52: TB48-834-14BT | E52: 13 | F52: TRACK BENCH: 4FTx69.5FTx14INxBT | G52: 31 | H52: BOTANICARE TRACK BENCH: 4FT WIDE x 69.5FT LONG x 14IN HIGH, TRILOCK | I52: 4 | J52: 69.5 | K52: 14
A53: =IF(B53=0,0,MAX($A$2:A52)+1) -> 0 | B53: =IF(D53=Calcs!$X$38,Calcs!$W$38,IF(D53=Calcs!$X$39,Calcs!$W$39,IF(D53=Calcs!$X$40,Calcs!$W$40,IF(TRUE,0)))) -> 0 | C53: 52 | D53: TB48-846-14BT | E53: 13 | F53: TRACK BENCH: 4FTx70.5FTx14INxBT | G53: 31 | H53: BOTANICARE TRACK BENCH: 4FT WIDE x 70.5FT LONG x 14IN HIGH, TRILOCK | I53: 4 | J53: 70.5 | K53: 14
A54: =IF(B54=0,0,MAX($A$2:A53)+1) -> 0 | B54: =IF(D54=Calcs!$X$38,Calcs!$W$38,IF(D54=Calcs!$X$39,Calcs!$W$39,IF(D54=Calcs!$X$40,Calcs!$W$40,IF(TRUE,0)))) -> 0 | C54: 53 | D54: TB48-870-14BT | E54: 13 | F54: TRACK BENCH: 4FTx72.5FTx14INxBT | G54: 31 | H54: BOTANICARE TRACK BENCH: 4FT WIDE x 72.5FT LONG x 14IN HIGH, TRILOCK | I54: 4 | J54: 72.5 | K54: 14
A55: =IF(B55=0,0,MAX($A$2:A54)+1) -> 0 | B55: =IF(D55=Calcs!$X$38,Calcs!$W$38,IF(D55=Calcs!$X$39,Calcs!$W$39,IF(D55=Calcs!$X$40,Calcs!$W$40,IF(TRUE,0)))) -> 0 | C55: 54 | D55: TB48-882-14BT | E55: 13 | F55: TRACK BENCH: 4FTx73.5FTx14INxBT | G55: 31 | H55: BOTANICARE TRACK BENCH: 4FT WIDE x 73.5FT LONG x 14IN HIGH, TRILOCK | I55: 4 | J55: 73.5 | K55: 14
A56: =IF(B56=0,0,MAX($A$2:A55)+1) -> 0 | B56: =IF(D56=Calcs!$X$38,Calcs!$W$38,IF(D56=Calcs!$X$39,Calcs!$W$39,IF(D56=Calcs!$X$40,Calcs!$W$40,IF(TRUE,0)))) -> 0 | C56: 55 | D56: TB48-894-14BT | E56: 13 | F56: TRACK BENCH: 4FTx74.5FTx14INxBT | G56: 31 | H56: BOTANICARE TRACK BENCH: 4FT WIDE x 74.5FT LONG x 14IN HIGH, TRILOCK | I56: 4 | J56: 74.5 | K56: 14
A57: =IF(B57=0,0,MAX($A$2:A56)+1) -> 0 | B57: =IF(D57=Calcs!$X$38,Calcs!$W$38,IF(D57=Calcs!$X$39,Calcs!$W$39,IF(D57=Calcs!$X$40,Calcs!$W$40,IF(TRUE,0)))) -> 0 | C57: 56 | D57: TB48-906-14BT | E57: 13 | F57: TRACK BENCH: 4FTx75.5FTx14INxBT | G57: 31 | H57: BOTANICARE TRACK BENCH: 4FT WIDE x 75.5FT LONG x 14IN HIGH, TRILOCK | I57: 4 | J57: 75.5 | K57: 14
A58: =IF(B58=0,0,MAX($A$2:A57)+1) -> 0 | B58: =IF(D58=Calcs!$X$38,Calcs!$W$38,IF(D58=Calcs!$X$39,Calcs!$W$39,IF(D58=Calcs!$X$40,Calcs!$W$40,IF(TRUE,0)))) -> 0 | C58: 57 | D58: TB48-930-14BT | E58: 13 | F58: TRACK BENCH: 4FTx77.5FTx14INxBT | G58: 31 | H58: BOTANICARE TRACK BENCH: 4FT WIDE x 77.5FT LONG x 14IN HIGH, TRILOCK | I58: 4 | J58: 77.5 | K58: 14
A59: =IF(B59=0,0,MAX($A$2:A58)+1) -> 0 | B59: =IF(D59=Calcs!$X$38,Calcs!$W$38,IF(D59=Calcs!$X$39,Calcs!$W$39,IF(D59=Calcs!$X$40,Calcs!$W$40,IF(TRUE,0)))) -> 0 | C59: 58 | D59: TB48-942-14BT | E59: 13 | F59: TRACK BENCH: 4FTx78.5FTx14INxBT | G59: 31 | H59: BOTANICARE TRACK BENCH: 4FT WIDE x 78.5FT LONG x 14IN HIGH, TRILOCK | I59: 4 | J59: 78.5 | K59: 14
A60: =IF(B60=0,0,MAX($A$2:A59)+1) -> 0 | B60: =IF(D60=Calcs!$X$38,Calcs!$W$38,IF(D60=Calcs!$X$39,Calcs!$W$39,IF(D60=Calcs!$X$40,Calcs!$W$40,IF(TRUE,0)))) -> 0 | C60: 59 | D60: TB48-954-14BT | E60: 13 | F60: TRACK BENCH: 4FTx79.5FTx14INxBT | G60: 31 | H60: BOTANICARE TRACK BENCH: 4FT WIDE x 79.5FT LONG x 14IN HIGH, TRILOCK | I60: 4 | J60: 79.5 | K60: 14
A61: =IF(B61=0,0,MAX($A$2:A60)+1) -> 0 | B61: =IF(D61=Calcs!$X$38,Calcs!$W$38,IF(D61=Calcs!$X$39,Calcs!$W$39,IF(D61=Calcs!$X$40,Calcs!$W$40,IF(TRUE,0)))) -> 0 | C61: 60 | D61: TB48-966-14BT | E61: 13 | F61: TRACK BENCH: 4FTx80.5FTx14INxBT | G61: 31 | H61: BOTANICARE TRACK BENCH: 4FT WIDE x 80.5FT LONG x 14IN HIGH, TRILOCK | I61: 4 | J61: 80.5 | K61: 14
A62: =IF(B62=0,0,MAX($A$2:A61)+1) -> 0 | B62: =IF(D62=Calcs!$X$38,Calcs!$W$38,IF(D62=Calcs!$X$39,Calcs!$W$39,IF(D62=Calcs!$X$40,Calcs!$W$40,IF(TRUE,0)))) -> 0 | C62: 61 | D62: TB48-990-14BT | E62: 13 | F62: TRACK BENCH: 4FTx82.5FTx14INxBT | G62: 31 | H62: BOTANICARE TRACK BENCH: 4FT WIDE x 82.5FT LONG x 14IN HIGH, TRILOCK | I62: 4 | J62: 82.5 | K62: 14
A63: =IF(B63=0,0,MAX($A$2:A62)+1) -> 0 | B63: =IF(D63=Calcs!$X$38,Calcs!$W$38,IF(D63=Calcs!$X$39,Calcs!$W$39,IF(D63=Calcs!$X$40,Calcs!$W$40,IF(TRUE,0)))) -> 0 | C63: 62 | D63: TB48-1002-14BT | E63: 14 | F63: TRACK BENCH: 4FTx83.5FTx14INxBT | G63: 31 | H63: BOTANICARE TRACK BENCH: 4FT WIDE x 83.5FT LONG x 14IN HIGH, TRILOCK | I63: 4 | J63: 83.5 | K63: 14
A64: =IF(B64=0,0,MAX($A$2:A63)+1) -> 0 | B64: =IF(D64=Calcs!$X$38,Calcs!$W$38,IF(D64=Calcs!$X$39,Calcs!$W$39,IF(D64=Calcs!$X$40,Calcs!$W$40,IF(TRUE,0)))) -> 0 | C64: 63 | D64: TB48-1014-14BT | E64: 14 | F64: TRACK BENCH: 4FTx84.5FTx14INxBT | G64: 31 | H64: BOTANICARE TRACK BENCH: 4FT WIDE x 84.5FT LONG x 14IN HIGH, TRILOCK | I64: 4 | J64: 84.5 | K64: 14
A65: =IF(B65=0,0,MAX($A$2:A64)+1) -> 0 | B65: =IF(D65=Calcs!$X$38,Calcs!$W$38,IF(D65=Calcs!$X$39,Calcs!$W$39,IF(D65=Calcs!$X$40,Calcs!$W$40,IF(TRUE,0)))) -> 0 | C65: 64 | D65: TB48-1026-14BT | E65: 14 | F65: TRACK BENCH: 4FTx85.5FTx14INxBT | G65: 31 | H65: BOTANICARE TRACK BENCH: 4FT WIDE x 85.5FT LONG x 14IN HIGH, TRILOCK | I65: 4 | J65: 85.5 | K65: 14
A66: =IF(B66=0,0,MAX($A$2:A65)+1) -> 0 | B66: =IF(D66=Calcs!$X$38,Calcs!$W$38,IF(D66=Calcs!$X$39,Calcs!$W$39,IF(D66=Calcs!$X$40,Calcs!$W$40,IF(TRUE,0)))) -> 0 | C66: 65 | D66: TB48-1050-14BT | E66: 14 | F66: TRACK BENCH: 4FTx87.5FTx14INxBT | G66: 31 | H66: BOTANICARE TRACK BENCH: 4FT WIDE x 87.5FT LONG x 14IN HIGH, TRILOCK | I66: 4 | J66: 87.5 | K66: 14
A67: =IF(B67=0,0,MAX($A$2:A66)+1) -> 0 | B67: =IF(D67=Calcs!$X$38,Calcs!$W$38,IF(D67=Calcs!$X$39,Calcs!$W$39,IF(D67=Calcs!$X$40,Calcs!$W$40,IF(TRUE,0)))) -> 0 | C67: 66 | D67: TB48-1062-14BT | E67: 14 | F67: TRACK BENCH: 4FTx88.5FTx14INxBT | G67: 31 | H67: BOTANICARE TRACK BENCH: 4FT WIDE x 88.5FT LONG x 14IN HIGH, TRILOCK | I67: 4 | J67: 88.5 | K67: 14
A68: =IF(B68=0,0,MAX($A$2:A67)+1) -> 0 | B68: =IF(D68=Calcs!$X$38,Calcs!$W$38,IF(D68=Calcs!$X$39,Calcs!$W$39,IF(D68=Calcs!$X$40,Calcs!$W$40,IF(TRUE,0)))) -> 0 | C68: 67 | D68: TB48-1074-14BT | E68: 14 | F68: TRACK BENCH: 4FTx89.5FTx14INxBT | G68: 31 | H68: BOTANICARE TRACK BENCH: 4FT WIDE x 89.5FT LONG x 14IN HIGH, TRILOCK | I68: 4 | J68: 89.5 | K68: 14
A69: =IF(B69=0,0,MAX($A$2:A68)+1) -> 0 | B69: =IF(D69=Calcs!$X$38,Calcs!$W$38,IF(D69=Calcs!$X$39,Calcs!$W$39,IF(D69=Calcs!$X$40,Calcs!$W$40,IF(TRUE,0)))) -> 0 | C69: 68 | D69: TB48-1086-14BT | E69: 14 | F69: TRACK BENCH: 4FTx90.5FTx14INxBT | G69: 31 | H69: BOTANICARE TRACK BENCH: 4FT WIDE x 90.5FT LONG x 14IN HIGH, TRILOCK | I69: 4 | J69: 90.5 | K69: 14
A70: =IF(B70=0,0,MAX($A$2:A69)+1) -> 0 | B70: =IF(D70=Calcs!$X$38,Calcs!$W$38,IF(D70=Calcs!$X$39,Calcs!$W$39,IF(D70=Calcs!$X$40,Calcs!$W$40,IF(TRUE,0)))) -> 0 | C70: 69 | D70: TB48-1110-14BT | E70: 14 | F70: TRACK BENCH: 4FTx92.5FTx14INxBT | G70: 31 | H70: BOTANICARE TRACK BENCH: 4FT WIDE x 92.5FT LONG x 14IN HIGH, TRILOCK | I70: 4 | J70: 92.5 | K70: 14
A71: =IF(B71=0,0,MAX($A$2:A70)+1) -> 0 | B71: =IF(D71=Calcs!$X$38,Calcs!$W$38,IF(D71=Calcs!$X$39,Calcs!$W$39,IF(D71=Calcs!$X$40,Calcs!$W$40,IF(TRUE,0)))) -> 0 | C71: 70 | D71: TB48-1122-14BT | E71: 14 | F71: TRACK BENCH: 4FTx93.5FTx14INxBT | G71: 31 | H71: BOTANICARE TRACK BENCH: 4FT WIDE x 93.5FT LONG x 14IN HIGH, TRILOCK | I71: 4 | J71: 93.5 | K71: 14
A72: =IF(B72=0,0,MAX($A$2:A71)+1) -> 0 | B72: =IF(D72=Calcs!$X$38,Calcs!$W$38,IF(D72=Calcs!$X$39,Calcs!$W$39,IF(D72=Calcs!$X$40,Calcs!$W$40,IF(TRUE,0)))) -> 0 | C72: 71 | D72: TB48-1134-14BT | E72: 14 | F72: TRACK BENCH: 4FTx94.5FTx14INxBT | G72: 31 | H72: BOTANICARE TRACK BENCH: 4FT WIDE x 94.5FT LONG x 14IN HIGH, TRILOCK | I72: 4 | J72: 94.5 | K72: 14
A73: =IF(B73=0,0,MAX($A$2:A72)+1) -> 0 | B73: =IF(D73=Calcs!$X$38,Calcs!$W$38,IF(D73=Calcs!$X$39,Calcs!$W$39,IF(D73=Calcs!$X$40,Calcs!$W$40,IF(TRUE,0)))) -> 0 | C73: 72 | D73: TB48-1146-14BT | E73: 14 | F73: TRACK BENCH: 4FTx95.5FTx14INxBT | G73: 31 | H73: BOTANICARE TRACK BENCH: 4FT WIDE x 95.5FT LONG x 14IN HIGH, TRILOCK | I73: 4 | J73: 95.5 | K73: 14
A74: =IF(B74=0,0,MAX($A$2:A73)+1) -> 0 | B74: =IF(D74=Calcs!$X$38,Calcs!$W$38,IF(D74=Calcs!$X$39,Calcs!$W$39,IF(D74=Calcs!$X$40,Calcs!$W$40,IF(TRUE,0)))) -> 0 | C74: 73 | D74: TB48-1170-14BT | E74: 14 | F74: TRACK BENCH: 4FTx97.5FTx14INxBT | G74: 31 | H74: BOTANICARE TRACK BENCH: 4FT WIDE x 97.5FT LONG x 14IN HIGH, TRILOCK | I74: 4 | J74: 97.5 | K74: 14
A75: =IF(B75=0,0,MAX($A$2:A74)+1) -> 0 | B75: =IF(D75=Calcs!$X$38,Calcs!$W$38,IF(D75=Calcs!$X$39,Calcs!$W$39,IF(D75=Calcs!$X$40,Calcs!$W$40,IF(TRUE,0)))) -> 0 | C75: 74 | D75: TB48-1182-14BT | E75: 14 | F75: TRACK BENCH: 4FTx98.5FTx14INxBT | G75: 31 | H75: BOTANICARE TRACK BENCH: 4FT WIDE x 98.5FT LONG x 14IN HIGH, TRILOCK | I75: 4 | J75: 98.5 | K75: 14
A76: =IF(B76=0,0,MAX($A$2:A75)+1) -> 0 | B76: =IF(D76=Calcs!$X$38,Calcs!$W$38,IF(D76=Calcs!$X$39,Calcs!$W$39,IF(D76=Calcs!$X$40,Calcs!$W$40,IF(TRUE,0)))) -> 0 | C76: 75 | D76: TB48-1194-14BT | E76: 14 | F76: TRACK BENCH: 4FTx99.5FTx14INxBT | G76: 31 | H76: BOTANICARE TRACK BENCH: 4FT WIDE x 99.5FT LONG x 14IN HIGH, TRILOCK | I76: 4 | J76: 99.5 | K76: 14
A77: =IF(B77=0,0,MAX($A$2:A76)+1) -> 0 | B77: =IF(D77=Calcs!$X$38,Calcs!$W$38,IF(D77=Calcs!$X$39,Calcs!$W$39,IF(D77=Calcs!$X$40,Calcs!$W$40,IF(TRUE,0)))) -> 0 | C77: 76 | D77: TB48-1206-14BT | E77: 14 | F77: TRACK BENCH: 4FTx100.5FTx14INxBT | G77: 32 | H77: BOTANICARE TRACK BENCH: 4FT WIDE x 100.5FT LONG x 14IN HIGH, TRILOCK | I77: 4 | J77: 100.5 | K77: 14
A78: =IF(B78=0,0,MAX($A$2:A77)+1) -> 0 | B78: =IF(D78=Calcs!$X$38,Calcs!$W$38,IF(D78=Calcs!$X$39,Calcs!$W$39,IF(D78=Calcs!$X$40,Calcs!$W$40,IF(TRUE,0)))) -> 0 | C78: 77 | D78: TB48-90-20BT | E78: 12 | F78: TRACK BENCH: 4FTx7.5FTx20INxBT | G78: 30 | H78: BOTANICARE TRACK BENCH: 4FT WIDE x 7.5FT LONG x 20IN HIGH, TRILOCK | I78: 4 | J78: 7.5 | K78: 20
A79: =IF(B79=0,0,MAX($A$2:A78)+1) -> 0 | B79: =IF(D79=Calcs!$X$38,Calcs!$W$38,IF(D79=Calcs!$X$39,Calcs!$W$39,IF(D79=Calcs!$X$40,Calcs!$W$40,IF(TRUE,0)))) -> 0 | C79: 78 | D79: TB48-102-20BT | E79: 13 | F79: TRACK BENCH: 4FTx8.5FTx20INxBT | G79: 30 | H79: BOTANICARE TRACK BENCH: 4FT WIDE x 8.5FT LONG x 20IN HIGH, TRILOCK | I79: 4 | J79: 8.5 | K79: 20
A80: =IF(B80=0,0,MAX($A$2:A79)+1) -> 0 | B80: =IF(D80=Calcs!$X$38,Calcs!$W$38,IF(D80=Calcs!$X$39,Calcs!$W$39,IF(D80=Calcs!$X$40,Calcs!$W$40,IF(TRUE,0)))) -> 0 | C80: 79 | D80: TB48-114-20BT | E80: 13 | F80: TRACK BENCH: 4FTx9.5FTx20INxBT | G80: 30 | H80: BOTANICARE TRACK BENCH: 4FT WIDE x 9.5FT LONG x 20IN HIGH, TRILOCK | I80: 4 | J80: 9.5 | K80: 20
A81: =IF(B81=0,0,MAX($A$2:A80)+1) -> 0 | B81: =IF(D81=Calcs!$X$38,Calcs!$W$38,IF(D81=Calcs!$X$39,Calcs!$W$39,IF(D81=Calcs!$X$40,Calcs!$W$40,IF(TRUE,0)))) -> 0 | C81: 80 | D81: TB48-126-20BT | E81: 13 | F81: TRACK BENCH: 4FTx10.5FTx20INxBT | G81: 31 | H81: BOTANICARE TRACK BENCH: 4FT WIDE x 10.5FT LONG x 20IN HIGH, TRILOCK | I81: 4 | J81: 10.5 | K81: 20
A82: =IF(B82=0,0,MAX($A$2:A81)+1) -> 0 | B82: =IF(D82=Calcs!$X$38,Calcs!$W$38,IF(D82=Calcs!$X$39,Calcs!$W$39,IF(D82=Calcs!$X$40,Calcs!$W$40,IF(TRUE,0)))) -> 0 | C82: 81 | D82: TB48-150-20BT | E82: 13 | F82: TRACK BENCH: 4FTx12.5FTx20INxBT | G82: 31 | H82: BOTANICARE TRACK BENCH: 4FT WIDE x 12.5FT LONG x 20IN HIGH, TRILOCK | I82: 4 | J82: 12.5 | K82: 20
A83: =IF(B83=0,0,MAX($A$2:A82)+1) -> 0 | B83: =IF(D83=Calcs!$X$38,Calcs!$W$38,IF(D83=Calcs!$X$39,Calcs!$W$39,IF(D83=Calcs!$X$40,Calcs!$W$40,IF(TRUE,0)))) -> 0 | C83: 82 | D83: TB48-162-20BT | E83: 13 | F83: TRACK BENCH: 4FTx13.5FTx20INxBT | G83: 31 | H83: BOTANICARE TRACK BENCH: 4FT WIDE x 13.5FT LONG x 20IN HIGH, TRILOCK | I83: 4 | J83: 13.5 | K83: 20
A84: =IF(B84=0,0,MAX($A$2:A83)+1) -> 0 | B84: =IF(D84=Calcs!$X$38,Calcs!$W$38,IF(D84=Calcs!$X$39,Calcs!$W$39,IF(D84=Calcs!$X$40,Calcs!$W$40,IF(TRUE,0)))) -> 0 | C84: 83 | D84: TB48-174-20BT | E84: 13 | F84: TRACK BENCH: 4FTx14.5FTx20INxBT | G84: 31 | H84: BOTANICARE TRACK BENCH: 4FT WIDE x 14.5FT LONG x 20IN HIGH, TRILOCK | I84: 4 | J84: 14.5 | K84: 20
A85: =IF(B85=0,0,MAX($A$2:A84)+1) -> 0 | B85: =IF(D85=Calcs!$X$38,Calcs!$W$38,IF(D85=Calcs!$X$39,Calcs!$W$39,IF(D85=Calcs!$X$40,Calcs!$W$40,IF(TRUE,0)))) -> 0 | C85: 84 | D85: TB48-186-20BT | E85: 13 | F85: TRACK BENCH: 4FTx15.5FTx20INxBT | G85: 31 | H85: BOTANICARE TRACK BENCH: 4FT WIDE x 15.5FT LONG x 20IN HIGH, TRILOCK | I85: 4 | J85: 15.5 | K85: 20
A86: =IF(B86=0,0,MAX($A$2:A85)+1) -> 0 | B86: =IF(D86=Calcs!$X$38,Calcs!$W$38,IF(D86=Calcs!$X$39,Calcs!$W$39,IF(D86=Calcs!$X$40,Calcs!$W$40,IF(TRUE,0)))) -> 0 | C86: 85 | D86: TB48-210-20BT | E86: 13 | F86: TRACK BENCH: 4FTx17.5FTx20INxBT | G86: 31 | H86: BOTANICARE TRACK BENCH: 4FT WIDE x 17.5FT LONG x 20IN HIGH, TRILOCK | I86: 4 | J86: 17.5 | K86: 20
A87: =IF(B87=0,0,MAX($A$2:A86)+1) -> 0 | B87: =IF(D87=Calcs!$X$38,Calcs!$W$38,IF(D87=Calcs!$X$39,Calcs!$W$39,IF(D87=Calcs!$X$40,Calcs!$W$40,IF(TRUE,0)))) -> 0 | C87: 86 | D87: TB48-222-20BT | E87: 13 | F87: TRACK BENCH: 4FTx18.5FTx20INxBT | G87: 31 | H87: BOTANICARE TRACK BENCH: 4FT WIDE x 18.5FT LONG x 20IN HIGH, TRILOCK | I87: 4 | J87: 18.5 | K87: 20
A88: =IF(B88=0,0,MAX($A$2:A87)+1) -> 0 | B88: =IF(D88=Calcs!$X$38,Calcs!$W$38,IF(D88=Calcs!$X$39,Calcs!$W$39,IF(D88=Calcs!$X$40,Calcs!$W$40,IF(TRUE,0)))) -> 0 | C88: 87 | D88: TB48-234-20BT | E88: 13 | F88: TRACK BENCH: 4FTx19.5FTx20INxBT | G88: 31 | H88: BOTANICARE TRACK BENCH: 4FT WIDE x 19.5FT LONG x 20IN HIGH, TRILOCK | I88: 4 | J88: 19.5 | K88: 20
A89: =IF(B89=0,0,MAX($A$2:A88)+1) -> 0 | B89: =IF(D89=Calcs!$X$38,Calcs!$W$38,IF(D89=Calcs!$X$39,Calcs!$W$39,IF(D89=Calcs!$X$40,Calcs!$W$40,IF(TRUE,0)))) -> 0 | C89: 88 | D89: TB48-246-20BT | E89: 13 | F89: TRACK BENCH: 4FTx20.5FTx20INxBT | G89: 31 | H89: BOTANICARE TRACK BENCH: 4FT WIDE x 20.5FT LONG x 20IN HIGH, TRILOCK | I89: 4 | J89: 20.5 | K89: 20
A90: =IF(B90=0,0,MAX($A$2:A89)+1) -> 0 | B90: =IF(D90=Calcs!$X$38,Calcs!$W$38,IF(D90=Calcs!$X$39,Calcs!$W$39,IF(D90=Calcs!$X$40,Calcs!$W$40,IF(TRUE,0)))) -> 0 | C90: 89 | D90: TB48-270-20BT | E90: 13 | F90: TRACK BENCH: 4FTx22.5FTx20INxBT | G90: 31 | H90: BOTANICARE TRACK BENCH: 4FT WIDE x 22.5FT LONG x 20IN HIGH, TRILOCK | I90: 4 | J90: 22.5 | K90: 20
A91: =IF(B91=0,0,MAX($A$2:A90)+1) -> 0 | B91: =IF(D91=Calcs!$X$38,Calcs!$W$38,IF(D91=Calcs!$X$39,Calcs!$W$39,IF(D91=Calcs!$X$40,Calcs!$W$40,IF(TRUE,0)))) -> 0 | C91: 90 | D91: TB48-282-20BT | E91: 13 | F91: TRACK BENCH: 4FTx23.5FTx20INxBT | G91: 31 | H91: BOTANICARE TRACK BENCH: 4FT WIDE x 23.5FT LONG x 20IN HIGH, TRILOCK | I91: 4 | J91: 23.5 | K91: 20
A92: =IF(B92=0,0,MAX($A$2:A91)+1) -> 0 | B92: =IF(D92=Calcs!$X$38,Calcs!$W$38,IF(D92=Calcs!$X$39,Calcs!$W$39,IF(D92=Calcs!$X$40,Calcs!$W$40,IF(TRUE,0)))) -> 0 | C92: 91 | D92: TB48-294-20BT | E92: 13 | F92: TRACK BENCH: 4FTx24.5FTx20INxBT | G92: 31 | H92: BOTANICARE TRACK BENCH: 4FT WIDE x 24.5FT LONG x 20IN HIGH, TRILOCK | I92: 4 | J92: 24.5 | K92: 20
A93: =IF(B93=0,0,MAX($A$2:A92)+1) -> 0 | B93: =IF(D93=Calcs!$X$38,Calcs!$W$38,IF(D93=Calcs!$X$39,Calcs!$W$39,IF(D93=Calcs!$X$40,Calcs!$W$40,IF(TRUE,0)))) -> 0 | C93: 92 | D93: TB48-306-20BT | E93: 13 | F93: TRACK BENCH: 4FTx25.5FTx20INxBT | G93: 31 | H93: BOTANICARE TRACK BENCH: 4FT WIDE x 25.5FT LONG x 20IN HIGH, TRILOCK | I93: 4 | J93: 25.5 | K93: 20
A94: =IF(B94=0,0,MAX($A$2:A93)+1) -> 0 | B94: =IF(D94=Calcs!$X$38,Calcs!$W$38,IF(D94=Calcs!$X$39,Calcs!$W$39,IF(D94=Calcs!$X$40,Calcs!$W$40,IF(TRUE,0)))) -> 0 | C94: 93 | D94: TB48-330-20BT | E94: 13 | F94: TRACK BENCH: 4FTx27.5FTx20INxBT | G94: 31 | H94: BOTANICARE TRACK BENCH: 4FT WIDE x 27.5FT LONG x 20IN HIGH, TRILOCK | I94: 4 | J94: 27.5 | K94: 20
A95: =IF(B95=0,0,MAX($A$2:A94)+1) -> 0 | B95: =IF(D95=Calcs!$X$38,Calcs!$W$38,IF(D95=Calcs!$X$39,Calcs!$W$39,IF(D95=Calcs!$X$40,Calcs!$W$40,IF(TRUE,0)))) -> 0 | C95: 94 | D95: TB48-342-20BT | E95: 13 | F95: TRACK BENCH: 4FTx28.5FTx20INxBT | G95: 31 | H95: BOTANICARE TRACK BENCH: 4FT WIDE x 28.5FT LONG x 20IN HIGH, TRILOCK | I95: 4 | J95: 28.5 | K95: 20
A96: =IF(B96=0,0,MAX($A$2:A95)+1) -> 0 | B96: =IF(D96=Calcs!$X$38,Calcs!$W$38,IF(D96=Calcs!$X$39,Calcs!$W$39,IF(D96=Calcs!$X$40,Calcs!$W$40,IF(TRUE,0)))) -> 0 | C96: 95 | D96: TB48-354-20BT | E96: 13 | F96: TRACK BENCH: 4FTx29.5FTx20INxBT | G96: 31 | H96: BOTANICARE TRACK BENCH: 4FT WIDE x 29.5FT LONG x 20IN HIGH, TRILOCK | I96: 4 | J96: 29.5 | K96: 20
A97: =IF(B97=0,0,MAX($A$2:A96)+1) -> 0 | B97: =IF(D97=Calcs!$X$38,Calcs!$W$38,IF(D97=Calcs!$X$39,Calcs!$W$39,IF(D97=Calcs!$X$40,Calcs!$W$40,IF(TRUE,0)))) -> 0 | C97: 96 | D97: TB48-366-20BT | E97: 13 | F97: TRACK BENCH: 4FTx30.5FTx20INxBT | G97: 31 | H97: BOTANICARE TRACK BENCH: 4FT WIDE x 30.5FT LONG x 20IN HIGH, TRILOCK | I97: 4 | J97: 30.5 | K97: 20
A98: =IF(B98=0,0,MAX($A$2:A97)+1) -> 0 | B98: =IF(D98=Calcs!$X$38,Calcs!$W$38,IF(D98=Calcs!$X$39,Calcs!$W$39,IF(D98=Calcs!$X$40,Calcs!$W$40,IF(TRUE,0)))) -> 0 | C98: 97 | D98: TB48-390-20BT | E98: 13 | F98: TRACK BENCH: 4FTx32.5FTx20INxBT | G98: 31 | H98: BOTANICARE TRACK BENCH: 4FT WIDE x 32.5FT LONG x 20IN HIGH, TRILOCK | I98: 4 | J98: 32.5 | K98: 20
A99: =IF(B99=0,0,MAX($A$2:A98)+1) -> 0 | B99: =IF(D99=Calcs!$X$38,Calcs!$W$38,IF(D99=Calcs!$X$39,Calcs!$W$39,IF(D99=Calcs!$X$40,Calcs!$W$40,IF(TRUE,0)))) -> 0 | C99: 98 | D99: TB48-402-20BT | E99: 13 | F99: TRACK BENCH: 4FTx33.5FTx20INxBT | G99: 31 | H99: BOTANICARE TRACK BENCH: 4FT WIDE x 33.5FT LONG x 20IN HIGH, TRILOCK | I99: 4 | J99: 33.5 | K99: 20
A100: =IF(B100=0,0,MAX($A$2:A99)+1) -> 0 | B100: =IF(D100=Calcs!$X$38,Calcs!$W$38,IF(D100=Calcs!$X$39,Calcs!$W$39,IF(D100=Calcs!$X$40,Calcs!$W$40,IF(TRUE,0)))) -> 0 | C100: 99 | D100: TB48-414-20BT | E100: 13 | F100: TRACK BENCH: 4FTx34.5FTx20INxBT | G100: 31 | H100: BOTANICARE TRACK BENCH: 4FT WIDE x 34.5FT LONG x 20IN HIGH, TRILOCK | I100: 4 | J100: 34.5 | K100: 20
A101: =IF(B101=0,0,MAX($A$2:A100)+1) -> 0 | B101: =IF(D101=Calcs!$X$38,Calcs!$W$38,IF(D101=Calcs!$X$39,Calcs!$W$39,IF(D101=Calcs!$X$40,Calcs!$W$40,IF(TRUE,0)))) -> 0 | C101: 100 | D101: TB48-426-20BT | E101: 13 | F101: TRACK BENCH: 4FTx35.5FTx20INxBT | G101: 31 | H101: BOTANICARE TRACK BENCH: 4FT WIDE x 35.5FT LONG x 20IN HIGH, TRILOCK | I101: 4 | J101: 35.5 | K101: 20
A102: =IF(B102=0,0,MAX($A$2:A101)+1) -> 0 | B102: =IF(D102=Calcs!$X$38,Calcs!$W$38,IF(D102=Calcs!$X$39,Calcs!$W$39,IF(D102=Calcs!$X$40,Calcs!$W$40,IF(TRUE,0)))) -> 0 | C102: 101 | D102: TB48-450-20BT | E102: 13 | F102: TRACK BENCH: 4FTx37.5FTx20INxBT | G102: 31 | H102: BOTANICARE TRACK BENCH: 4FT WIDE x 37.5FT LONG x 20IN HIGH, TRILOCK | I102: 4 | J102: 37.5 | K102: 20
A103: =IF(B103=0,0,MAX($A$2:A102)+1) -> 0 | B103: =IF(D103=Calcs!$X$38,Calcs!$W$38,IF(D103=Calcs!$X$39,Calcs!$W$39,IF(D103=Calcs!$X$40,Calcs!$W$40,IF(TRUE,0)))) -> 0 | C103: 102 | D103: TB48-462-20BT | E103: 13 | F103: TRACK BENCH: 4FTx38.5FTx20INxBT | G103: 31 | H103: BOTANICARE TRACK BENCH: 4FT WIDE x 38.5FT LONG x 20IN HIGH, TRILOCK | I103: 4 | J103: 38.5 | K103: 20
A104: =IF(B104=0,0,MAX($A$2:A103)+1) -> 0 | B104: =IF(D104=Calcs!$X$38,Calcs!$W$38,IF(D104=Calcs!$X$39,Calcs!$W$39,IF(D104=Calcs!$X$40,Calcs!$W$40,IF(TRUE,0)))) -> 0 | C104: 103 | D104: TB48-474-20BT | E104: 13 | F104: TRACK BENCH: 4FTx39.5FTx20INxBT | G104: 31 | H104: BOTANICARE TRACK BENCH: 4FT WIDE x 39.5FT LONG x 20IN HIGH, TRILOCK | I104: 4 | J104: 39.5 | K104: 20
A105: =IF(B105=0,0,MAX($A$2:A104)+1) -> 0 | B105: =IF(D105=Calcs!$X$38,Calcs!$W$38,IF(D105=Calcs!$X$39,Calcs!$W$39,IF(D105=Calcs!$X$40,Calcs!$W$40,IF(TRUE,0)))) -> 0 | C105: 104 | D105: TB48-486-20BT | E105: 13 | F105: TRACK BENCH: 4FTx40.5FTx20INxBT | G105: 31 | H105: BOTANICARE TRACK BENCH: 4FT WIDE x 40.5FT LONG x 20IN HIGH, TRILOCK | I105: 4 | J105: 40.5 | K105: 20
A106: =IF(B106=0,0,MAX($A$2:A105)+1) -> 0 | B106: =IF(D106=Calcs!$X$38,Calcs!$W$38,IF(D106=Calcs!$X$39,Calcs!$W$39,IF(D106=Calcs!$X$40,Calcs!$W$40,IF(TRUE,0)))) -> 0 | C106: 105 | D106: TB48-510-20BT | E106: 13 | F106: TRACK BENCH: 4FTx42.5FTx20INxBT | G106: 31 | H106: BOTANICARE TRACK BENCH: 4FT WIDE x 42.5FT LONG x 20IN HIGH, TRILOCK | I106: 4 | J106: 42.5 | K106: 20
A107: =IF(B107=0,0,MAX($A$2:A106)+1) -> 0 | B107: =IF(D107=Calcs!$X$38,Calcs!$W$38,IF(D107=Calcs!$X$39,Calcs!$W$39,IF(D107=Calcs!$X$40,Calcs!$W$40,IF(TRUE,0)))) -> 0 | C107: 106 | D107: TB48-522-20BT | E107: 13 | F107: TRACK BENCH: 4FTx43.5FTx20INxBT | G107: 31 | H107: BOTANICARE TRACK BENCH: 4FT WIDE x 43.5FT LONG x 20IN HIGH, TRILOCK | I107: 4 | J107: 43.5 | K107: 20
A108: =IF(B108=0,0,MAX($A$2:A107)+1) -> 0 | B108: =IF(D108=Calcs!$X$38,Calcs!$W$38,IF(D108=Calcs!$X$39,Calcs!$W$39,IF(D108=Calcs!$X$40,Calcs!$W$40,IF(TRUE,0)))) -> 0 | C108: 107 | D108: TB48-534-20BT | E108: 13 | F108: TRACK BENCH: 4FTx44.5FTx20INxBT | G108: 31 | H108: BOTANICARE TRACK BENCH: 4FT WIDE x 44.5FT LONG x 20IN HIGH, TRILOCK | I108: 4 | J108: 44.5 | K108: 20
A109: =IF(B109=0,0,MAX($A$2:A108)+1) -> 0 | B109: =IF(D109=Calcs!$X$38,Calcs!$W$38,IF(D109=Calcs!$X$39,Calcs!$W$39,IF(D109=Calcs!$X$40,Calcs!$W$40,IF(TRUE,0)))) -> 0 | C109: 108 | D109: TB48-546-20BT | E109: 13 | F109: TRACK BENCH: 4FTx45.5FTx20INxBT | G109: 31 | H109: BOTANICARE TRACK BENCH: 4FT WIDE x 45.5FT LONG x 20IN HIGH, TRILOCK | I109: 4 | J109: 45.5 | K109: 20
A110: =IF(B110=0,0,MAX($A$2:A109)+1) -> 0 | B110: =IF(D110=Calcs!$X$38,Calcs!$W$38,IF(D110=Calcs!$X$39,Calcs!$W$39,IF(D110=Calcs!$X$40,Calcs!$W$40,IF(TRUE,0)))) -> 0 | C110: 109 | D110: TB48-570-20BT | E110: 13 | F110: TRACK BENCH: 4FTx47.5FTx20INxBT | G110: 31 | H110: BOTANICARE TRACK BENCH: 4FT WIDE x 47.5FT LONG x 20IN HIGH, TRILOCK | I110: 4 | J110: 47.5 | K110: 20
A111: =IF(B111=0,0,MAX($A$2:A110)+1) -> 0 | B111: =IF(D111=Calcs!$X$38,Calcs!$W$38,IF(D111=Calcs!$X$39,Calcs!$W$39,IF(D111=Calcs!$X$40,Calcs!$W$40,IF(TRUE,0)))) -> 0 | C111: 110 | D111: TB48-582-20BT | E111: 13 | F111: TRACK BENCH: 4FTx48.5FTx20INxBT | G111: 31 | H111: BOTANICARE TRACK BENCH: 4FT WIDE x 48.5FT LONG x 20IN HIGH, TRILOCK | I111: 4 | J111: 48.5 | K111: 20
A112: =IF(B112=0,0,MAX($A$2:A111)+1) -> 0 | B112: =IF(D112=Calcs!$X$38,Calcs!$W$38,IF(D112=Calcs!$X$39,Calcs!$W$39,IF(D112=Calcs!$X$40,Calcs!$W$40,IF(TRUE,0)))) -> 0 | C112: 111 | D112: TB48-594-20BT | E112: 13 | F112: TRACK BENCH: 4FTx49.5FTx20INxBT | G112: 31 | H112: BOTANICARE TRACK BENCH: 4FT WIDE x 49.5FT LONG x 20IN HIGH, TRILOCK | I112: 4 | J112: 49.5 | K112: 20
A113: =IF(B113=0,0,MAX($A$2:A112)+1) -> 0 | B113: =IF(D113=Calcs!$X$38,Calcs!$W$38,IF(D113=Calcs!$X$39,Calcs!$W$39,IF(D113=Calcs!$X$40,Calcs!$W$40,IF(TRUE,0)))) -> 0 | C113: 112 | D113: TB48-606-20BT | E113: 13 | F113: TRACK BENCH: 4FTx50.5FTx20INxBT | G113: 31 | H113: BOTANICARE TRACK BENCH: 4FT WIDE x 50.5FT LONG x 20IN HIGH, TRILOCK | I113: 4 | J113: 50.5 | K113: 20
A114: =IF(B114=0,0,MAX($A$2:A113)+1) -> 0 | B114: =IF(D114=Calcs!$X$38,Calcs!$W$38,IF(D114=Calcs!$X$39,Calcs!$W$39,IF(D114=Calcs!$X$40,Calcs!$W$40,IF(TRUE,0)))) -> 0 | C114: 113 | D114: TB48-630-20BT | E114: 13 | F114: TRACK BENCH: 4FTx52.5FTx20INxBT | G114: 31 | H114: BOTANICARE TRACK BENCH: 4FT WIDE x 52.5FT LONG x 20IN HIGH, TRILOCK | I114: 4 | J114: 52.5 | K114: 20
A115: =IF(B115=0,0,MAX($A$2:A114)+1) -> 0 | B115: =IF(D115=Calcs!$X$38,Calcs!$W$38,IF(D115=Calcs!$X$39,Calcs!$W$39,IF(D115=Calcs!$X$40,Calcs!$W$40,IF(TRUE,0)))) -> 0 | C115: 114 | D115: TB48-642-20BT | E115: 13 | F115: TRACK BENCH: 4FTx53.5FTx20INxBT | G115: 31 | H115: BOTANICARE TRACK BENCH: 4FT WIDE x 53.5FT LONG x 20IN HIGH, TRILOCK | I115: 4 | J115: 53.5 | K115: 20
A116: =IF(B116=0,0,MAX($A$2:A115)+1) -> 0 | B116: =IF(D116=Calcs!$X$38,Calcs!$W$38,IF(D116=Calcs!$X$39,Calcs!$W$39,IF(D116=Calcs!$X$40,Calcs!$W$40,IF(TRUE,0)))) -> 0 | C116: 115 | D116: TB48-654-20BT | E116: 13 | F116: TRACK BENCH: 4FTx54.5FTx20INxBT | G116: 31 | H116: BOTANICARE TRACK BENCH: 4FT WIDE x 54.5FT LONG x 20IN HIGH, TRILOCK | I116: 4 | J116: 54.5 | K116: 20
A117: =IF(B117=0,0,MAX($A$2:A116)+1) -> 0 | B117: =IF(D117=Calcs!$X$38,Calcs!$W$38,IF(D117=Calcs!$X$39,Calcs!$W$39,IF(D117=Calcs!$X$40,Calcs!$W$40,IF(TRUE,0)))) -> 0 | C117: 116 | D117: TB48-666-20BT | E117: 13 | F117: TRACK BENCH: 4FTx55.5FTx20INxBT | G117: 31 | H117: BOTANICARE TRACK BENCH: 4FT WIDE x 55.5FT LONG x 20IN HIGH, TRILOCK | I117: 4 | J117: 55.5 | K117: 20
A118: =IF(B118=0,0,MAX($A$2:A117)+1) -> 0 | B118: =IF(D118=Calcs!$X$38,Calcs!$W$38,IF(D118=Calcs!$X$39,Calcs!$W$39,IF(D118=Calcs!$X$40,Calcs!$W$40,IF(TRUE,0)))) -> 0 | C118: 117 | D118: TB48-690-20BT | E118: 13 | F118: TRACK BENCH: 4FTx57.5FTx20INxBT | G118: 31 | H118: BOTANICARE TRACK BENCH: 4FT WIDE x 57.5FT LONG x 20IN HIGH, TRILOCK | I118: 4 | J118: 57.5 | K118: 20
A119: =IF(B119=0,0,MAX($A$2:A118)+1) -> 0 | B119: =IF(D119=Calcs!$X$38,Calcs!$W$38,IF(D119=Calcs!$X$39,Calcs!$W$39,IF(D119=Calcs!$X$40,Calcs!$W$40,IF(TRUE,0)))) -> 0 | C119: 118 | D119: TB48-702-20BT | E119: 13 | F119: TRACK BENCH: 4FTx58.5FTx20INxBT | G119: 31 | H119: BOTANICARE TRACK BENCH: 4FT WIDE x 58.5FT LONG x 20IN HIGH, TRILOCK | I119: 4 | J119: 58.5 | K119: 20
A120: =IF(B120=0,0,MAX($A$2:A119)+1) -> 0 | B120: =IF(D120=Calcs!$X$38,Calcs!$W$38,IF(D120=Calcs!$X$39,Calcs!$W$39,IF(D120=Calcs!$X$40,Calcs!$W$40,IF(TRUE,0)))) -> 0 | C120: 119 | D120: TB48-714-20BT | E120: 13 | F120: TRACK BENCH: 4FTx59.5FTx20INxBT | G120: 31 | H120: BOTANICARE TRACK BENCH: 4FT WIDE x 59.5FT LONG x 20IN HIGH, TRILOCK | I120: 4 | J120: 59.5 | K120: 20
A121: =IF(B121=0,0,MAX($A$2:A120)+1) -> 0 | B121: =IF(D121=Calcs!$X$38,Calcs!$W$38,IF(D121=Calcs!$X$39,Calcs!$W$39,IF(D121=Calcs!$X$40,Calcs!$W$40,IF(TRUE,0)))) -> 0 | C121: 120 | D121: TB48-726-20BT | E121: 13 | F121: TRACK BENCH: 4FTx60.5FTx20INxBT | G121: 31 | H121: BOTANICARE TRACK BENCH: 4FT WIDE x 60.5FT LONG x 20IN HIGH, TRILOCK | I121: 4 | J121: 60.5 | K121: 20
A122: =IF(B122=0,0,MAX($A$2:A121)+1) -> 0 | B122: =IF(D122=Calcs!$X$38,Calcs!$W$38,IF(D122=Calcs!$X$39,Calcs!$W$39,IF(D122=Calcs!$X$40,Calcs!$W$40,IF(TRUE,0)))) -> 0 | C122: 121 | D122: TB48-750-20BT | E122: 13 | F122: TRACK BENCH: 4FTx62.5FTx20INxBT | G122: 31 | H122: BOTANICARE TRACK BENCH: 4FT WIDE x 62.5FT LONG x 20IN HIGH, TRILOCK | I122: 4 | J122: 62.5 | K122: 20
A123: =IF(B123=0,0,MAX($A$2:A122)+1) -> 0 | B123: =IF(D123=Calcs!$X$38,Calcs!$W$38,IF(D123=Calcs!$X$39,Calcs!$W$39,IF(D123=Calcs!$X$40,Calcs!$W$40,IF(TRUE,0)))) -> 0 | C123: 122 | D123: TB48-762-20BT | E123: 13 | F123: TRACK BENCH: 4FTx63.5FTx20INxBT | G123: 31 | H123: BOTANICARE TRACK BENCH: 4FT WIDE x 63.5FT LONG x 20IN HIGH, TRILOCK | I123: 4 | J123: 63.5 | K123: 20
A124: =IF(B124=0,0,MAX($A$2:A123)+1) -> 0 | B124: =IF(D124=Calcs!$X$38,Calcs!$W$38,IF(D124=Calcs!$X$39,Calcs!$W$39,IF(D124=Calcs!$X$40,Calcs!$W$40,IF(TRUE,0)))) -> 0 | C124: 123 | D124: TB48-774-20BT | E124: 13 | F124: TRACK BENCH: 4FTx64.5FTx20INxBT | G124: 31 | H124: BOTANICARE TRACK BENCH: 4FT WIDE x 64.5FT LONG x 20IN HIGH, TRILOCK | I124: 4 | J124: 64.5 | K124: 20
A125: =IF(B125=0,0,MAX($A$2:A124)+1) -> 0 | B125: =IF(D125=Calcs!$X$38,Calcs!$W$38,IF(D125=Calcs!$X$39,Calcs!$W$39,IF(D125=Calcs!$X$40,Calcs!$W$40,IF(TRUE,0)))) -> 0 | C125: 124 | D125: TB48-786-20BT | E125: 13 | F125: TRACK BENCH: 4FTx65.5FTx20INxBT | G125: 31 | H125: BOTANICARE TRACK BENCH: 4FT WIDE x 65.5FT LONG x 20IN HIGH, TRILOCK | I125: 4 | J125: 65.5 | K125: 20
A126: =IF(B126=0,0,MAX($A$2:A125)+1) -> 0 | B126: =IF(D126=Calcs!$X$38,Calcs!$W$38,IF(D126=Calcs!$X$39,Calcs!$W$39,IF(D126=Calcs!$X$40,Calcs!$W$40,IF(TRUE,0)))) -> 0 | C126: 125 | D126: TB48-810-20BT | E126: 13 | F126: TRACK BENCH: 4FTx67.5FTx20INxBT | G126: 31 | H126: BOTANICARE TRACK BENCH: 4FT WIDE x 67.5FT LONG x 20IN HIGH, TRILOCK | I126: 4 | J126: 67.5 | K126: 20
A127: =IF(B127=0,0,MAX($A$2:A126)+1) -> 0 | B127: =IF(D127=Calcs!$X$38,Calcs!$W$38,IF(D127=Calcs!$X$39,Calcs!$W$39,IF(D127=Calcs!$X$40,Calcs!$W$40,IF(TRUE,0)))) -> 0 | C127: 126 | D127: TB48-822-20BT | E127: 13 | F127: TRACK BENCH: 4FTx68.5FTx20INxBT | G127: 31 | H127: BOTANICARE TRACK BENCH: 4FT WIDE x 68.5FT LONG x 20IN HIGH, TRILOCK | I127: 4 | J127: 68.5 | K127: 20
A128: =IF(B128=0,0,MAX($A$2:A127)+1) -> 0 | B128: =IF(D128=Calcs!$X$38,Calcs!$W$38,IF(D128=Calcs!$X$39,Calcs!$W$39,IF(D128=Calcs!$X$40,Calcs!$W$40,IF(TRUE,0)))) -> 0 | C128: 127 | D128: TB48-834-20BT | E128: 13 | F128: TRACK BENCH: 4FTx69.5FTx20INxBT | G128: 31 | H128: BOTANICARE TRACK BENCH: 4FT WIDE x 69.5FT LONG x 20IN HIGH, TRILOCK | I128: 4 | J128: 69.5 | K128: 20
A129: =IF(B129=0,0,MAX($A$2:A128)+1) -> 0 | B129: =IF(D129=Calcs!$X$38,Calcs!$W$38,IF(D129=Calcs!$X$39,Calcs!$W$39,IF(D129=Calcs!$X$40,Calcs!$W$40,IF(TRUE,0)))) -> 0 | C129: 128 | D129: TB48-846-20BT | E129: 13 | F129: TRACK BENCH: 4FTx70.5FTx20INxBT | G129: 31 | H129: BOTANICARE TRACK BENCH: 4FT WIDE x 70.5FT LONG x 20IN HIGH, TRILOCK | I129: 4 | J129: 70.5 | K129: 20
A130: =IF(B130=0,0,MAX($A$2:A129)+1) -> 0 | B130: =IF(D130=Calcs!$X$38,Calcs!$W$38,IF(D130=Calcs!$X$39,Calcs!$W$39,IF(D130=Calcs!$X$40,Calcs!$W$40,IF(TRUE,0)))) -> 0 | C130: 129 | D130: TB48-870-20BT | E130: 13 | F130: TRACK BENCH: 4FTx72.5FTx20INxBT | G130: 31 | H130: BOTANICARE TRACK BENCH: 4FT WIDE x 72.5FT LONG x 20IN HIGH, TRILOCK | I130: 4 | J130: 72.5 | K130: 20
A131: =IF(B131=0,0,MAX($A$2:A130)+1) -> 0 | B131: =IF(D131=Calcs!$X$38,Calcs!$W$38,IF(D131=Calcs!$X$39,Calcs!$W$39,IF(D131=Calcs!$X$40,Calcs!$W$40,IF(TRUE,0)))) -> 0 | C131: 130 | D131: TB48-882-20BT | E131: 13 | F131: TRACK BENCH: 4FTx73.5FTx20INxBT | G131: 31 | H131: BOTANICARE TRACK BENCH: 4FT WIDE x 73.5FT LONG x 20IN HIGH, TRILOCK | I131: 4 | J131: 73.5 | K131: 20
A132: =IF(B132=0,0,MAX($A$2:A131)+1) -> 0 | B132: =IF(D132=Calcs!$X$38,Calcs!$W$38,IF(D132=Calcs!$X$39,Calcs!$W$39,IF(D132=Calcs!$X$40,Calcs!$W$40,IF(TRUE,0)))) -> 0 | C132: 131 | D132: TB48-894-20BT | E132: 13 | F132: TRACK BENCH: 4FTx74.5FTx20INxBT | G132: 31 | H132: BOTANICARE TRACK BENCH: 4FT WIDE x 74.5FT LONG x 20IN HIGH, TRILOCK | I132: 4 | J132: 74.5 | K132: 20
A133: =IF(B133=0,0,MAX($A$2:A132)+1) -> 0 | B133: =IF(D133=Calcs!$X$38,Calcs!$W$38,IF(D133=Calcs!$X$39,Calcs!$W$39,IF(D133=Calcs!$X$40,Calcs!$W$40,IF(TRUE,0)))) -> 0 | C133: 132 | D133: TB48-906-20BT | E133: 13 | F133: TRACK BENCH: 4FTx75.5FTx20INxBT | G133: 31 | H133: BOTANICARE TRACK BENCH: 4FT WIDE x 75.5FT LONG x 20IN HIGH, TRILOCK | I133: 4 | J133: 75.5 | K133: 20
A134: =IF(B134=0,0,MAX($A$2:A133)+1) -> 0 | B134: =IF(D134=Calcs!$X$38,Calcs!$W$38,IF(D134=Calcs!$X$39,Calcs!$W$39,IF(D134=Calcs!$X$40,Calcs!$W$40,IF(TRUE,0)))) -> 0 | C134: 133 | D134: TB48-930-20BT | E134: 13 | F134: TRACK BENCH: 4FTx77.5FTx20INxBT | G134: 31 | H134: BOTANICARE TRACK BENCH: 4FT WIDE x 77.5FT LONG x 20IN HIGH, TRILOCK | I134: 4 | J134: 77.5 | K134: 20
A135: =IF(B135=0,0,MAX($A$2:A134)+1) -> 0 | B135: =IF(D135=Calcs!$X$38,Calcs!$W$38,IF(D135=Calcs!$X$39,Calcs!$W$39,IF(D135=Calcs!$X$40,Calcs!$W$40,IF(TRUE,0)))) -> 0 | C135: 134 | D135: TB48-942-20BT | E135: 13 | F135: TRACK BENCH: 4FTx78.5FTx20INxBT | G135: 31 | H135: BOTANICARE TRACK BENCH: 4FT WIDE x 78.5FT LONG x 20IN HIGH, TRILOCK | I135: 4 | J135: 78.5 | K135: 20
A136: =IF(B136=0,0,MAX($A$2:A135)+1) -> 0 | B136: =IF(D136=Calcs!$X$38,Calcs!$W$38,IF(D136=Calcs!$X$39,Calcs!$W$39,IF(D136=Calcs!$X$40,Calcs!$W$40,IF(TRUE,0)))) -> 0 | C136: 135 | D136: TB48-954-20BT | E136: 13 | F136: TRACK BENCH: 4FTx79.5FTx20INxBT | G136: 31 | H136: BOTANICARE TRACK BENCH: 4FT WIDE x 79.5FT LONG x 20IN HIGH, TRILOCK | I136: 4 | J136: 79.5 | K136: 20
A137: =IF(B137=0,0,MAX($A$2:A136)+1) -> 0 | B137: =IF(D137=Calcs!$X$38,Calcs!$W$38,IF(D137=Calcs!$X$39,Calcs!$W$39,IF(D137=Calcs!$X$40,Calcs!$W$40,IF(TRUE,0)))) -> 0 | C137: 136 | D137: TB48-966-20BT | E137: 13 | F137: TRACK BENCH: 4FTx80.5FTx20INxBT | G137: 31 | H137: BOTANICARE TRACK BENCH: 4FT WIDE x 80.5FT LONG x 20IN HIGH, TRILOCK | I137: 4 | J137: 80.5 | K137: 20
A138: =IF(B138=0,0,MAX($A$2:A137)+1) -> 0 | B138: =IF(D138=Calcs!$X$38,Calcs!$W$38,IF(D138=Calcs!$X$39,Calcs!$W$39,IF(D138=Calcs!$X$40,Calcs!$W$40,IF(TRUE,0)))) -> 0 | C138: 137 | D138: TB48-990-20BT | E138: 13 | F138: TRACK BENCH: 4FTx82.5FTx20INxBT | G138: 31 | H138: BOTANICARE TRACK BENCH: 4FT WIDE x 82.5FT LONG x 20IN HIGH, TRILOCK | I138: 4 | J138: 82.5 | K138: 20
A139: =IF(B139=0,0,MAX($A$2:A138)+1) -> 0 | B139: =IF(D139=Calcs!$X$38,Calcs!$W$38,IF(D139=Calcs!$X$39,Calcs!$W$39,IF(D139=Calcs!$X$40,Calcs!$W$40,IF(TRUE,0)))) -> 0 | C139: 138 | D139: TB48-1002-20BT | E139: 14 | F139: TRACK BENCH: 4FTx83.5FTx20INxBT | G139: 31 | H139: BOTANICARE TRACK BENCH: 4FT WIDE x 83.5FT LONG x 20IN HIGH, TRILOCK | I139: 4 | J139: 83.5 | K139: 20
A140: =IF(B140=0,0,MAX($A$2:A139)+1) -> 0 | B140: =IF(D140=Calcs!$X$38,Calcs!$W$38,IF(D140=Calcs!$X$39,Calcs!$W$39,IF(D140=Calcs!$X$40,Calcs!$W$40,IF(TRUE,0)))) -> 0 | C140: 139 | D140: TB48-1014-20BT | E140: 14 | F140: TRACK BENCH: 4FTx84.5FTx20INxBT | G140: 31 | H140: BOTANICARE TRACK BENCH: 4FT WIDE x 84.5FT LONG x 20IN HIGH, TRILOCK | I140: 4 | J140: 84.5 | K140: 20
A141: =IF(B141=0,0,MAX($A$2:A140)+1) -> 0 | B141: =IF(D141=Calcs!$X$38,Calcs!$W$38,IF(D141=Calcs!$X$39,Calcs!$W$39,IF(D141=Calcs!$X$40,Calcs!$W$40,IF(TRUE,0)))) -> 0 | C141: 140 | D141: TB48-1026-20BT | E141: 14 | F141: TRACK BENCH: 4FTx85.5FTx20INxBT | G141: 31 | H141: BOTANICARE TRACK BENCH: 4FT WIDE x 85.5FT LONG x 20IN HIGH, TRILOCK | I141: 4 | J141: 85.5 | K141: 20
A142: =IF(B142=0,0,MAX($A$2:A141)+1) -> 0 | B142: =IF(D142=Calcs!$X$38,Calcs!$W$38,IF(D142=Calcs!$X$39,Calcs!$W$39,IF(D142=Calcs!$X$40,Calcs!$W$40,IF(TRUE,0)))) -> 0 | C142: 141 | D142: TB48-1050-20BT | E142: 14 | F142: TRACK BENCH: 4FTx87.5FTx20INxBT | G142: 31 | H142: BOTANICARE TRACK BENCH: 4FT WIDE x 87.5FT LONG x 20IN HIGH, TRILOCK | I142: 4 | J142: 87.5 | K142: 20
A143: =IF(B143=0,0,MAX($A$2:A142)+1) -> 0 | B143: =IF(D143=Calcs!$X$38,Calcs!$W$38,IF(D143=Calcs!$X$39,Calcs!$W$39,IF(D143=Calcs!$X$40,Calcs!$W$40,IF(TRUE,0)))) -> 0 | C143: 142 | D143: TB48-1062-20BT | E143: 14 | F143: TRACK BENCH: 4FTx88.5FTx20INxBT | G143: 31 | H143: BOTANICARE TRACK BENCH: 4FT WIDE x 88.5FT LONG x 20IN HIGH, TRILOCK | I143: 4 | J143: 88.5 | K143: 20
A144: =IF(B144=0,0,MAX($A$2:A143)+1) -> 0 | B144: =IF(D144=Calcs!$X$38,Calcs!$W$38,IF(D144=Calcs!$X$39,Calcs!$W$39,IF(D144=Calcs!$X$40,Calcs!$W$40,IF(TRUE,0)))) -> 0 | C144: 143 | D144: TB48-1074-20BT | E144: 14 | F144: TRACK BENCH: 4FTx89.5FTx20INxBT | G144: 31 | H144: BOTANICARE TRACK BENCH: 4FT WIDE x 89.5FT LONG x 20IN HIGH, TRILOCK | I144: 4 | J144: 89.5 | K144: 20
A145: =IF(B145=0,0,MAX($A$2:A144)+1) -> 0 | B145: =IF(D145=Calcs!$X$38,Calcs!$W$38,IF(D145=Calcs!$X$39,Calcs!$W$39,IF(D145=Calcs!$X$40,Calcs!$W$40,IF(TRUE,0)))) -> 0 | C145: 144 | D145: TB48-1086-20BT | E145: 14 | F145: TRACK BENCH: 4FTx90.5FTx20INxBT | G145: 31 | H145: BOTANICARE TRACK BENCH: 4FT WIDE x 90.5FT LONG x 20IN HIGH, TRILOCK | I145: 4 | J145: 90.5 | K145: 20
A146: =IF(B146=0,0,MAX($A$2:A145)+1) -> 0 | B146: =IF(D146=Calcs!$X$38,Calcs!$W$38,IF(D146=Calcs!$X$39,Calcs!$W$39,IF(D146=Calcs!$X$40,Calcs!$W$40,IF(TRUE,0)))) -> 0 | C146: 145 | D146: TB48-1110-20BT | E146: 14 | F146: TRACK BENCH: 4FTx92.5FTx20INxBT | G146: 31 | H146: BOTANICARE TRACK BENCH: 4FT WIDE x 92.5FT LONG x 20IN HIGH, TRILOCK | I146: 4 | J146: 92.5 | K146: 20
A147: =IF(B147=0,0,MAX($A$2:A146)+1) -> 0 | B147: =IF(D147=Calcs!$X$38,Calcs!$W$38,IF(D147=Calcs!$X$39,Calcs!$W$39,IF(D147=Calcs!$X$40,Calcs!$W$40,IF(TRUE,0)))) -> 0 | C147: 146 | D147: TB48-1122-20BT | E147: 14 | F147: TRACK BENCH: 4FTx93.5FTx20INxBT | G147: 31 | H147: BOTANICARE TRACK BENCH: 4FT WIDE x 93.5FT LONG x 20IN HIGH, TRILOCK | I147: 4 | J147: 93.5 | K147: 20
A148: =IF(B148=0,0,MAX($A$2:A147)+1) -> 0 | B148: =IF(D148=Calcs!$X$38,Calcs!$W$38,IF(D148=Calcs!$X$39,Calcs!$W$39,IF(D148=Calcs!$X$40,Calcs!$W$40,IF(TRUE,0)))) -> 0 | C148: 147 | D148: TB48-1134-20BT | E148: 14 | F148: TRACK BENCH: 4FTx94.5FTx20INxBT | G148: 31 | H148: BOTANICARE TRACK BENCH: 4FT WIDE x 94.5FT LONG x 20IN HIGH, TRILOCK | I148: 4 | J148: 94.5 | K148: 20
A149: =IF(B149=0,0,MAX($A$2:A148)+1) -> 0 | B149: =IF(D149=Calcs!$X$38,Calcs!$W$38,IF(D149=Calcs!$X$39,Calcs!$W$39,IF(D149=Calcs!$X$40,Calcs!$W$40,IF(TRUE,0)))) -> 0 | C149: 148 | D149: TB48-1146-20BT | E149: 14 | F149: TRACK BENCH: 4FTx95.5FTx20INxBT | G149: 31 | H149: BOTANICARE TRACK BENCH: 4FT WIDE x 95.5FT LONG x 20IN HIGH, TRILOCK | I149: 4 | J149: 95.5 | K149: 20
A150: =IF(B150=0,0,MAX($A$2:A149)+1) -> 0 | B150: =IF(D150=Calcs!$X$38,Calcs!$W$38,IF(D150=Calcs!$X$39,Calcs!$W$39,IF(D150=Calcs!$X$40,Calcs!$W$40,IF(TRUE,0)))) -> 0 | C150: 149 | D150: TB48-1170-20BT | E150: 14 | F150: TRACK BENCH: 4FTx97.5FTx20INxBT | G150: 31 | H150: BOTANICARE TRACK BENCH: 4FT WIDE x 97.5FT LONG x 20IN HIGH, TRILOCK | I150: 4 | J150: 97.5 | K150: 20
A151: =IF(B151=0,0,MAX($A$2:A150)+1) -> 0 | B151: =IF(D151=Calcs!$X$38,Calcs!$W$38,IF(D151=Calcs!$X$39,Calcs!$W$39,IF(D151=Calcs!$X$40,Calcs!$W$40,IF(TRUE,0)))) -> 0 | C151: 150 | D151: TB48-1182-20BT | E151: 14 | F151: TRACK BENCH: 4FTx98.5FTx20INxBT | G151: 31 | H151: BOTANICARE TRACK BENCH: 4FT WIDE x 98.5FT LONG x 20IN HIGH, TRILOCK | I151: 4 | J151: 98.5 | K151: 20
A152: =IF(B152=0,0,MAX($A$2:A151)+1) -> 0 | B152: =IF(D152=Calcs!$X$38,Calcs!$W$38,IF(D152=Calcs!$X$39,Calcs!$W$39,IF(D152=Calcs!$X$40,Calcs!$W$40,IF(TRUE,0)))) -> 0 | C152: 151 | D152: TB48-1194-20BT | E152: 14 | F152: TRACK BENCH: 4FTx99.5FTx20INxBT | G152: 31 | H152: BOTANICARE TRACK BENCH: 4FT WIDE x 99.5FT LONG x 20IN HIGH, TRILOCK | I152: 4 | J152: 99.5 | K152: 20
A153: =IF(B153=0,0,MAX($A$2:A152)+1) -> 0 | B153: =IF(D153=Calcs!$X$38,Calcs!$W$38,IF(D153=Calcs!$X$39,Calcs!$W$39,IF(D153=Calcs!$X$40,Calcs!$W$40,IF(TRUE,0)))) -> 0 | C153: 152 | D153: TB48-1206-20BT | E153: 14 | F153: TRACK BENCH: 4FTx100.5FTx20INxBT | G153: 32 | H153: BOTANICARE TRACK BENCH: 4FT WIDE x 100.5FT LONG x 20IN HIGH, TRILOCK | I153: 4 | J153: 100.5 | K153: 20
A154: =IF(B154=0,0,MAX($A$2:A153)+1) -> 0 | B154: =IF(D154=Calcs!$X$38,Calcs!$W$38,IF(D154=Calcs!$X$39,Calcs!$W$39,IF(D154=Calcs!$X$40,Calcs!$W$40,IF(TRUE,0)))) -> 0 | C154: 153 | D154: TB48-90-30BT | E154: 12 | F154: TRACK BENCH: 4FTx7.5FTx30INxBT | G154: 30 | H154: BOTANICARE TRACK BENCH: 4FT WIDE x 7.5FT LONG x 30IN HIGH, TRILOCK | I154: 4 | J154: 7.5 | K154: 30
A155: =IF(B155=0,0,MAX($A$2:A154)+1) -> 0 | B155: =IF(D155=Calcs!$X$38,Calcs!$W$38,IF(D155=Calcs!$X$39,Calcs!$W$39,IF(D155=Calcs!$X$40,Calcs!$W$40,IF(TRUE,0)))) -> 0 | C155: 154 | D155: TB48-102-30BT | E155: 13 | F155: TRACK BENCH: 4FTx8.5FTx30INxBT | G155: 30 | H155: BOTANICARE TRACK BENCH: 4FT WIDE x 8.5FT LONG x 30IN HIGH, TRILOCK | I155: 4 | J155: 8.5 | K155: 30
A156: =IF(B156=0,0,MAX($A$2:A155)+1) -> 0 | B156: =IF(D156=Calcs!$X$38,Calcs!$W$38,IF(D156=Calcs!$X$39,Calcs!$W$39,IF(D156=Calcs!$X$40,Calcs!$W$40,IF(TRUE,0)))) -> 0 | C156: 155 | D156: TB48-114-30BT | E156: 13 | F156: TRACK BENCH: 4FTx9.5FTx30INxBT | G156: 30 | H156: BOTANICARE TRACK BENCH: 4FT WIDE x 9.5FT LONG x 30IN HIGH, TRILOCK | I156: 4 | J156: 9.5 | K156: 30
A157: =IF(B157=0,0,MAX($A$2:A156)+1) -> 0 | B157: =IF(D157=Calcs!$X$38,Calcs!$W$38,IF(D157=Calcs!$X$39,Calcs!$W$39,IF(D157=Calcs!$X$40,Calcs!$W$40,IF(TRUE,0)))) -> 0 | C157: 156 | D157: TB48-126-30BT | E157: 13 | F157: TRACK BENCH: 4FTx10.5FTx30INxBT | G157: 31 | H157: BOTANICARE TRACK BENCH: 4FT WIDE x 10.5FT LONG x 30IN HIGH, TRILOCK | I157: 4 | J157: 10.5 | K157: 30
A158: =IF(B158=0,0,MAX($A$2:A157)+1) -> 0 | B158: =IF(D158=Calcs!$X$38,Calcs!$W$38,IF(D158=Calcs!$X$39,Calcs!$W$39,IF(D158=Calcs!$X$40,Calcs!$W$40,IF(TRUE,0)))) -> 0 | C158: 157 | D158: TB48-150-30BT | E158: 13 | F158: TRACK BENCH: 4FTx12.5FTx30INxBT | G158: 31 | H158: BOTANICARE TRACK BENCH: 4FT WIDE x 12.5FT LONG x 30IN HIGH, TRILOCK | I158: 4 | J158: 12.5 | K158: 30
A159: =IF(B159=0,0,MAX($A$2:A158)+1) -> 0 | B159: =IF(D159=Calcs!$X$38,Calcs!$W$38,IF(D159=Calcs!$X$39,Calcs!$W$39,IF(D159=Calcs!$X$40,Calcs!$W$40,IF(TRUE,0)))) -> 0 | C159: 158 | D159: TB48-162-30BT | E159: 13 | F159: TRACK BENCH: 4FTx13.5FTx30INxBT | G159: 31 | H159: BOTANICARE TRACK BENCH: 4FT WIDE x 13.5FT LONG x 30IN HIGH, TRILOCK | I159: 4 | J159: 13.5 | K159: 30
A160: =IF(B160=0,0,MAX($A$2:A159)+1) -> 0 | B160: =IF(D160=Calcs!$X$38,Calcs!$W$38,IF(D160=Calcs!$X$39,Calcs!$W$39,IF(D160=Calcs!$X$40,Calcs!$W$40,IF(TRUE,0)))) -> 0 | C160: 159 | D160: TB48-174-30BT | E160: 13 | F160: TRACK BENCH: 4FTx14.5FTx30INxBT | G160: 31 | H160: BOTANICARE TRACK BENCH: 4FT WIDE x 14.5FT LONG x 30IN HIGH, TRILOCK | I160: 4 | J160: 14.5 | K160: 30
A161: =IF(B161=0,0,MAX($A$2:A160)+1) -> 0 | B161: =IF(D161=Calcs!$X$38,Calcs!$W$38,IF(D161=Calcs!$X$39,Calcs!$W$39,IF(D161=Calcs!$X$40,Calcs!$W$40,IF(TRUE,0)))) -> 0 | C161: 160 | D161: TB48-186-30BT | E161: 13 | F161: TRACK BENCH: 4FTx15.5FTx30INxBT | G161: 31 | H161: BOTANICARE TRACK BENCH: 4FT WIDE x 15.5FT LONG x 30IN HIGH, TRILOCK | I161: 4 | J161: 15.5 | K161: 30
A162: =IF(B162=0,0,MAX($A$2:A161)+1) -> 0 | B162: =IF(D162=Calcs!$X$38,Calcs!$W$38,IF(D162=Calcs!$X$39,Calcs!$W$39,IF(D162=Calcs!$X$40,Calcs!$W$40,IF(TRUE,0)))) -> 0 | C162: 161 | D162: TB48-210-30BT | E162: 13 | F162: TRACK BENCH: 4FTx17.5FTx30INxBT | G162: 31 | H162: BOTANICARE TRACK BENCH: 4FT WIDE x 17.5FT LONG x 30IN HIGH, TRILOCK | I162: 4 | J162: 17.5 | K162: 30
A163: =IF(B163=0,0,MAX($A$2:A162)+1) -> 0 | B163: =IF(D163=Calcs!$X$38,Calcs!$W$38,IF(D163=Calcs!$X$39,Calcs!$W$39,IF(D163=Calcs!$X$40,Calcs!$W$40,IF(TRUE,0)))) -> 0 | C163: 162 | D163: TB48-222-30BT | E163: 13 | F163: TRACK BENCH: 4FTx18.5FTx30INxBT | G163: 31 | H163: BOTANICARE TRACK BENCH: 4FT WIDE x 18.5FT LONG x 30IN HIGH, TRILOCK | I163: 4 | J163: 18.5 | K163: 30
A164: =IF(B164=0,0,MAX($A$2:A163)+1) -> 0 | B164: =IF(D164=Calcs!$X$38,Calcs!$W$38,IF(D164=Calcs!$X$39,Calcs!$W$39,IF(D164=Calcs!$X$40,Calcs!$W$40,IF(TRUE,0)))) -> 0 | C164: 163 | D164: TB48-234-30BT | E164: 13 | F164: TRACK BENCH: 4FTx19.5FTx30INxBT | G164: 31 | H164: BOTANICARE TRACK BENCH: 4FT WIDE x 19.5FT LONG x 30IN HIGH, TRILOCK | I164: 4 | J164: 19.5 | K164: 30
A165: =IF(B165=0,0,MAX($A$2:A164)+1) -> 0 | B165: =IF(D165=Calcs!$X$38,Calcs!$W$38,IF(D165=Calcs!$X$39,Calcs!$W$39,IF(D165=Calcs!$X$40,Calcs!$W$40,IF(TRUE,0)))) -> 0 | C165: 164 | D165: TB48-246-30BT | E165: 13 | F165: TRACK BENCH: 4FTx20.5FTx30INxBT | G165: 31 | H165: BOTANICARE TRACK BENCH: 4FT WIDE x 20.5FT LONG x 30IN HIGH, TRILOCK | I165: 4 | J165: 20.5 | K165: 30
A166: =IF(B166=0,0,MAX($A$2:A165)+1) -> 0 | B166: =IF(D166=Calcs!$X$38,Calcs!$W$38,IF(D166=Calcs!$X$39,Calcs!$W$39,IF(D166=Calcs!$X$40,Calcs!$W$40,IF(TRUE,0)))) -> 0 | C166: 165 | D166: TB48-270-30BT | E166: 13 | F166: TRACK BENCH: 4FTx22.5FTx30INxBT | G166: 31 | H166: BOTANICARE TRACK BENCH: 4FT WIDE x 22.5FT LONG x 30IN HIGH, TRILOCK | I166: 4 | J166: 22.5 | K166: 30
A167: =IF(B167=0,0,MAX($A$2:A166)+1) -> 0 | B167: =IF(D167=Calcs!$X$38,Calcs!$W$38,IF(D167=Calcs!$X$39,Calcs!$W$39,IF(D167=Calcs!$X$40,Calcs!$W$40,IF(TRUE,0)))) -> 0 | C167: 166 | D167: TB48-282-30BT | E167: 13 | F167: TRACK BENCH: 4FTx23.5FTx30INxBT | G167: 31 | H167: BOTANICARE TRACK BENCH: 4FT WIDE x 23.5FT LONG x 30IN HIGH, TRILOCK | I167: 4 | J167: 23.5 | K167: 30
A168: =IF(B168=0,0,MAX($A$2:A167)+1) -> 0 | B168: =IF(D168=Calcs!$X$38,Calcs!$W$38,IF(D168=Calcs!$X$39,Calcs!$W$39,IF(D168=Calcs!$X$40,Calcs!$W$40,IF(TRUE,0)))) -> 0 | C168: 167 | D168: TB48-294-30BT | E168: 13 | F168: TRACK BENCH: 4FTx24.5FTx30INxBT | G168: 31 | H168: BOTANICARE TRACK BENCH: 4FT WIDE x 24.5FT LONG x 30IN HIGH, TRILOCK | I168: 4 | J168: 24.5 | K168: 30
A169: =IF(B169=0,0,MAX($A$2:A168)+1) -> 0 | B169: =IF(D169=Calcs!$X$38,Calcs!$W$38,IF(D169=Calcs!$X$39,Calcs!$W$39,IF(D169=Calcs!$X$40,Calcs!$W$40,IF(TRUE,0)))) -> 0 | C169: 168 | D169: TB48-306-30BT | E169: 13 | F169: TRACK BENCH: 4FTx25.5FTx30INxBT | G169: 31 | H169: BOTANICARE TRACK BENCH: 4FT WIDE x 25.5FT LONG x 30IN HIGH, TRILOCK | I169: 4 | J169: 25.5 | K169: 30
A170: =IF(B170=0,0,MAX($A$2:A169)+1) -> 0 | B170: =IF(D170=Calcs!$X$38,Calcs!$W$38,IF(D170=Calcs!$X$39,Calcs!$W$39,IF(D170=Calcs!$X$40,Calcs!$W$40,IF(TRUE,0)))) -> 0 | C170: 169 | D170: TB48-330-30BT | E170: 13 | F170: TRACK BENCH: 4FTx27.5FTx30INxBT | G170: 31 | H170: BOTANICARE TRACK BENCH: 4FT WIDE x 27.5FT LONG x 30IN HIGH, TRILOCK | I170: 4 | J170: 27.5 | K170: 30
A171: =IF(B171=0,0,MAX($A$2:A170)+1) -> 0 | B171: =IF(D171=Calcs!$X$38,Calcs!$W$38,IF(D171=Calcs!$X$39,Calcs!$W$39,IF(D171=Calcs!$X$40,Calcs!$W$40,IF(TRUE,0)))) -> 0 | C171: 170 | D171: TB48-342-30BT | E171: 13 | F171: TRACK BENCH: 4FTx28.5FTx30INxBT | G171: 31 | H171: BOTANICARE TRACK BENCH: 4FT WIDE x 28.5FT LONG x 30IN HIGH, TRILOCK | I171: 4 | J171: 28.5 | K171: 30
A172: =IF(B172=0,0,MAX($A$2:A171)+1) -> 0 | B172: =IF(D172=Calcs!$X$38,Calcs!$W$38,IF(D172=Calcs!$X$39,Calcs!$W$39,IF(D172=Calcs!$X$40,Calcs!$W$40,IF(TRUE,0)))) -> 0 | C172: 171 | D172: TB48-354-30BT | E172: 13 | F172: TRACK BENCH: 4FTx29.5FTx30INxBT | G172: 31 | H172: BOTANICARE TRACK BENCH: 4FT WIDE x 29.5FT LONG x 30IN HIGH, TRILOCK | I172: 4 | J172: 29.5 | K172: 30
A173: =IF(B173=0,0,MAX($A$2:A172)+1) -> 0 | B173: =IF(D173=Calcs!$X$38,Calcs!$W$38,IF(D173=Calcs!$X$39,Calcs!$W$39,IF(D173=Calcs!$X$40,Calcs!$W$40,IF(TRUE,0)))) -> 0 | C173: 172 | D173: TB48-366-30BT | E173: 13 | F173: TRACK BENCH: 4FTx30.5FTx30INxBT | G173: 31 | H173: BOTANICARE TRACK BENCH: 4FT WIDE x 30.5FT LONG x 30IN HIGH, TRILOCK | I173: 4 | J173: 30.5 | K173: 30
A174: =IF(B174=0,0,MAX($A$2:A173)+1) -> 0 | B174: =IF(D174=Calcs!$X$38,Calcs!$W$38,IF(D174=Calcs!$X$39,Calcs!$W$39,IF(D174=Calcs!$X$40,Calcs!$W$40,IF(TRUE,0)))) -> 0 | C174: 173 | D174: TB48-390-30BT | E174: 13 | F174: TRACK BENCH: 4FTx32.5FTx30INxBT | G174: 31 | H174: BOTANICARE TRACK BENCH: 4FT WIDE x 32.5FT LONG x 30IN HIGH, TRILOCK | I174: 4 | J174: 32.5 | K174: 30
A175: =IF(B175=0,0,MAX($A$2:A174)+1) -> 0 | B175: =IF(D175=Calcs!$X$38,Calcs!$W$38,IF(D175=Calcs!$X$39,Calcs!$W$39,IF(D175=Calcs!$X$40,Calcs!$W$40,IF(TRUE,0)))) -> 0 | C175: 174 | D175: TB48-402-30BT | E175: 13 | F175: TRACK BENCH: 4FTx33.5FTx30INxBT | G175: 31 | H175: BOTANICARE TRACK BENCH: 4FT WIDE x 33.5FT LONG x 30IN HIGH, TRILOCK | I175: 4 | J175: 33.5 | K175: 30
A176: =IF(B176=0,0,MAX($A$2:A175)+1) -> 0 | B176: =IF(D176=Calcs!$X$38,Calcs!$W$38,IF(D176=Calcs!$X$39,Calcs!$W$39,IF(D176=Calcs!$X$40,Calcs!$W$40,IF(TRUE,0)))) -> 0 | C176: 175 | D176: TB48-414-30BT | E176: 13 | F176: TRACK BENCH: 4FTx34.5FTx30INxBT | G176: 31 | H176: BOTANICARE TRACK BENCH: 4FT WIDE x 34.5FT LONG x 30IN HIGH, TRILOCK | I176: 4 | J176: 34.5 | K176: 30
A177: =IF(B177=0,0,MAX($A$2:A176)+1) -> 0 | B177: =IF(D177=Calcs!$X$38,Calcs!$W$38,IF(D177=Calcs!$X$39,Calcs!$W$39,IF(D177=Calcs!$X$40,Calcs!$W$40,IF(TRUE,0)))) -> 0 | C177: 176 | D177: TB48-426-30BT | E177: 13 | F177: TRACK BENCH: 4FTx35.5FTx30INxBT | G177: 31 | H177: BOTANICARE TRACK BENCH: 4FT WIDE x 35.5FT LONG x 30IN HIGH, TRILOCK | I177: 4 | J177: 35.5 | K177: 30
A178: =IF(B178=0,0,MAX($A$2:A177)+1) -> 0 | B178: =IF(D178=Calcs!$X$38,Calcs!$W$38,IF(D178=Calcs!$X$39,Calcs!$W$39,IF(D178=Calcs!$X$40,Calcs!$W$40,IF(TRUE,0)))) -> 0 | C178: 177 | D178: TB48-450-30BT | E178: 13 | F178: TRACK BENCH: 4FTx37.5FTx30INxBT | G178: 31 | H178: BOTANICARE TRACK BENCH: 4FT WIDE x 37.5FT LONG x 30IN HIGH, TRILOCK | I178: 4 | J178: 37.5 | K178: 30
A179: =IF(B179=0,0,MAX($A$2:A178)+1) -> 0 | B179: =IF(D179=Calcs!$X$38,Calcs!$W$38,IF(D179=Calcs!$X$39,Calcs!$W$39,IF(D179=Calcs!$X$40,Calcs!$W$40,IF(TRUE,0)))) -> 0 | C179: 178 | D179: TB48-462-30BT | E179: 13 | F179: TRACK BENCH: 4FTx38.5FTx30INxBT | G179: 31 | H179: BOTANICARE TRACK BENCH: 4FT WIDE x 38.5FT LONG x 30IN HIGH, TRILOCK | I179: 4 | J179: 38.5 | K179: 30
A180: =IF(B180=0,0,MAX($A$2:A179)+1) -> 0 | B180: =IF(D180=Calcs!$X$38,Calcs!$W$38,IF(D180=Calcs!$X$39,Calcs!$W$39,IF(D180=Calcs!$X$40,Calcs!$W$40,IF(TRUE,0)))) -> 0 | C180: 179 | D180: TB48-474-30BT | E180: 13 | F180: TRACK BENCH: 4FTx39.5FTx30INxBT | G180: 31 | H180: BOTANICARE TRACK BENCH: 4FT WIDE x 39.5FT LONG x 30IN HIGH, TRILOCK | I180: 4 | J180: 39.5 | K180: 30
A181: =IF(B181=0,0,MAX($A$2:A180)+1) -> 0 | B181: =IF(D181=Calcs!$X$38,Calcs!$W$38,IF(D181=Calcs!$X$39,Calcs!$W$39,IF(D181=Calcs!$X$40,Calcs!$W$40,IF(TRUE,0)))) -> 0 | C181: 180 | D181: TB48-486-30BT | E181: 13 | F181: TRACK BENCH: 4FTx40.5FTx30INxBT | G181: 31 | H181: BOTANICARE TRACK BENCH: 4FT WIDE x 40.5FT LONG x 30IN HIGH, TRILOCK | I181: 4 | J181: 40.5 | K181: 30
A182: =IF(B182=0,0,MAX($A$2:A181)+1) -> 0 | B182: =IF(D182=Calcs!$X$38,Calcs!$W$38,IF(D182=Calcs!$X$39,Calcs!$W$39,IF(D182=Calcs!$X$40,Calcs!$W$40,IF(TRUE,0)))) -> 0 | C182: 181 | D182: TB48-510-30BT | E182: 13 | F182: TRACK BENCH: 4FTx42.5FTx30INxBT | G182: 31 | H182: BOTANICARE TRACK BENCH: 4FT WIDE x 42.5FT LONG x 30IN HIGH, TRILOCK | I182: 4 | J182: 42.5 | K182: 30
A183: =IF(B183=0,0,MAX($A$2:A182)+1) -> 0 | B183: =IF(D183=Calcs!$X$38,Calcs!$W$38,IF(D183=Calcs!$X$39,Calcs!$W$39,IF(D183=Calcs!$X$40,Calcs!$W$40,IF(TRUE,0)))) -> 0 | C183: 182 | D183: TB48-522-30BT | E183: 13 | F183: TRACK BENCH: 4FTx43.5FTx30INxBT | G183: 31 | H183: BOTANICARE TRACK BENCH: 4FT WIDE x 43.5FT LONG x 30IN HIGH, TRILOCK | I183: 4 | J183: 43.5 | K183: 30
A184: =IF(B184=0,0,MAX($A$2:A183)+1) -> 0 | B184: =IF(D184=Calcs!$X$38,Calcs!$W$38,IF(D184=Calcs!$X$39,Calcs!$W$39,IF(D184=Calcs!$X$40,Calcs!$W$40,IF(TRUE,0)))) -> 0 | C184: 183 | D184: TB48-534-30BT | E184: 13 | F184: TRACK BENCH: 4FTx44.5FTx30INxBT | G184: 31 | H184: BOTANICARE TRACK BENCH: 4FT WIDE x 44.5FT LONG x 30IN HIGH, TRILOCK | I184: 4 | J184: 44.5 | K184: 30
A185: =IF(B185=0,0,MAX($A$2:A184)+1) -> 0 | B185: =IF(D185=Calcs!$X$38,Calcs!$W$38,IF(D185=Calcs!$X$39,Calcs!$W$39,IF(D185=Calcs!$X$40,Calcs!$W$40,IF(TRUE,0)))) -> 0 | C185: 184 | D185: TB48-546-30BT | E185: 13 | F185: TRACK BENCH: 4FTx45.5FTx30INxBT | G185: 31 | H185: BOTANICARE TRACK BENCH: 4FT WIDE x 45.5FT LONG x 30IN HIGH, TRILOCK | I185: 4 | J185: 45.5 | K185: 30
A186: =IF(B186=0,0,MAX($A$2:A185)+1) -> 0 | B186: =IF(D186=Calcs!$X$38,Calcs!$W$38,IF(D186=Calcs!$X$39,Calcs!$W$39,IF(D186=Calcs!$X$40,Calcs!$W$40,IF(TRUE,0)))) -> 0 | C186: 185 | D186: TB48-570-30BT | E186: 13 | F186: TRACK BENCH: 4FTx47.5FTx30INxBT | G186: 31 | H186: BOTANICARE TRACK BENCH: 4FT WIDE x 47.5FT LONG x 30IN HIGH, TRILOCK | I186: 4 | J186: 47.5 | K186: 30
A187: =IF(B187=0,0,MAX($A$2:A186)+1) -> 0 | B187: =IF(D187=Calcs!$X$38,Calcs!$W$38,IF(D187=Calcs!$X$39,Calcs!$W$39,IF(D187=Calcs!$X$40,Calcs!$W$40,IF(TRUE,0)))) -> 0 | C187: 186 | D187: TB48-582-30BT | E187: 13 | F187: TRACK BENCH: 4FTx48.5FTx30INxBT | G187: 31 | H187: BOTANICARE TRACK BENCH: 4FT WIDE x 48.5FT LONG x 30IN HIGH, TRILOCK | I187: 4 | J187: 48.5 | K187: 30
A188: =IF(B188=0,0,MAX($A$2:A187)+1) -> 0 | B188: =IF(D188=Calcs!$X$38,Calcs!$W$38,IF(D188=Calcs!$X$39,Calcs!$W$39,IF(D188=Calcs!$X$40,Calcs!$W$40,IF(TRUE,0)))) -> 0 | C188: 187 | D188: TB48-594-30BT | E188: 13 | F188: TRACK BENCH: 4FTx49.5FTx30INxBT | G188: 31 | H188: BOTANICARE TRACK BENCH: 4FT WIDE x 49.5FT LONG x 30IN HIGH, TRILOCK | I188: 4 | J188: 49.5 | K188: 30
A189: =IF(B189=0,0,MAX($A$2:A188)+1) -> 0 | B189: =IF(D189=Calcs!$X$38,Calcs!$W$38,IF(D189=Calcs!$X$39,Calcs!$W$39,IF(D189=Calcs!$X$40,Calcs!$W$40,IF(TRUE,0)))) -> 0 | C189: 188 | D189: TB48-606-30BT | E189: 13 | F189: TRACK BENCH: 4FTx50.5FTx30INxBT | G189: 31 | H189: BOTANICARE TRACK BENCH: 4FT WIDE x 50.5FT LONG x 30IN HIGH, TRILOCK | I189: 4 | J189: 50.5 | K189: 30
A190: =IF(B190=0,0,MAX($A$2:A189)+1) -> 0 | B190: =IF(D190=Calcs!$X$38,Calcs!$W$38,IF(D190=Calcs!$X$39,Calcs!$W$39,IF(D190=Calcs!$X$40,Calcs!$W$40,IF(TRUE,0)))) -> 0 | C190: 189 | D190: TB48-630-30BT | E190: 13 | F190: TRACK BENCH: 4FTx52.5FTx30INxBT | G190: 31 | H190: BOTANICARE TRACK BENCH: 4FT WIDE x 52.5FT LONG x 30IN HIGH, TRILOCK | I190: 4 | J190: 52.5 | K190: 30
A191: =IF(B191=0,0,MAX($A$2:A190)+1) -> 0 | B191: =IF(D191=Calcs!$X$38,Calcs!$W$38,IF(D191=Calcs!$X$39,Calcs!$W$39,IF(D191=Calcs!$X$40,Calcs!$W$40,IF(TRUE,0)))) -> 0 | C191: 190 | D191: TB48-642-30BT | E191: 13 | F191: TRACK BENCH: 4FTx53.5FTx30INxBT | G191: 31 | H191: BOTANICARE TRACK BENCH: 4FT WIDE x 53.5FT LONG x 30IN HIGH, TRILOCK | I191: 4 | J191: 53.5 | K191: 30
A192: =IF(B192=0,0,MAX($A$2:A191)+1) -> 0 | B192: =IF(D192=Calcs!$X$38,Calcs!$W$38,IF(D192=Calcs!$X$39,Calcs!$W$39,IF(D192=Calcs!$X$40,Calcs!$W$40,IF(TRUE,0)))) -> 0 | C192: 191 | D192: TB48-654-30BT | E192: 13 | F192: TRACK BENCH: 4FTx54.5FTx30INxBT | G192: 31 | H192: BOTANICARE TRACK BENCH: 4FT WIDE x 54.5FT LONG x 30IN HIGH, TRILOCK | I192: 4 | J192: 54.5 | K192: 30
A193: =IF(B193=0,0,MAX($A$2:A192)+1) -> 0 | B193: =IF(D193=Calcs!$X$38,Calcs!$W$38,IF(D193=Calcs!$X$39,Calcs!$W$39,IF(D193=Calcs!$X$40,Calcs!$W$40,IF(TRUE,0)))) -> 0 | C193: 192 | D193: TB48-666-30BT | E193: 13 | F193: TRACK BENCH: 4FTx55.5FTx30INxBT | G193: 31 | H193: BOTANICARE TRACK BENCH: 4FT WIDE x 55.5FT LONG x 30IN HIGH, TRILOCK | I193: 4 | J193: 55.5 | K193: 30
A194: =IF(B194=0,0,MAX($A$2:A193)+1) -> 0 | B194: =IF(D194=Calcs!$X$38,Calcs!$W$38,IF(D194=Calcs!$X$39,Calcs!$W$39,IF(D194=Calcs!$X$40,Calcs!$W$40,IF(TRUE,0)))) -> 0 | C194: 193 | D194: TB48-690-30BT | E194: 13 | F194: TRACK BENCH: 4FTx57.5FTx30INxBT | G194: 31 | H194: BOTANICARE TRACK BENCH: 4FT WIDE x 57.5FT LONG x 30IN HIGH, TRILOCK | I194: 4 | J194: 57.5 | K194: 30
A195: =IF(B195=0,0,MAX($A$2:A194)+1) -> 0 | B195: =IF(D195=Calcs!$X$38,Calcs!$W$38,IF(D195=Calcs!$X$39,Calcs!$W$39,IF(D195=Calcs!$X$40,Calcs!$W$40,IF(TRUE,0)))) -> 0 | C195: 194 | D195: TB48-702-30BT | E195: 13 | F195: TRACK BENCH: 4FTx58.5FTx30INxBT | G195: 31 | H195: BOTANICARE TRACK BENCH: 4FT WIDE x 58.5FT LONG x 30IN HIGH, TRILOCK | I195: 4 | J195: 58.5 | K195: 30
A196: =IF(B196=0,0,MAX($A$2:A195)+1) -> 0 | B196: =IF(D196=Calcs!$X$38,Calcs!$W$38,IF(D196=Calcs!$X$39,Calcs!$W$39,IF(D196=Calcs!$X$40,Calcs!$W$40,IF(TRUE,0)))) -> 0 | C196: 195 | D196: TB48-714-30BT | E196: 13 | F196: TRACK BENCH: 4FTx59.5FTx30INxBT | G196: 31 | H196: BOTANICARE TRACK BENCH: 4FT WIDE x 59.5FT LONG x 30IN HIGH, TRILOCK | I196: 4 | J196: 59.5 | K196: 30
A197: =IF(B197=0,0,MAX($A$2:A196)+1) -> 0 | B197: =IF(D197=Calcs!$X$38,Calcs!$W$38,IF(D197=Calcs!$X$39,Calcs!$W$39,IF(D197=Calcs!$X$40,Calcs!$W$40,IF(TRUE,0)))) -> 0 | C197: 196 | D197: TB48-726-30BT | E197: 13 | F197: TRACK BENCH: 4FTx60.5FTx30INxBT | G197: 31 | H197: BOTANICARE TRACK BENCH: 4FT WIDE x 60.5FT LONG x 30IN HIGH, TRILOCK | I197: 4 | J197: 60.5 | K197: 30
A198: =IF(B198=0,0,MAX($A$2:A197)+1) -> 0 | B198: =IF(D198=Calcs!$X$38,Calcs!$W$38,IF(D198=Calcs!$X$39,Calcs!$W$39,IF(D198=Calcs!$X$40,Calcs!$W$40,IF(TRUE,0)))) -> 0 | C198: 197 | D198: TB48-750-30BT | E198: 13 | F198: TRACK BENCH: 4FTx62.5FTx30INxBT | G198: 31 | H198: BOTANICARE TRACK BENCH: 4FT WIDE x 62.5FT LONG x 30IN HIGH, TRILOCK | I198: 4 | J198: 62.5 | K198: 30
A199: =IF(B199=0,0,MAX($A$2:A198)+1) -> 0 | B199: =IF(D199=Calcs!$X$38,Calcs!$W$38,IF(D199=Calcs!$X$39,Calcs!$W$39,IF(D199=Calcs!$X$40,Calcs!$W$40,IF(TRUE,0)))) -> 0 | C199: 198 | D199: TB48-762-30BT | E199: 13 | F199: TRACK BENCH: 4FTx63.5FTx30INxBT | G199: 31 | H199: BOTANICARE TRACK BENCH: 4FT WIDE x 63.5FT LONG x 30IN HIGH, TRILOCK | I199: 4 | J199: 63.5 | K199: 30
A200: =IF(B200=0,0,MAX($A$2:A199)+1) -> 0 | B200: =IF(D200=Calcs!$X$38,Calcs!$W$38,IF(D200=Calcs!$X$39,Calcs!$W$39,IF(D200=Calcs!$X$40,Calcs!$W$40,IF(TRUE,0)))) -> 0 | C200: 199 | D200: TB48-774-30BT | E200: 13 | F200: TRACK BENCH: 4FTx64.5FTx30INxBT | G200: 31 | H200: BOTANICARE TRACK BENCH: 4FT WIDE x 64.5FT LONG x 30IN HIGH, TRILOCK | I200: 4 | J200: 64.5 | K200: 30
... 1169 more rows

Sheet Purchase Order (RL) (hidden)
B5: Hawthorne Hydroponics | E5: Order Information
B6: 3204 NW 38th Circle | E6: Order Date:
B7: Vancouver, WA 98660 | E7: Requested Delivery Date:
B8: Phone 877-753-0404 | E8: Customer P.O.:
B10: Payer: | E10: Bill To: | H10: Ship To:
B11: name | E11: name | H11: name
B12: address 1 | E12: address 1 | H12: address 1
B13: address 2 | E13: address 2 | H13: address 2
B14: city, state, zip | E14: city, state, zip | H14: city, state, zip
B16: Stock Number | C16: Description | H16: Quantity | I16: Unit Price | J16: Ext Price
A17: 1 | B17: =IFERROR(VLOOKUP($A17,'Order BOM''s'!$A$3:$E$35,2,FALSE),"") -> HGC117004-01 | C17: =IFERROR(VLOOKUP($A17,'Order BOM''s'!$A$3:$E$35,3,FALSE),"") -> Slide Bench Instruction Manual | D17: =IFERROR(VLOOKUP($A17,'Order BOM''s'!$A$3:$E$20,2,FALSE),"") ->  | E17: =IFERROR(VLOOKUP($A17,'Order BOM''s'!$A$3:$E$20,2,FALSE),"") ->  | F17: =IFERROR(VLOOKUP($A17,'Order BOM''s'!$A$3:$E$20,2,FALSE),"") ->  | G17: =IFERROR(VLOOKUP($A17,'Order BOM''s'!$A$3:$E$20,2,FALSE),"") ->  | H17: =IFERROR(VLOOKUP($A17,'Order BOM''s'!$A$3:$E$35,4,FALSE),0) -> 1 | I17: =IFERROR(VLOOKUP($A17,'Order BOM''s'!$A$3:$E$35,5,FALSE),0) -> 0 | J17: =I17*H17 -> 0
A18: 2 | B18: =IFERROR(VLOOKUP($A18,'Order BOM''s'!$A$3:$E$35,2,FALSE),"") ->  | C18: =IFERROR(VLOOKUP($A18,'Order BOM''s'!$A$3:$E$35,3,FALSE),"") ->  | H18: =IFERROR(VLOOKUP($A18,'Order BOM''s'!$A$3:$E$35,4,FALSE),0) -> 0 | I18: =IFERROR(VLOOKUP($A18,'Order BOM''s'!$A$3:$E$35,5,FALSE),0) -> 0 | J18: =I18*H18 -> 0
A19: 3 | B19: =IFERROR(VLOOKUP($A19,'Order BOM''s'!$A$3:$E$35,2,FALSE),"") ->  | C19: =IFERROR(VLOOKUP($A19,'Order BOM''s'!$A$3:$E$35,3,FALSE),"") ->  | H19: =IFERROR(VLOOKUP($A19,'Order BOM''s'!$A$3:$E$35,4,FALSE),0) -> 0 | I19: =IFERROR(VLOOKUP($A19,'Order BOM''s'!$A$3:$E$35,5,FALSE),0) -> 0 | J19: 0
A20: 4 | B20: =IFERROR(VLOOKUP($A20,'Order BOM''s'!$A$3:$E$35,2,FALSE),"") ->  | C20: =IFERROR(VLOOKUP($A20,'Order BOM''s'!$A$3:$E$35,3,FALSE),"") ->  | H20: =IFERROR(VLOOKUP($A20,'Order BOM''s'!$A$3:$E$35,4,FALSE),0) -> 0 | I20: =IFERROR(VLOOKUP($A20,'Order BOM''s'!$A$3:$E$35,5,FALSE),0) -> 0 | J20: 0
A21: 5 | B21: =IFERROR(VLOOKUP($A21,'Order BOM''s'!$A$3:$E$35,2,FALSE),"") ->  | C21: =IFERROR(VLOOKUP($A21,'Order BOM''s'!$A$3:$E$35,3,FALSE),"") ->  | H21: =IFERROR(VLOOKUP($A21,'Order BOM''s'!$A$3:$E$35,4,FALSE),0) -> 0 | I21: =IFERROR(VLOOKUP($A21,'Order BOM''s'!$A$3:$E$35,5,FALSE),0) -> 0 | J21: 0
A22: 6 | B22: =IFERROR(VLOOKUP($A22,'Order BOM''s'!$A$3:$E$35,2,FALSE),"") ->  | C22: =IFERROR(VLOOKUP($A22,'Order BOM''s'!$A$3:$E$35,3,FALSE),"") ->  | H22: =IFERROR(VLOOKUP($A22,'Order BOM''s'!$A$3:$E$35,4,FALSE),0) -> 0 | I22: =IFERROR(VLOOKUP($A22,'Order BOM''s'!$A$3:$E$35,5,FALSE),0) -> 0 | J22: 0
A23: 7 | B23: =IFERROR(VLOOKUP($A23,'Order BOM''s'!$A$3:$E$35,2,FALSE),"") ->  | C23: =IFERROR(VLOOKUP($A23,'Order BOM''s'!$A$3:$E$35,3,FALSE),"") ->  | H23: =IFERROR(VLOOKUP($A23,'Order BOM''s'!$A$3:$E$35,4,FALSE),0) -> 0 | I23: =IFERROR(VLOOKUP($A23,'Order BOM''s'!$A$3:$E$35,5,FALSE),0) -> 0 | J23: 0
A24: 8 | B24: =IFERROR(VLOOKUP($A24,'Order BOM''s'!$A$3:$E$35,2,FALSE),"") ->  | C24: =IFERROR(VLOOKUP($A24,'Order BOM''s'!$A$3:$E$35,3,FALSE),"") ->  | H24: =IFERROR(VLOOKUP($A24,'Order BOM''s'!$A$3:$E$35,4,FALSE),0) -> 0 | I24: =IFERROR(VLOOKUP($A24,'Order BOM''s'!$A$3:$E$35,5,FALSE),0) -> 0 | J24: 0
A25: 9 | B25: =IFERROR(VLOOKUP($A25,'Order BOM''s'!$A$3:$E$35,2,FALSE),"") ->  | C25: =IFERROR(VLOOKUP($A25,'Order BOM''s'!$A$3:$E$35,3,FALSE),"") ->  | H25: =IFERROR(VLOOKUP($A25,'Order BOM''s'!$A$3:$E$35,4,FALSE),0) -> 0 | I25: =IFERROR(VLOOKUP($A25,'Order BOM''s'!$A$3:$E$35,5,FALSE),0) -> 0 | J25: 0
A26: 10 | B26: =IFERROR(VLOOKUP($A26,'Order BOM''s'!$A$3:$E$35,2,FALSE),"") ->  | C26: =IFERROR(VLOOKUP($A26,'Order BOM''s'!$A$3:$E$35,3,FALSE),"") ->  | H26: =IFERROR(VLOOKUP($A26,'Order BOM''s'!$A$3:$E$35,4,FALSE),0) -> 0 | I26: =IFERROR(VLOOKUP($A26,'Order BOM''s'!$A$3:$E$35,5,FALSE),0) -> 0 | J26: 0
A27: 11 | B27: =IFERROR(VLOOKUP($A27,'Order BOM''s'!$A$3:$E$35,2,FALSE),"") ->  | C27: =IFERROR(VLOOKUP($A27,'Order BOM''s'!$A$3:$E$35,3,FALSE),"") ->  | H27: =IFERROR(VLOOKUP($A27,'Order BOM''s'!$A$3:$E$35,4,FALSE),0) -> 0 | I27: =IFERROR(VLOOKUP($A27,'Order BOM''s'!$A$3:$E$35,5,FALSE),0) -> 0 | J27: 0
A28: 12 | B28: =IFERROR(VLOOKUP($A28,'Order BOM''s'!$A$3:$E$35,2,FALSE),"") ->  | C28: =IFERROR(VLOOKUP($A28,'Order BOM''s'!$A$3:$E$35,3,FALSE),"") ->  | H28: =IFERROR(VLOOKUP($A28,'Order BOM''s'!$A$3:$E$35,4,FALSE),0) -> 0 | I28: =IFERROR(VLOOKUP($A28,'Order BOM''s'!$A$3:$E$35,5,FALSE),0) -> 0 | J28: 0
A29: 13 | B29: =IFERROR(VLOOKUP($A29,'Order BOM''s'!$A$3:$E$35,2,FALSE),"") ->  | C29: =IFERROR(VLOOKUP($A29,'Order BOM''s'!$A$3:$E$35,3,FALSE),"") ->  | H29: =IFERROR(VLOOKUP($A29,'Order BOM''s'!$A$3:$E$35,4,FALSE),0) -> 0 | I29: =IFERROR(VLOOKUP($A29,'Order BOM''s'!$A$3:$E$35,5,FALSE),0) -> 0 | J29: 0
A30: 14 | B30: =IFERROR(VLOOKUP($A30,'Order BOM''s'!$A$3:$E$35,2,FALSE),"") ->  | C30: =IFERROR(VLOOKUP($A30,'Order BOM''s'!$A$3:$E$35,3,FALSE),"") ->  | H30: =IFERROR(VLOOKUP($A30,'Order BOM''s'!$A$3:$E$35,4,FALSE),0) -> 0 | I30: =IFERROR(VLOOKUP($A30,'Order BOM''s'!$A$3:$E$35,5,FALSE),0) -> 0 | J30: 0
A31: 15 | B31: =IFERROR(VLOOKUP($A31,'Order BOM''s'!$A$3:$E$35,2,FALSE),"") ->  | C31: =IFERROR(VLOOKUP($A31,'Order BOM''s'!$A$3:$E$35,3,FALSE),"") ->  | H31: =IFERROR(VLOOKUP($A31,'Order BOM''s'!$A$3:$E$35,4,FALSE),0) -> 0 | I31: =IFERROR(VLOOKUP($A31,'Order BOM''s'!$A$3:$E$35,5,FALSE),0) -> 0 | J31: 0
A32: 16 | B32: =IFERROR(VLOOKUP($A32,'Order BOM''s'!$A$3:$E$35,2,FALSE),"") ->  | C32: =IFERROR(VLOOKUP($A32,'Order BOM''s'!$A$3:$E$35,3,FALSE),"") ->  | H32: =IFERROR(VLOOKUP($A32,'Order BOM''s'!$A$3:$E$35,4,FALSE),0) -> 0 | I32: =IFERROR(VLOOKUP($A32,'Order BOM''s'!$A$3:$E$35,5,FALSE),0) -> 0 | J32: 0
A33: 17 | B33: =IFERROR(VLOOKUP($A33,'Order BOM''s'!$A$3:$E$35,2,FALSE),"") ->  | C33: =IFERROR(VLOOKUP($A33,'Order BOM''s'!$A$3:$E$35,3,FALSE),"") ->  | H33: =IFERROR(VLOOKUP($A33,'Order BOM''s'!$A$3:$E$35,4,FALSE),0) -> 0 | I33: =IFERROR(VLOOKUP($A33,'Order BOM''s'!$A$3:$E$35,5,FALSE),0) -> 0 | J33: 0
A34: 18 | B34: =IFERROR(VLOOKUP($A34,'Order BOM''s'!$A$3:$E$35,2,FALSE),"") ->  | C34: =IFERROR(VLOOKUP($A34,'Order BOM''s'!$A$3:$E$35,3,FALSE),"") ->  | H34: =IFERROR(VLOOKUP($A34,'Order BOM''s'!$A$3:$E$35,4,FALSE),0) -> 0 | I34: =IFERROR(VLOOKUP($A34,'Order BOM''s'!$A$3:$E$35,5,FALSE),0) -> 0 | J34: 0
B35: Subtotal | I35: =SUM(J17:J34) -> 0
B36: Freight Charges | I36: 0
B37: Total | I37: =I35+J36 -> 0
B39: Special Instructions
B46: Reference Sizes Ordered
C48: Length | D48: Height | F48: Qty
B49: 4' Wide | C49: ='Room Layout (Inputs)'!D34 -> 39.5 | D49: =VLOOKUP(Calcs!P4,'LU Table'!C3:M6,11) -> -- | F49: =Calcs!Q4 -> 0
B50: 5' Wide | C50: =C49 -> 39.5 | D50: =D49 -> -- | F50: =Calcs!Q16 -> 0
C52: Number of Identical Rooms | F52: =Calcs!R4 -> 1

Sheet Bulk Order Parts List (hidden)
E2: Bulk Order Parts List
B4: Sold By: | E4: Ship To:
B5: name | E5: name
B6: address 1 | E6: address 1
B7: address 2 | E7: address 2
B8: city, state, zip | E8: city, state, zip
B10: Stock Number | C10: Description | H10: Quantity
A11: 1 | B11: =IFERROR(VLOOKUP($A11,'Order BOM''s'!$A$48:$D$127,2,FALSE)," ") -> 117004 | C11: =IFERROR(VLOOKUP($A11,'Order BOM''s'!$A$48:$D$127,3,FALSE)," ") -> Slide Bench Instruction Manual | H11: =IFERROR(VLOOKUP($A11,'Order BOM''s'!$A$48:$D$127,4,FALSE)," ") -> 1
A12: 2 | B12: =IFERROR(VLOOKUP($A12,'Order BOM''s'!$A$48:$D$127,2,FALSE)," ") ->  | C12: =IFERROR(VLOOKUP($A12,'Order BOM''s'!$A$48:$D$127,3,FALSE)," ") ->  | H12: =IFERROR(VLOOKUP($A12,'Order BOM''s'!$A$48:$D$127,4,FALSE)," ") -> 
A13: 3 | B13: =IFERROR(VLOOKUP($A13,'Order BOM''s'!$A$48:$D$127,2,FALSE)," ") ->  | C13: =IFERROR(VLOOKUP($A13,'Order BOM''s'!$A$48:$D$127,3,FALSE)," ") ->  | H13: =IFERROR(VLOOKUP($A13,'Order BOM''s'!$A$48:$D$127,4,FALSE)," ") -> 
A14: 4 | B14: =IFERROR(VLOOKUP($A14,'Order BOM''s'!$A$48:$D$127,2,FALSE)," ") ->  | C14: =IFERROR(VLOOKUP($A14,'Order BOM''s'!$A$48:$D$127,3,FALSE)," ") ->  | H14: =IFERROR(VLOOKUP($A14,'Order BOM''s'!$A$48:$D$127,4,FALSE)," ") -> 
A15: 5 | B15: =IFERROR(VLOOKUP($A15,'Order BOM''s'!$A$48:$D$127,2,FALSE)," ") ->  | C15: =IFERROR(VLOOKUP($A15,'Order BOM''s'!$A$48:$D$127,3,FALSE)," ") ->  | H15: =IFERROR(VLOOKUP($A15,'Order BOM''s'!$A$48:$D$127,4,FALSE)," ") -> 
A16: 6 | B16: =IFERROR(VLOOKUP($A16,'Order BOM''s'!$A$48:$D$127,2,FALSE)," ") ->  | C16: =IFERROR(VLOOKUP($A16,'Order BOM''s'!$A$48:$D$127,3,FALSE)," ") ->  | H16: =IFERROR(VLOOKUP($A16,'Order BOM''s'!$A$48:$D$127,4,FALSE)," ") -> 
A17: 7 | B17: =IFERROR(VLOOKUP($A17,'Order BOM''s'!$A$48:$D$127,2,FALSE)," ") ->  | C17: =IFERROR(VLOOKUP($A17,'Order BOM''s'!$A$48:$D$127,3,FALSE)," ") ->  | H17: =IFERROR(VLOOKUP($A17,'Order BOM''s'!$A$48:$D$127,4,FALSE)," ") -> 
A18: 8 | B18: =IFERROR(VLOOKUP($A18,'Order BOM''s'!$A$48:$D$127,2,FALSE)," ") ->  | C18: =IFERROR(VLOOKUP($A18,'Order BOM''s'!$A$48:$D$127,3,FALSE)," ") ->  | H18: =IFERROR(VLOOKUP($A18,'Order BOM''s'!$A$48:$D$127,4,FALSE)," ") -> 
A19: 9 | B19: =IFERROR(VLOOKUP($A19,'Order BOM''s'!$A$48:$D$127,2,FALSE)," ") ->  | C19: =IFERROR(VLOOKUP($A19,'Order BOM''s'!$A$48:$D$127,3,FALSE)," ") ->  | H19: =IFERROR(VLOOKUP($A19,'Order BOM''s'!$A$48:$D$127,4,FALSE)," ") -> 
A20: 10 | B20: =IFERROR(VLOOKUP($A20,'Order BOM''s'!$A$48:$D$127,2,FALSE)," ") ->  | C20: =IFERROR(VLOOKUP($A20,'Order BOM''s'!$A$48:$D$127,3,FALSE)," ") ->  | H20: =IFERROR(VLOOKUP($A20,'Order BOM''s'!$A$48:$D$127,4,FALSE)," ") -> 
A21: 11 | B21: =IFERROR(VLOOKUP($A21,'Order BOM''s'!$A$48:$D$127,2,FALSE)," ") ->  | C21: =IFERROR(VLOOKUP($A21,'Order BOM''s'!$A$48:$D$127,3,FALSE)," ") ->  | H21: =IFERROR(VLOOKUP($A21,'Order BOM''s'!$A$48:$D$127,4,FALSE)," ") -> 
A22: 12 | B22: =IFERROR(VLOOKUP($A22,'Order BOM''s'!$A$48:$D$127,2,FALSE)," ") ->  | C22: =IFERROR(VLOOKUP($A22,'Order BOM''s'!$A$48:$D$127,3,FALSE)," ") ->  | H22: =IFERROR(VLOOKUP($A22,'Order BOM''s'!$A$48:$D$127,4,FALSE)," ") -> 
A23: 13 | B23: =IFERROR(VLOOKUP($A23,'Order BOM''s'!$A$48:$D$127,2,FALSE)," ") ->  | C23: =IFERROR(VLOOKUP($A23,'Order BOM''s'!$A$48:$D$127,3,FALSE)," ") ->  | H23: =IFERROR(VLOOKUP($A23,'Order BOM''s'!$A$48:$D$127,4,FALSE)," ") -> 
A24: 14 | B24: =IFERROR(VLOOKUP($A24,'Order BOM''s'!$A$48:$D$127,2,FALSE)," ") ->  | C24: =IFERROR(VLOOKUP($A24,'Order BOM''s'!$A$48:$D$127,3,FALSE)," ") ->  | H24: =IFERROR(VLOOKUP($A24,'Order BOM''s'!$A$48:$D$127,4,FALSE)," ") -> 
A25: 15 | B25: =IFERROR(VLOOKUP($A25,'Order BOM''s'!$A$48:$D$127,2,FALSE)," ") ->  | C25: =IFERROR(VLOOKUP($A25,'Order BOM''s'!$A$48:$D$127,3,FALSE)," ") ->  | H25: =IFERROR(VLOOKUP($A25,'Order BOM''s'!$A$48:$D$127,4,FALSE)," ") -> 
A26: 16 | B26: =IFERROR(VLOOKUP($A26,'Order BOM''s'!$A$48:$D$127,2,FALSE)," ") ->  | C26: =IFERROR(VLOOKUP($A26,'Order BOM''s'!$A$48:$D$127,3,FALSE)," ") ->  | H26: =IFERROR(VLOOKUP($A26,'Order BOM''s'!$A$48:$D$127,4,FALSE)," ") -> 
A27: 17 | B27: =IFERROR(VLOOKUP($A27,'Order BOM''s'!$A$48:$D$127,2,FALSE)," ") ->  | C27: =IFERROR(VLOOKUP($A27,'Order BOM''s'!$A$48:$D$127,3,FALSE)," ") ->  | H27: =IFERROR(VLOOKUP($A27,'Order BOM''s'!$A$48:$D$127,4,FALSE)," ") -> 
A28: 18 | B28: =IFERROR(VLOOKUP($A28,'Order BOM''s'!$A$48:$D$127,2,FALSE)," ") ->  | C28: =IFERROR(VLOOKUP($A28,'Order BOM''s'!$A$48:$D$127,3,FALSE)," ") ->  | H28: =IFERROR(VLOOKUP($A28,'Order BOM''s'!$A$48:$D$127,4,FALSE)," ") -> 
A29: 19 | B29: =IFERROR(VLOOKUP($A29,'Order BOM''s'!$A$48:$D$127,2,FALSE)," ") ->  | C29: =IFERROR(VLOOKUP($A29,'Order BOM''s'!$A$48:$D$127,3,FALSE)," ") ->  | H29: =IFERROR(VLOOKUP($A29,'Order BOM''s'!$A$48:$D$127,4,FALSE)," ") -> 
A30: 20 | B30: =IFERROR(VLOOKUP($A30,'Order BOM''s'!$A$48:$D$127,2,FALSE)," ") ->  | C30: =IFERROR(VLOOKUP($A30,'Order BOM''s'!$A$48:$D$127,3,FALSE)," ") ->  | H30: =IFERROR(VLOOKUP($A30,'Order BOM''s'!$A$48:$D$127,4,FALSE)," ") -> 
A31: 21 | B31: =IFERROR(VLOOKUP($A31,'Order BOM''s'!$A$48:$D$127,2,FALSE)," ") ->  | C31: =IFERROR(VLOOKUP($A31,'Order BOM''s'!$A$48:$D$127,3,FALSE)," ") ->  | H31: =IFERROR(VLOOKUP($A31,'Order BOM''s'!$A$48:$D$127,4,FALSE)," ") -> 
A32: 22 | B32: =IFERROR(VLOOKUP($A32,'Order BOM''s'!$A$48:$D$127,2,FALSE)," ") ->  | C32: =IFERROR(VLOOKUP($A32,'Order BOM''s'!$A$48:$D$127,3,FALSE)," ") ->  | H32: =IFERROR(VLOOKUP($A32,'Order BOM''s'!$A$48:$D$127,4,FALSE)," ") -> 
A33: 23 | B33: =IFERROR(VLOOKUP($A33,'Order BOM''s'!$A$48:$D$127,2,FALSE)," ") ->  | C33: =IFERROR(VLOOKUP($A33,'Order BOM''s'!$A$48:$D$127,3,FALSE)," ") ->  | H33: =IFERROR(VLOOKUP($A33,'Order BOM''s'!$A$48:$D$127,4,FALSE)," ") -> 
A34: 24 | B34: =IFERROR(VLOOKUP($A34,'Order BOM''s'!$A$48:$D$127,2,FALSE)," ") ->  | C34: =IFERROR(VLOOKUP($A34,'Order BOM''s'!$A$48:$D$127,3,FALSE)," ") ->  | H34: =IFERROR(VLOOKUP($A34,'Order BOM''s'!$A$48:$D$127,4,FALSE)," ") -> 
A35: 25 | B35: =IFERROR(VLOOKUP($A35,'Order BOM''s'!$A$48:$D$127,2,FALSE)," ") ->  | C35: =IFERROR(VLOOKUP($A35,'Order BOM''s'!$A$48:$D$127,3,FALSE)," ") ->  | H35: =IFERROR(VLOOKUP($A35,'Order BOM''s'!$A$48:$D$127,4,FALSE)," ") -> 
A36: 26 | B36: =IFERROR(VLOOKUP($A36,'Order BOM''s'!$A$48:$D$127,2,FALSE)," ") ->  | C36: =IFERROR(VLOOKUP($A36,'Order BOM''s'!$A$48:$D$127,3,FALSE)," ") ->  | H36: =IFERROR(VLOOKUP($A36,'Order BOM''s'!$A$48:$D$127,4,FALSE)," ") -> 
A37: 27 | B37: =IFERROR(VLOOKUP($A37,'Order BOM''s'!$A$48:$D$127,2,FALSE)," ") ->  | C37: =IFERROR(VLOOKUP($A37,'Order BOM''s'!$A$48:$D$127,3,FALSE)," ") ->  | H37: =IFERROR(VLOOKUP($A37,'Order BOM''s'!$A$48:$D$127,4,FALSE)," ") -> 
A38: 28 | B38: =IFERROR(VLOOKUP($A38,'Order BOM''s'!$A$48:$D$127,2,FALSE)," ") ->  | C38: =IFERROR(VLOOKUP($A38,'Order BOM''s'!$A$48:$D$127,3,FALSE)," ") ->  | H38: =IFERROR(VLOOKUP($A38,'Order BOM''s'!$A$48:$D$127,4,FALSE)," ") -> 
A39: 29 | B39: =IFERROR(VLOOKUP($A39,'Order BOM''s'!$A$48:$D$127,2,FALSE)," ") ->  | C39: =IFERROR(VLOOKUP($A39,'Order BOM''s'!$A$48:$D$127,3,FALSE)," ") ->  | H39: =IFERROR(VLOOKUP($A39,'Order BOM''s'!$A$48:$D$127,4,FALSE)," ") -> 
A40: 30 | B40: =IFERROR(VLOOKUP($A40,'Order BOM''s'!$A$48:$D$127,2,FALSE)," ") ->  | C40: =IFERROR(VLOOKUP($A40,'Order BOM''s'!$A$48:$D$127,3,FALSE)," ") ->  | H40: =IFERROR(VLOOKUP($A40,'Order BOM''s'!$A$48:$D$127,4,FALSE)," ") -> 
A41: 31 | B41: =IFERROR(VLOOKUP($A41,'Order BOM''s'!$A$48:$D$127,2,FALSE)," ") ->  | C41: =IFERROR(VLOOKUP($A41,'Order BOM''s'!$A$48:$D$127,3,FALSE)," ") ->  | H41: =IFERROR(VLOOKUP($A41,'Order BOM''s'!$A$48:$D$127,4,FALSE)," ") -> 
A42: 32 | B42: =IFERROR(VLOOKUP($A42,'Order BOM''s'!$A$48:$D$127,2,FALSE)," ") ->  | C42: =IFERROR(VLOOKUP($A42,'Order BOM''s'!$A$48:$D$127,3,FALSE)," ") ->  | H42: =IFERROR(VLOOKUP($A42,'Order BOM''s'!$A$48:$D$127,4,FALSE)," ") -> 
A43: 33 | B43: =IFERROR(VLOOKUP($A43,'Order BOM''s'!$A$48:$D$127,2,FALSE)," ") ->  | C43: =IFERROR(VLOOKUP($A43,'Order BOM''s'!$A$48:$D$127,3,FALSE)," ") ->  | H43: =IFERROR(VLOOKUP($A43,'Order BOM''s'!$A$48:$D$127,4,FALSE)," ") -> 
A44: 34 | B44: =IFERROR(VLOOKUP($A44,'Order BOM''s'!$A$48:$D$127,2,FALSE)," ") ->  | C44: =IFERROR(VLOOKUP($A44,'Order BOM''s'!$A$48:$D$127,3,FALSE)," ") ->  | H44: =IFERROR(VLOOKUP($A44,'Order BOM''s'!$A$48:$D$127,4,FALSE)," ") -> 
A45: 35 | B45: =IFERROR(VLOOKUP($A45,'Order BOM''s'!$A$48:$D$127,2,FALSE)," ") ->  | C45: =IFERROR(VLOOKUP($A45,'Order BOM''s'!$A$48:$D$127,3,FALSE)," ") ->  | H45: =IFERROR(VLOOKUP($A45,'Order BOM''s'!$A$48:$D$127,4,FALSE)," ") -> 
A46: 36 | B46: =IFERROR(VLOOKUP($A46,'Order BOM''s'!$A$48:$D$127,2,FALSE)," ") ->  | C46: =IFERROR(VLOOKUP($A46,'Order BOM''s'!$A$48:$D$127,3,FALSE)," ") ->  | H46: =IFERROR(VLOOKUP($A46,'Order BOM''s'!$A$48:$D$127,4,FALSE)," ") -> 
A47: 37 | B47: =IFERROR(VLOOKUP($A47,'Order BOM''s'!$A$48:$D$127,2,FALSE)," ") ->  | C47: =IFERROR(VLOOKUP($A47,'Order BOM''s'!$A$48:$D$127,3,FALSE)," ") ->  | H47: =IFERROR(VLOOKUP($A47,'Order BOM''s'!$A$48:$D$127,4,FALSE)," ") -> 
A48: 38 | B48: =IFERROR(VLOOKUP($A48,'Order BOM''s'!$A$48:$D$127,2,FALSE)," ") ->  | C48: =IFERROR(VLOOKUP($A48,'Order BOM''s'!$A$48:$D$127,3,FALSE)," ") ->  | H48: =IFERROR(VLOOKUP($A48,'Order BOM''s'!$A$48:$D$127,4,FALSE)," ") -> 
A49: 39 | B49: =IFERROR(VLOOKUP($A49,'Order BOM''s'!$A$48:$D$127,2,FALSE)," ") ->  | C49: =IFERROR(VLOOKUP($A49,'Order BOM''s'!$A$48:$D$127,3,FALSE)," ") ->  | H49: =IFERROR(VLOOKUP($A49,'Order BOM''s'!$A$48:$D$127,4,FALSE)," ") -> 
A50: 40 | B50: =IFERROR(VLOOKUP($A50,'Order BOM''s'!$A$48:$D$127,2,FALSE)," ") ->  | C50: =IFERROR(VLOOKUP($A50,'Order BOM''s'!$A$48:$D$127,3,FALSE)," ") ->  | H50: =IFERROR(VLOOKUP($A50,'Order BOM''s'!$A$48:$D$127,4,FALSE)," ") -> 
A51: 41 | B51: =IFERROR(VLOOKUP($A51,'Order BOM''s'!$A$48:$D$127,2,FALSE)," ") ->  | C51: =IFERROR(VLOOKUP($A51,'Order BOM''s'!$A$48:$D$127,3,FALSE)," ") ->  | H51: =IFERROR(VLOOKUP($A51,'Order BOM''s'!$A$48:$D$127,4,FALSE)," ") -> 
A52: 42 | B52: =IFERROR(VLOOKUP($A52,'Order BOM''s'!$A$48:$D$127,2,FALSE)," ") ->  | C52: =IFERROR(VLOOKUP($A52,'Order BOM''s'!$A$48:$D$127,3,FALSE)," ") ->  | H52: =IFERROR(VLOOKUP($A52,'Order BOM''s'!$A$48:$D$127,4,FALSE)," ") -> 
A53: 43 | B53: =IFERROR(VLOOKUP($A53,'Order BOM''s'!$A$48:$D$127,2,FALSE)," ") ->  | C53: =IFERROR(VLOOKUP($A53,'Order BOM''s'!$A$48:$D$127,3,FALSE)," ") ->  | H53: =IFERROR(VLOOKUP($A53,'Order BOM''s'!$A$48:$D$127,4,FALSE)," ") -> 
A54: 44 | B54: =IFERROR(VLOOKUP($A54,'Order BOM''s'!$A$48:$D$127,2,FALSE)," ") ->  | C54: =IFERROR(VLOOKUP($A54,'Order BOM''s'!$A$48:$D$127,3,FALSE)," ") ->  | H54: =IFERROR(VLOOKUP($A54,'Order BOM''s'!$A$48:$D$127,4,FALSE)," ") -> 
A55: 45 | B55: =IFERROR(VLOOKUP($A55,'Order BOM''s'!$A$48:$D$127,2,FALSE)," ") ->  | C55: =IFERROR(VLOOKUP($A55,'Order BOM''s'!$A$48:$D$127,3,FALSE)," ") ->  | H55: =IFERROR(VLOOKUP($A55,'Order BOM''s'!$A$48:$D$127,4,FALSE)," ") -> 
A56: 46 | B56: =IFERROR(VLOOKUP($A56,'Order BOM''s'!$A$48:$D$127,2,FALSE)," ") ->  | C56: =IFERROR(VLOOKUP($A56,'Order BOM''s'!$A$48:$D$127,3,FALSE)," ") ->  | H56: =IFERROR(VLOOKUP($A56,'Order BOM''s'!$A$48:$D$127,4,FALSE)," ") -> 
A57: 47 | B57: =IFERROR(VLOOKUP($A57,'Order BOM''s'!$A$48:$D$127,2,FALSE)," ") ->  | C57: =IFERROR(VLOOKUP($A57,'Order BOM''s'!$A$48:$D$127,3,FALSE)," ") ->  | H57: =IFERROR(VLOOKUP($A57,'Order BOM''s'!$A$48:$D$127,4,FALSE)," ") -> 
A58: 48 | B58: =IFERROR(VLOOKUP($A58,'Order BOM''s'!$A$48:$D$127,2,FALSE)," ") ->  | C58: =IFERROR(VLOOKUP($A58,'Order BOM''s'!$A$48:$D$127,3,FALSE)," ") ->  | H58: =IFERROR(VLOOKUP($A58,'Order BOM''s'!$A$48:$D$127,4,FALSE)," ") -> 
A59: 49 | B59: =IFERROR(VLOOKUP($A59,'Order BOM''s'!$A$48:$D$127,2,FALSE)," ") ->  | C59: =IFERROR(VLOOKUP($A59,'Order BOM''s'!$A$48:$D$127,3,FALSE)," ") ->  | H59: =IFERROR(VLOOKUP($A59,'Order BOM''s'!$A$48:$D$127,4,FALSE)," ") -> 
A60: 50 | B60: =IFERROR(VLOOKUP($A60,'Order BOM''s'!$A$48:$D$127,2,FALSE)," ") ->  | C60: =IFERROR(VLOOKUP($A60,'Order BOM''s'!$A$48:$D$127,3,FALSE)," ") ->  | H60: =IFERROR(VLOOKUP($A60,'Order BOM''s'!$A$48:$D$127,4,FALSE)," ") -> 
A61: 51 | B61: =IFERROR(VLOOKUP($A61,'Order BOM''s'!$A$48:$D$127,2,FALSE)," ") ->  | C61: =IFERROR(VLOOKUP($A61,'Order BOM''s'!$A$48:$D$127,3,FALSE)," ") ->  | H61: =IFERROR(VLOOKUP($A61,'Order BOM''s'!$A$48:$D$127,4,FALSE)," ") -> 
A62: 52 | B62: =IFERROR(VLOOKUP($A62,'Order BOM''s'!$A$48:$D$127,2,FALSE)," ") ->  | C62: =IFERROR(VLOOKUP($A62,'Order BOM''s'!$A$48:$D$127,3,FALSE)," ") ->  | H62: =IFERROR(VLOOKUP($A62,'Order BOM''s'!$A$48:$D$127,4,FALSE)," ") -> 
A63: 53 | B63: =IFERROR(VLOOKUP($A63,'Order BOM''s'!$A$48:$D$127,2,FALSE)," ") ->  | C63: =IFERROR(VLOOKUP($A63,'Order BOM''s'!$A$48:$D$127,3,FALSE)," ") ->  | H63: =IFERROR(VLOOKUP($A63,'Order BOM''s'!$A$48:$D$127,4,FALSE)," ") -> 
A64: 54 | B64: =IFERROR(VLOOKUP($A64,'Order BOM''s'!$A$48:$D$127,2,FALSE)," ") ->  | C64: =IFERROR(VLOOKUP($A64,'Order BOM''s'!$A$48:$D$127,3,FALSE)," ") ->  | H64: =IFERROR(VLOOKUP($A64,'Order BOM''s'!$A$48:$D$127,4,FALSE)," ") -> 
A65: 55 | B65: =IFERROR(VLOOKUP($A65,'Order BOM''s'!$A$48:$D$127,2,FALSE)," ") ->  | C65: =IFERROR(VLOOKUP($A65,'Order BOM''s'!$A$48:$D$127,3,FALSE)," ") ->  | H65: =IFERROR(VLOOKUP($A65,'Order BOM''s'!$A$48:$D$127,4,FALSE)," ") -> 
A66: 56 | B66: =IFERROR(VLOOKUP($A66,'Order BOM''s'!$A$48:$D$127,2,FALSE)," ") ->  | C66: =IFERROR(VLOOKUP($A66,'Order BOM''s'!$A$48:$D$127,3,FALSE)," ") ->  | H66: =IFERROR(VLOOKUP($A66,'Order BOM''s'!$A$48:$D$127,4,FALSE)," ") -> 
A67: 57 | B67: =IFERROR(VLOOKUP($A67,'Order BOM''s'!$A$48:$D$127,2,FALSE)," ") ->  | C67: =IFERROR(VLOOKUP($A67,'Order BOM''s'!$A$48:$D$127,3,FALSE)," ") ->  | H67: =IFERROR(VLOOKUP($A67,'Order BOM''s'!$A$48:$D$127,4,FALSE)," ") -> 
A68: 58 | B68: =IFERROR(VLOOKUP($A68,'Order BOM''s'!$A$48:$D$127,2,FALSE)," ") ->  | C68: =IFERROR(VLOOKUP($A68,'Order BOM''s'!$A$48:$D$127,3,FALSE)," ") ->  | H68: =IFERROR(VLOOKUP($A68,'Order BOM''s'!$A$48:$D$127,4,FALSE)," ") -> 
A69: 59 | B69: =IFERROR(VLOOKUP($A69,'Order BOM''s'!$A$48:$D$127,2,FALSE)," ") ->  | C69: =IFERROR(VLOOKUP($A69,'Order BOM''s'!$A$48:$D$127,3,FALSE)," ") ->  | H69: =IFERROR(VLOOKUP($A69,'Order BOM''s'!$A$48:$D$127,4,FALSE)," ") -> 
A70: 60 | B70: =IFERROR(VLOOKUP($A70,'Order BOM''s'!$A$48:$D$127,2,FALSE)," ") ->  | C70: =IFERROR(VLOOKUP($A70,'Order BOM''s'!$A$48:$D$127,3,FALSE)," ") ->  | H70: =IFERROR(VLOOKUP($A70,'Order BOM''s'!$A$48:$D$127,4,FALSE)," ") -> 

Sheet Room Layout Summary
H7: Room Dimensions:
H8: ='Room Layout (Inputs)'!$B$45 -> 40 | I8: ft Length
H10: ='Room Layout (Inputs)'!$B$46 -> 40 | I10: ft Width
H13: Benching Area Summary:
H14: ='Room Layout (Inputs)'!$D$33 -> 1496.0625 | I14: sq feet of bench
H16: =IF($A$27="Track Bench w/ Gutter",'Room Layout (Inputs)'!$D$32,"") ->  | I16: =IF($A$27="Track Bench w/ Gutter", "sq feet of planting area","") -> 
H19: =IF($A$27="Track Bench w/ Gutter",($H$14-$H$16)/$H$14,"") ->  | I19: =IF(A27="Track Bench w/ Gutter","approximate increase in area for air passage between trays vs. OG","") -> 
A26: Type | B26: SKU | D26: Description | I26: Qty
A27: =INDEX(Calcs!$J$38:$J$40,Calcs!$C$41) -> Track Bench w/ OG | B27: =IFERROR(VLOOKUP(1,Calcs!$Q$38:$Y$40,8,FALSE),"") ->  | D27: =IFERROR(VLOOKUP(1,Calcs!$Q$38:$Y$40,9,FALSE),"") ->  | I27: =IFERROR(VLOOKUP(1,Calcs!$Q$38:$Y$40,7,FALSE),"") -> 
B28: =IFERROR(VLOOKUP(2,Calcs!$Q$38:$Y$40,8,FALSE),"") ->  | D28: =IFERROR(VLOOKUP(2,Calcs!$Q$38:$Y$40,9,FALSE),"") ->  | I28: =IFERROR(VLOOKUP(2,Calcs!$Q$38:$Y$40,7,FALSE),"") -> 
B29: =IFERROR(VLOOKUP(3,Calcs!$Q$38:$Y$40,8,FALSE),"") ->  | D29: =IFERROR(VLOOKUP(3,Calcs!$Q$38:$Y$40,9,FALSE),"") ->  | I29: =IFERROR(VLOOKUP(3,Calcs!$Q$38:$Y$40,7,FALSE),"") -> 
G30: =IF(ISERROR(Calcs!C97),"Track SKU not shown - fill out Room Layout Tab completely","") -> 
A31: Aisle Dimensions | G31: Bench Dimensions
A32: Right Side Aisle Width Range | B32: ='Room Layout (Inputs)'!B37 -> 0 | C32: Inches | D32: ='Room Layout (Inputs)'!D37 -> 25.5 | E32: Inches | G32: Bench Length | H32: =Calcs!C54 -> 39.5 | I32: Feet
A33: Left Side Aisle Width Range | B33: ='Room Layout (Inputs)'!B36 -> 0 | C33: Inches | D33: ='Room Layout (Inputs)'!D36 -> 25.5 | E33: Inches | G33: Bench Length w/ Handle | H33: =H32+3/12 -> 39.75 | I33: Feet
A34: Center Aisle Width Range | B34: ='Room Layout (Inputs)'!B38 -> 0 | C34: Inches | D34: ='Room Layout (Inputs)'!D38 -> 25.5 | E34: Inches | G34: Bench Width (Total) | H34: =Calcs!$G$64/12 -> 37.875 | I34: Feet
A35: Front Aisle Width | B35: ='Room Layout (Inputs)'!B40 -> 3 | C35: Inches | G35: Bench Height | H35: =Calcs!T38 -> FALSE | I35: Inches
A36: Drain Aisle Width | B36: ='Room Layout (Inputs)'!B19 -> 0 | C36: Inches | G36: Bench Count - 4ft | H36: =Calcs!E63 -> 9
G37: Bench Count - 5ft | H37: =Calcs!F63 -> 0
G38: Total Benches | H38: =Calcs!G63 -> 9

Sheet Order Summary
A1: Summary | J1: Quick Order
A2: Room Summary | D2: Bench Summary | J2: Copy and paste quantities and part #s below.
A3: Length | B3: =Calcs!$C$35/12 -> 40 | C3: ft | D3: Type | E3: SKU | F3: Description | H3: Quantity | J3: Quantity | K3: SKU / Part #
A4: Width | B4: =Calcs!$C$36/12 -> 40 | C4: ft | D4: =INDEX(Calcs!$J$38:$J$40,Calcs!$C$41) -> Track Bench w/ OG | E4: ='Room Layout Summary'!B27 ->  | F4: ='Room Layout Summary'!D27 ->  | H4: ='Room Layout Summary'!I27 ->  | J4: =H4 ->  | K4: =E4 -> 
E5: ='Room Layout Summary'!B28 ->  | F5: ='Room Layout Summary'!D28 ->  | H5: ='Room Layout Summary'!I28 ->  | J5: =H5 ->  | K5: =E5 -> 
E6: ='Room Layout Summary'!B29 ->  | F6: ='Room Layout Summary'!D29 ->  | H6: ='Room Layout Summary'!I29 -> 
A8: Bench Details | D8: Tray Details
A9: Length | B9: =Calcs!$C$54 -> 39.5 | C9: Feet | D9: Benching Area | E9: ='Room Layout (Inputs)'!D33 -> 1496.0625 | F9: Sq Feet
A10: Length (w/ Handle) | B10: =B9+3/12 -> 39.75 | C10: Feet | D10: Planting Area | E10: =Calcs!$G$66 -> 1309.0785 | F10: Sq Feet
A11: Width (Total) | B11: =Calcs!$G$64/12 -> 37.875 | C11: Feet | D11: # of 4' rows | E11: ='Room Layout (Inputs)'!B59 -> 9 | F11: Rows
A12: Height (H) | B12: =INDEX(Calcs!$I$31:$I$34,Calcs!$P$4,1) -> -- | C12: Inches | D12: # of 5' rows | E12: ='Room Layout (Inputs)'!B60 -> 0 | F12: Rows
A13: Width (Aisle) | B13: =Calcs!C100 -> 25.5 | C13: Inches | D13: # of Gutter rows | E13: ='Room Layout (Inputs)'!B61 -> 0 | F13: Rows
A14: =IF(Calcs!$C$60=3,"Width1 (W1)","Width (W)") -> Width (W) | B14: =IF(Calcs!$C$41=1, IF(Calcs!$C$60=2, Calcs!$D$9,Calcs!$C$9), IF(Calcs!$C$60=2, Calcs!$F$9,Calcs!$E$9)) -> 50.5 | C14: Inches | D14: Total rows | E14: =SUM(E11:E13) -> 9 | F14: Rows
A15: =IF(A14="Width1 (W1)","Width2 (W2)","") ->  | B15: =IF(A14="Width1 (W1)",Calcs!D9,"") ->  | C15: =IF(A14="Width1 (W1)","Inches","") -> 
A16: # of 4' Wide | B16: =Calcs!$E$63 -> 9 | C16: Benches
A17: # of 5' Wide | B17: =Calcs!$F$63 -> 0 | C17: Benches
A18: Total Benches | B18: =Calcs!$G$63 -> 9 | C18: Benches

Sheet Layout Dimensions
F2: Track Bench Room Layout Dimensions
B3: Dimensions
B4: A | C4: =Calcs!C88 -> 4.5 | D4: in
B5: B | C5: =Calcs!C89 -> 3 | D5: in
B6: C | C6: =Calcs!C90 -> 474 | D6: in
B7: L | C7: =Calcs!C91 -> 462 | D7: in

Sheet Bench Pictures (hidden)
B1: FRONT | C1: TOP
A2: TB-4
A3: TB-5
A4: TB-M
A5: TB-4G
A6: TB-5G
A7: TB-MG

Sheet Existing Comparison (hidden)
D2: Room Comparison
A6: Existing Installation
A7: Number of Benches | B7: 0 | D7: #
A8: Bench Length | B8: 0 | D8: Inches
A9: Tray Width | B9: 0 | D9: Inches
A10: Bench Area | B10: =((B9*B8)/144)*B7 -> 0 | D10: Sq Feet
A12: Room Efficiency
B13: Existing Installation | D13: Botanicares Bench
A14: Total Room Area | B14: =(Calcs!C35*Calcs!C36)/144 -> 1600 | D14: =B14 -> 1600 | F14: Sq Feet
A15: Total Bench Area | B15: =B10 -> 0 | D15: ='Room Layout (Inputs)'!D33 -> 1496.0625 | F15: Sq Feet
A16: Percent Room Utilized | B16: =B15/B14 -> 0 | D16: =D15/D14 -> 0.9350390625

Sheet Slope-Fractional (hidden)

Sheet Slope-Decimal (hidden)
A1: Arch Height Adjustment Distance for Slope (Decimal Inches)
A2: Arch Number | B2: Nominal Bench Length(ft)
B3: 10 | C3: 15 | D3: 20 | E3: 25 | F3: 30 | G3: 35 | H3: 40 | I3: 45 | J3: 50 | K3: 55 | L3: 60 | M3: 65 | N3: 70 | O3: 75 | P3: 80 | Q3: 85 | R3: 90 | S3: 95 | T3: 100
A4: 1 (Drain) | B4: 0 | C4: 0 | D4: 0 | E4: 0 | F4: 0 | G4: 0 | H4: 0 | I4: 0 | J4: 0 | K4: 0 | L4: 0 | M4: 0 | N4: 0 | O4: 0 | P4: 0 | Q4: 0 | R4: 0 | S4: 0 | T4: 0
A5: 2 | B5: 0.625 | C5: 0.625 | D5: 0.625 | E5: 0.625 | F5: 0.625 | G5: 0.625 | H5: 0.625 | I5: 0.5555555556 | J5: 0.5 | K5: 0.4545454545 | L5: 0.4166666667 | M5: 0.3846153846 | N5: 0.3571428571 | O5: 0.3333333333 | P5: 0.3125 | Q5: 0.2941176471 | R5: 0.2777777778 | S5: 0.2631578947 | T5: 0.25
A6: 3 | B6: 1.25 | C6: 1.25 | D6: 1.25 | E6: 1.25 | F6: 1.25 | G6: 1.25 | H6: 1.25 | I6: 1.111111111 | J6: 1 | K6: 0.9090909091 | L6: 0.8333333333 | M6: 0.7692307692 | N6: 0.7142857143 | O6: 0.6666666667 | P6: 0.625 | Q6: 0.5882352941 | R6: 0.5555555556 | S6: 0.5263157895 | T6: 0.5
A7: 4 | C7: 1.875 | D7: 1.875 | E7: 1.875 | F7: 1.875 | G7: 1.875 | H7: 1.875 | I7: 1.666666667 | J7: 1.5 | K7: 1.363636364 | L7: 1.25 | M7: 1.153846154 | N7: 1.071428571 | O7: 1 | P7: 0.9375 | Q7: 0.8823529412 | R7: 0.8333333333 | S7: 0.7894736842 | T7: 0.75
A8: 5 | D8: 2.5 | E8: 2.5 | F8: 2.5 | G8: 2.5 | H8: 2.5 | I8: 2.222222222 | J8: 2 | K8: 1.818181818 | L8: 1.666666667 | M8: 1.538461538 | N8: 1.428571429 | O8: 1.333333333 | P8: 1.25 | Q8: 1.176470588 | R8: 1.111111111 | S8: 1.052631579 | T8: 1
A9: 6 | E9: 3.125 | F9: 3.125 | G9: 3.125 | H9: 3.125 | I9: 2.777777778 | J9: 2.5 | K9: 2.272727273 | L9: 2.083333333 | M9: 1.923076923 | N9: 1.785714286 | O9: 1.666666667 | P9: 1.5625 | Q9: 1.470588235 | R9: 1.388888889 | S9: 1.315789474 | T9: 1.25
A10: 7 | F10: 3.75 | G10: 3.75 | H10: 3.75 | I10: 3.333333333 | J10: 3 | K10: 2.727272727 | L10: 2.5 | M10: 2.307692308 | N10: 2.142857143 | O10: 2 | P10: 1.875 | Q10: 1.764705882 | R10: 1.666666667 | S10: 1.578947368 | T10: 1.5
A11: 8 | G11: 4.375 | H11: 4.375 | I11: 3.888888889 | J11: 3.5 | K11: 3.181818182 | L11: 2.916666667 | M11: 2.692307692 | N11: 2.5 | O11: 2.333333333 | P11: 2.1875 | Q11: 2.058823529 | R11: 1.944444444 | S11: 1.842105263 | T11: 1.75
A12: 9 | H12: 5 | I12: 4.444444444 | J12: 4 | K12: 3.636363636 | L12: 3.333333333 | M12: 3.076923077 | N12: 2.857142857 | O12: 2.666666667 | P12: 2.5 | Q12: 2.352941176 | R12: 2.222222222 | S12: 2.105263158 | T12: 2
A13: 10 | I13: 5 | J13: 4.5 | K13: 4.090909091 | L13: 3.75 | M13: 3.461538462 | N13: 3.214285714 | O13: 3 | P13: 2.8125 | Q13: 2.647058824 | R13: 2.5 | S13: 2.368421053 | T13: 2.25
A14: 11 | J14: 5 | K14: 4.545454545 | L14: 4.166666667 | M14: 3.846153846 | N14: 3.571428571 | O14: 3.333333333 | P14: 3.125 | Q14: 2.941176471 | R14: 2.777777778 | S14: 2.631578947 | T14: 2.5
A15: 12 | K15: 5 | L15: 4.583333333 | M15: 4.230769231 | N15: 3.928571429 | O15: 3.666666667 | P15: 3.4375 | Q15: 3.235294118 | R15: 3.055555556 | S15: 2.894736842 | T15: 2.75
A16: 13 | L16: 5 | M16: 4.615384615 | N16: 4.285714286 | O16: 4 | P16: 3.75 | Q16: 3.529411765 | R16: 3.333333333 | S16: 3.157894737 | T16: 3
A17: 14 | M17: 5 | N17: 4.642857143 | O17: 4.333333333 | P17: 4.0625 | Q17: 3.823529412 | R17: 3.611111111 | S17: 3.421052632 | T17: 3.25
A18: 15 | N18: 5 | O18: 4.666666667 | P18: 4.375 | Q18: 4.117647059 | R18: 3.888888889 | S18: 3.684210526 | T18: 3.5
A19: 16 | O19: 5 | P19: 4.6875 | Q19: 4.411764706 | R19: 4.166666667 | S19: 3.947368421 | T19: 3.75
A20: 17 | P20: 5 | Q20: 4.705882353 | R20: 4.444444444 | S20: 4.210526316 | T20: 4
A21: 18 | Q21: 5 | R21: 4.722222222 | S21: 4.473684211 | T21: 4.25
A22: 19 | R22: 5 | S22: 4.736842105 | T22: 4.5
A23: 20 | S23: 5 | T23: 4.75
A24: 21 | T24: 5

Sheet Slope-Metric (hidden)
A1: Arch Height Adjustment Distance for Slope (mm)
A2: Arch Number | B2: Nominal Bench Length (ft)
B3: 10 | C3: 15 | D3: 20 | E3: 25 | F3: 30 | G3: 35 | H3: 40 | I3: 45 | J3: 50 | K3: 55 | L3: 60 | M3: 65 | N3: 70 | O3: 75 | P3: 80 | Q3: 85 | R3: 90 | S3: 95 | T3: 100
A4: 1 (Drain) | B4: 0 | C4: 0 | D4: 0 | E4: 0 | F4: 0 | G4: 0 | H4: 0 | I4: 0 | J4: 0 | K4: 0 | L4: 0 | M4: 0 | N4: 0 | O4: 0 | P4: 0 | Q4: 0 | R4: 0 | S4: 0 | T4: 0
A5: 2 | B5: 15.875 | C5: 15.875 | D5: 15.875 | E5: 15.875 | F5: 15.875 | G5: 15.875 | H5: 15.875 | I5: 14.11111111 | J5: 12.7 | K5: 11.54545455 | L5: 10.58333333 | M5: 9.769230769 | N5: 9.071428571 | O5: 8.466666667 | P5: 7.9375 | Q5: 7.470588235 | R5: 7.055555556 | S5: 6.684210526 | T5: 6.35
A6: 3 | B6: 31.75 | C6: 31.75 | D6: 31.75 | E6: 31.75 | F6: 31.75 | G6: 31.75 | H6: 31.75 | I6: 28.22222222 | J6: 25.4 | K6: 23.09090909 | L6: 21.16666667 | M6: 19.53846154 | N6: 18.14285714 | O6: 16.93333333 | P6: 15.875 | Q6: 14.94117647 | R6: 14.11111111 | S6: 13.36842105 | T6: 12.7
A7: 4 | C7: 47.625 | D7: 47.625 | E7: 47.625 | F7: 47.625 | G7: 47.625 | H7: 47.625 | I7: 42.33333333 | J7: 38.1 | K7: 34.63636364 | L7: 31.75 | M7: 29.30769231 | N7: 27.21428571 | O7: 25.4 | P7: 23.8125 | Q7: 22.41176471 | R7: 21.16666667 | S7: 20.05263158 | T7: 19.05
A8: 5 | D8: 63.5 | E8: 63.5 | F8: 63.5 | G8: 63.5 | H8: 63.5 | I8: 56.44444444 | J8: 50.8 | K8: 46.18181818 | L8: 42.33333333 | M8: 39.07692308 | N8: 36.28571429 | O8: 33.86666667 | P8: 31.75 | Q8: 29.88235294 | R8: 28.22222222 | S8: 26.73684211 | T8: 25.4
A9: 6 | E9: 79.375 | F9: 79.375 | G9: 79.375 | H9: 79.375 | I9: 70.55555556 | J9: 63.5 | K9: 57.72727273 | L9: 52.91666667 | M9: 48.84615385 | N9: 45.35714286 | O9: 42.33333333 | P9: 39.6875 | Q9: 37.35294118 | R9: 35.27777778 | S9: 33.42105263 | T9: 31.75
A10: 7 | F10: 95.25 | G10: 95.25 | H10: 95.25 | I10: 84.66666667 | J10: 76.2 | K10: 69.27272727 | L10: 63.5 | M10: 58.61538462 | N10: 54.42857143 | O10: 50.8 | P10: 47.625 | Q10: 44.82352941 | R10: 42.33333333 | S10: 40.10526316 | T10: 38.1
A11: 8 | G11: 111.125 | H11: 111.125 | I11: 98.77777778 | J11: 88.9 | K11: 80.81818182 | L11: 74.08333333 | M11: 68.38461538 | N11: 63.5 | O11: 59.26666667 | P11: 55.5625 | Q11: 52.29411765 | R11: 49.38888889 | S11: 46.78947368 | T11: 44.45
A12: 9 | H12: 127 | I12: 112.8888889 | J12: 101.6 | K12: 92.36363636 | L12: 84.66666667 | M12: 78.15384615 | N12: 72.57142857 | O12: 67.73333333 | P12: 63.5 | Q12: 59.76470588 | R12: 56.44444444 | S12: 53.47368421 | T12: 50.8
A13: 10 | I13: 127 | J13: 114.3 | K13: 103.9090909 | L13: 95.25 | M13: 87.92307692 | N13: 81.64285714 | O13: 76.2 | P13: 71.4375 | Q13: 67.23529412 | R13: 63.5 | S13: 60.15789474 | T13: 57.15
A14: 11 | J14: 127 | K14: 115.4545455 | L14: 105.8333333 | M14: 97.69230769 | N14: 90.71428571 | O14: 84.66666667 | P14: 79.375 | Q14: 74.70588235 | R14: 70.55555556 | S14: 66.84210526 | T14: 63.5
A15: 12 | K15: 127 | L15: 116.4166667 | M15: 107.4615385 | N15: 99.78571429 | O15: 93.13333333 | P15: 87.3125 | Q15: 82.17647059 | R15: 77.61111111 | S15: 73.52631579 | T15: 69.85
A16: 13 | L16: 127 | M16: 117.2307692 | N16: 108.8571429 | O16: 101.6 | P16: 95.25 | Q16: 89.64705882 | R16: 84.66666667 | S16: 80.21052632 | T16: 76.2
A17: 14 | M17: 127 | N17: 117.9285714 | O17: 110.0666667 | P17: 103.1875 | Q17: 97.11764706 | R17: 91.72222222 | S17: 86.89473684 | T17: 82.55
A18: 15 | N18: 127 | O18: 118.5333333 | P18: 111.125 | Q18: 104.5882353 | R18: 98.77777778 | S18: 93.57894737 | T18: 88.9
A19: 16 | O19: 127 | P19: 119.0625 | Q19: 112.0588235 | R19: 105.8333333 | S19: 100.2631579 | T19: 95.25
A20: 17 | P20: 127 | Q20: 119.5294118 | R20: 112.8888889 | S20: 106.9473684 | T20: 101.6
A21: 18 | Q21: 127 | R21: 119.9444444 | S21: 113.6315789 | T21: 107.95
A22: 19 | R22: 127 | S22: 120.3157895 | T22: 114.3
A23: 20 | S23: 127 | T23: 120.65
A24: 21 | T24: 127
